Workbook

Sheet UniPlus Instructions
B4: UniPlus
B7: Introduction

Sheet INPUT
O1: 0
A7: 1. Settings
B9: Weight Unit | G9: Data Composition | K9: Uniformity Range (%)
B10: 2 | H10: 1 | M10: 10
A15: 2. Data Information
A17: 2 | B17: Option A - Input sample data below | J17: Option B - Input sample mean & C.V. %
B19: No. | C19: Weight | J19: Mean | K19: 8
B20: =IF(C20<>"",1,"") ->  | G20: C.V. % | K20: 12
B21: =IF(C21<>"",B20+1,"") -> 
B22: =IF(C22<>"",B21+1,"") ->  | E22: Brief Summary
E23: Average | F23: Std. Dev. | G23: C.V. %
E24: =IF(COUNTA(C20:C1048576)>0,AVERAGE(C20:C1048576),"") ->  | F24: =IF(COUNTA(C20:C1048576)>1,_xlfn.STDEV.S(C20:C1048576),"") ->  | G24: =IF(COUNTA(C20:C1048576)>1,F24/E24*100,"") -> 
B86: =IF(C86<>"",B85+1,"") -> 
B150: =IF(C150<>"",B149+1,"") -> 
B214: =IF(C214<>"",B213+1,"") -> 
B278: =IF(C278<>"",B277+1,"") -> 
B342: =IF(C342<>"",B341+1,"") -> 
B406: =IF(C406<>"",B405+1,"") -> 
B470: =IF(C470<>"",B469+1,"") -> 
B534: =IF(C534<>"",B533+1,"") -> 
B598: =IF(C598<>"",B597+1,"") -> 
B662: =IF(C662<>"",B661+1,"") -> 
B726: =IF(C726<>"",B725+1,"") -> 
B790: =IF(C790<>"",B789+1,"") -> 
B854: =IF(C854<>"",B853+1,"") -> 
B918: =IF(C918<>"",B917+1,"") -> 
B982: =IF(C982<>"",B981+1,"") -> 
B1046: =IF(C1046<>"",B1045+1,"") -> 
B1110: =IF(C1110<>"",B1109+1,"") -> 
B1174: =IF(C1174<>"",B1173+1,"") -> 
B1238: =IF(C1238<>"",B1237+1,"") -> 
B1302: =IF(C1302<>"",B1301+1,"") -> 
B1366: =IF(C1366<>"",B1365+1,"") -> 
B1430: =IF(C1430<>"",B1429+1,"") -> 
B1494: =IF(C1494<>"",B1493+1,"") -> 
B1558: =IF(C1558<>"",B1557+1,"") -> 
B1622: =IF(C1622<>"",B1621+1,"") -> 
B1686: =IF(C1686<>"",B1685+1,"") -> 
B1750: =IF(C1750<>"",B1749+1,"") -> 
B1814: =IF(C1814<>"",B1813+1,"") -> 
B1878: =IF(C1878<>"",B1877+1,"") -> 
B1942: =IF(C1942<>"",B1941+1,"") -> 
... 44 more rows

Sheet BRLRWT
A7: 1. Advanced Settings
B9: Flock size (in 1,000's) | H9: 100
B10: # Male / # Total (if Mixed) in % | G10: 50 | H10: 50 | I10: ← Ranges from 0 to 100
B11: (Mean Weight of Male) / (Mean Weight of S/Run) | G11: 108.6584628 | H11: 1.086584628 | I11: ← Normal value shown in box. Adjust if required using slider.
B12: (Mean Weight of Female) / (Mean Weight of S/Run) | G12: 91.34153719 | H12: 0.9134153719 | I12: ← Normal value shown in box. Adjust if required using slider.
B13: (C.V. of Male) / (C.V. of S/Run) | G13: 68.97934181 | H13: 0.6897934181 | I13: ← Normal value shown in box. Adjust if required using slider.
B14: (C.V. of Female) / (C.V. of S/Run) | G14: 68.97934181 | H14: 0.6897934181 | I14: ← Normal value shown in box. Adjust if required using slider.
A16: 2-1. Results - Data Summary (Detail), Uniformity, and Flock Percentage Chart
B18: Data Summary (Detail) | D18: Mean | E18: Std. Dev. | F18: C.V. %
B20: S/Run | C20: lbs | D20: 8 | E20: 0.96 | F20: 12
C21: kgs | D21: 3.628776195 | E21: 0.4354531434
B22: Male | C22: lbs | D22: 8.692677025 | E22: 0.7195381677 | F22: 8.277521017
C23: kgs | D23: 3.942972432 | E23: 0.3263803718
B24: Female | C24: lbs | D24: 7.307322975 | E24: 0.6048651951 | F24: 8.277521017
C25: kgs | D25: 3.314579958 | E25: 0.2743650527
B27: Uniformity (Range in percent and lbs)
B28: Range Minimum | C28: Size within the Uniformity Range | H28: Range Maximum
C29: Flock Size | E29: Composition | F29: Percentage
B30: 30 | C30: =IF(C31<>"",IF(C32<>"",C32+C31,""),"") -> 55195 | E30: S/Run | F30: =IF(F31<>"",IF(F32<>"",F31+F32,""),"") -> 0.5519429592 | H30: 10
B31: =(40-B30)*(-1)/100 -> -0.1 | C31: =IF(D20<>"",IF(INPUT!B10=2,ROUNDDOWN(_xlfn.NORM.DIST($H$32,D22,E22,TRUE)*$H$9*1000*$H$10/100,0)-ROUNDDOWN(_xlfn.NORM.DIST($B$32,D22,E22,TRUE)*$H$9*1000*$H$10/100,0),ROUNDDOWN(_xlfn.NORM.DIST($H$32,D23,E23,TRUE)*$H$9*1000*$H$10/100,0)-ROUNDDOWN(_xlfn.NORM.DIST($B$32,D23,E23,TRUE)*$H$9*1000*$H$10/100,0)),IF(D22<>"",IF(INPUT!B10=2,ROUNDDOWN(_xlfn.NORM.DIST($H$32,D22,E22,TRUE)*$H$9*1000,0)-ROUNDDOWN(_xlfn.NORM.DIST($B$32,D22,E22,TRUE)*$H$9*1000,0),ROUNDDOWN(_xlfn.NORM.DIST($H$32,D23,E23,TRUE)*$H$9*1000,0)-ROUNDDOWN(_xlfn.NORM.DIST($B$32,D23,E23,TRUE)*$H$9*1000,0)),"")) -> 27014 | E31: Male | F31: =IF(D20<>"",IF(INPUT!B10=2,_xlfn.NORM.DIST($H$32,D22,E22,TRUE)*$H$10/100-_xlfn.NORM.DIST($B$32,D22,E22,TRUE)*$H$10/100,_xlfn.NORM.DIST($H$32,D23,E23,TRUE)*$H$10/100-_xlfn.NORM.DIST($B$32,D23,E23,TRUE)*$H$10/100),IF(D22<>"",IF(INPUT!B10=2,_xlfn.NORM.DIST($H$32,D22,E22,TRUE)-_xlfn.NORM.DIST($B$32,D22,E22,TRUE),_xlfn.NORM.DIST($H$32,D23,E23,TRUE)-_xlfn.NORM.DIST($B$32,D23,E23,TRUE)),"")) -> 0.2701338566 | H31: =H30/100 -> 0.1
B32: =IF(INPUT!B10=2, IF(D20<>"",D20+D20*B31, IF(D22<>"", D22+D22*B31, D24+D24*B31)), IF(D21<>"",D21+D21*B31, IF(D23<>"", D23+D23*B31, D25+D25*B31))) -> 7.2 | C32: =IF(D20<>"",IF(INPUT!B10=2,ROUNDDOWN(_xlfn.NORM.DIST($H$32,D24,E24,TRUE)*$H$9*1000*(1-$H$10/100),0)-ROUNDDOWN(_xlfn.NORM.DIST($B$32,D24,E24,TRUE)*$H$9*1000*(1-$H$10/100),0),ROUNDDOWN(_xlfn.NORM.DIST($H$32,D25,E25,TRUE)*$H$9*1000*(1-$H$10/100),0)-ROUNDDOWN(_xlfn.NORM.DIST($B$32,D25,E25,TRUE)*$H$9*1000*(1-$H$10/100),0)),IF(D24<>"",IF(INPUT!B10=2,ROUNDDOWN(_xlfn.NORM.DIST($H$32,D24,E24,TRUE)*$H$9*1000,0)-ROUNDDOWN(_xlfn.NORM.DIST($B$32,D24,E24,TRUE)*$H$9*1000,0),ROUNDDOWN(_xlfn.NORM.DIST($H$32,D25,E25,TRUE)*$H$9*1000,0)-ROUNDDOWN(_xlfn.NORM.DIST($B$32,D25,E25,TRUE)*$H$9*1000,0)),"")) -> 28181 | E32: Female | F32: =IF(D20<>"",IF(INPUT!B10=2,_xlfn.NORM.DIST($H$32,D24,E24,TRUE)*(1-$H$10/100)-_xlfn.NORM.DIST($B$32,D24,E24,TRUE)*(1-$H$10/100),_xlfn.NORM.DIST($H$32,D25,E25,TRUE)*(1-$H$10/100)-_xlfn.NORM.DIST($B$32,D25,E25,TRUE)*(1-$H$10/100)),IF(D24<>"",IF(INPUT!B10=2,_xlfn.NORM.DIST($H$32,D24,E24,TRUE)-_xlfn.NORM.DIST($B$32,D24,E24,TRUE),_xlfn.NORM.DIST($H$32,D25,E25,TRUE)-_xlfn.NORM.DIST($B$32,D25,E25,TRUE)),"")) -> 0.2818091026 | H32: =IF(INPUT!B10=2, IF(D20<>"",D20+D20*H31, IF(D22<>"", D22+D22*H31, D24+D24*H31)), IF(D21<>"",D21+D21*H31, IF(D23<>"", D23+D23*H31, D25+D25*H31))) -> 8.8
A34: 2-2. Results - Data Table
B36: Percentage distribution according to weight and sex | J36: Numbers distribution according to weight and sex
B38: Weight | F38: Sex | J38: Weight | N38: Sex
B39: Min (>) | D39: Max (≤) | F39: Male | G39: Female | H39: S/Run | J39: Min | L39: Max | N39: Male | O39: Female | P39: S/Run
B40: Kgs | C40: Lbs | D40: Kgs | E40: Lbs | J40: Kgs | K40: Lbs | L40: Kgs | M40: Lbs
B41: ="-inf." -> -inf. | D41: =E41/2.2046 -> 1.886963622 | E41: =IF($D$20<>"",MAX(0,$D$20-4*$E$20),IF($D$22<>"",MAX(0, $D$22-4*$E$22),MAX(0,$D$24-4*$E$24))) -> 4.16 | F41: =IF($D$22="","",IF($D$24="",_xlfn.NORM.DIST(E41,$D$22,$E$22,TRUE),_xlfn.NORM.DIST(E41,$D$22,$E$22,TRUE)*$H$10/100)) -> 7.46877502e-11 | G41: =IF($D$24="","",IF($D$22="",_xlfn.NORM.DIST(E41,$D$24,$E$24,TRUE),_xlfn.NORM.DIST(E41,$D$24,$E$24,TRUE)*(1-$H$10/100))) -> 4.893295397e-08 | H41: =IF(F41="","",IF(G41="","",F41+G41)) -> 4.900764172e-08 | J41: =B41 -> -inf. | L41: =D41 -> 1.886963622 | M41: =E41 -> 4.16 | N41: =IF(F41<>"",ROUND(F41*$H$9*1000,0),"") -> 0 | O41: =IF(G41<>"",ROUND(G41*$H$9*1000,0),"") -> 0 | P41: =IF(N41<>"",IF(O41<>"",N41+O41,""),"") -> 0
B42: =D41 -> 1.886963622 | C42: =E41 -> 4.16 | D42: =E42/2.2046 -> 1.995826907 | E42: =IF($D$20<>"",C42+($D$20+4*$E$20-$E$41)/32,IF($D$22<>"",C42+($D$22+4*$E$22-$E$41)/32,C42+($D$24+4*$E$24-$E$41)/32)) -> 4.4 | F42: =IF($D$22="","",IF($D$24="",_xlfn.NORM.DIST(E42,$D$22,$E$22,TRUE)-_xlfn.NORM.DIST(C42,$D$22,$E$22,TRUE),_xlfn.NORM.DIST(E42,$D$22,$E$22,TRUE)*$H$10/100-_xlfn.NORM.DIST(C42,$D$22,$E$22,TRUE)*$H$10/100)) -> 5.33616844e-10 | G42: =IF($D$24="","",IF($D$22="",_xlfn.NORM.DIST(E42,$D$24,$E$24,TRUE)-_xlfn.NORM.DIST(C42,$D$24,$E$24,TRUE),_xlfn.NORM.DIST(E42,$D$24,$E$24,TRUE)*(1-$H$10/100)-_xlfn.NORM.DIST(C42,$D$24,$E$24,TRUE)*(1-$H$10/100))) -> 3.349338477e-07 | H42: =IF(F42="","",IF(G42="","",F42+G42)) -> 3.354674645e-07 | J42: 1.886963622 | K42: =C42 -> 4.16 | L42: 1.995826907 | M42: 4.4 | N42: =IF(F42<>"",ROUND(F42*$H$9*1000,0),"") -> 0 | O42: =IF(G42<>"",ROUND(G42*$H$9*1000,0),"") -> 0 | P42: =IF(N42<>"",IF(O42<>"",N42+O42,""),"") -> 0
B43: =D42 -> 1.995826907 | C43: =E42 -> 4.4 | D43: =E43/2.2046 -> 2.104690193 | E43: 4.64 | F43: =IF($D$22="","",IF($D$24="",_xlfn.NORM.DIST(E43,$D$22,$E$22,TRUE)-_xlfn.NORM.DIST(C43,$D$22,$E$22,TRUE),_xlfn.NORM.DIST(E43,$D$22,$E$22,TRUE)*$H$10/100-_xlfn.NORM.DIST(C43,$D$22,$E$22,TRUE)*$H$10/100)) -> 3.83645e-09 | G43: =IF($D$24="","",IF($D$22="",_xlfn.NORM.DIST(E43,$D$24,$E$24,TRUE)-_xlfn.NORM.DIST(C43,$D$24,$E$24,TRUE),_xlfn.NORM.DIST(E43,$D$24,$E$24,TRUE)*(1-$H$10/100)-_xlfn.NORM.DIST(C43,$D$24,$E$24,TRUE)*(1-$H$10/100))) -> 2.203014815e-06 | H43: =IF(F43="","",IF(G43="","",F43+G43)) -> 2.206851265e-06 | J43: 1.995826907 | K43: =C43 -> 4.4 | L43: 2.104690193 | M43: 4.64 | N43: =IF(F43<>"",ROUND(F43*$H$9*1000,0),"") -> 0 | O43: =IF(G43<>"",ROUND(G43*$H$9*1000,0),"") -> 0 | P43: 0
B44: 2.104690193 | C44: 4.64 | D44: 2.213553479 | E44: 4.88 | F44: 2.469942406e-08 | G44: 1.240120725e-05 | H44: 1.242590667e-05 | J44: 2.104690193 | K44: 4.64 | L44: 2.213553479 | M44: 4.88 | N44: 0 | O44: 1 | P44: 1
B45: 2.213553479 | C45: 4.88 | D45: 2.322416765 | E45: 5.12 | F45: 1.423995035e-07 | G45: 5.974725602e-05 | H45: 5.988965552e-05 | J45: 2.213553479 | K45: 4.88 | L45: 2.322416765 | M45: 5.12 | N45: 0 | O45: 6 | P45: 6
B46: 2.322416765 | C46: 5.12 | D46: 2.431280051 | E46: 5.36 | F46: 7.351929937e-07 | G46: 0.0002463755758 | H46: 0.0002471107688 | J46: 2.322416765 | K46: 5.12 | L46: 2.431280051 | M46: 5.36 | N46: 0 | O46: 25 | P46: 25
B47: 2.431280051 | C47: 5.36 | D47: 2.540143337 | E47: 5.6 | F47: 3.399163875e-06 | G47: 0.0008696010495 | H47: 0.0008730002134 | J47: 2.431280051 | K47: 5.36 | L47: 2.540143337 | M47: 5.6 | N47: 0 | O47: 87 | P47: 87
B48: 2.540143337 | C48: 5.6 | D48: 2.649006623 | E48: 5.84 | F48: 1.407430783e-05 | G48: 0.002627246516 | H48: 0.002641320823 | J48: 2.540143337 | K48: 5.6 | L48: 2.649006623 | M48: 5.84 | N48: 1 | O48: 263 | P48: 264
B49: 2.649006623 | C49: 5.84 | D49: 2.757869908 | E49: 6.08 | F49: 5.218818839e-05 | G49: 0.006794446468 | H49: 0.006846634656 | J49: 2.649006623 | K49: 5.84 | L49: 2.757869908 | M49: 6.08 | N49: 5 | O49: 679 | P49: 684
B50: 2.757869908 | C50: 6.08 | D50: 2.866733194 | E50: 6.32 | F50: 0.0001733058903 | G50: 0.01504153881 | H50: 0.0152148447 | J50: 2.757869908 | K50: 6.08 | L50: 2.866733194 | M50: 6.32 | N50: 17 | O50: 1504 | P50: 1521
B51: 2.866733194 | C51: 6.32 | D51: 2.97559648 | E51: 6.56 | F51: 0.0005154133703 | G51: 0.02850532652 | H51: 0.02902073989 | J51: 2.866733194 | K51: 6.32 | L51: 2.97559648 | M51: 6.56 | N51: 52 | O51: 2851 | P51: 2903
B52: 2.97559648 | C52: 6.56 | D52: 3.084459766 | E52: 6.8 | F52: 0.001372790373 | G52: 0.04624492113 | H52: 0.04761771151 | J52: 2.97559648 | K52: 6.56 | L52: 3.084459766 | M52: 6.8 | N52: 137 | O52: 4624 | P52: 4761
B53: 3.084459766 | C53: 6.8 | D53: 3.193323052 | E53: 7.04 | F53: 0.003274639317 | G53: 0.06422631739 | H53: 0.06750095671 | J53: 3.084459766 | K53: 6.8 | L53: 3.193323052 | M53: 7.04 | N53: 327 | O53: 6423 | P53: 6750
B54: 3.193323052 | C54: 7.04 | D54: 3.302186338 | E54: 7.28 | F54: 0.006995801727 | G54: 0.07636204269 | H54: 0.08335784442 | J54: 3.193323052 | K54: 7.04 | L54: 3.302186338 | M54: 7.28 | N54: 700 | O54: 7636 | P54: 8336
B55: 3.302186338 | C55: 7.28 | D55: 3.411049624 | E55: 7.52 | F55: 0.01338535494 | G55: 0.07772487311 | H55: 0.09111022806 | J55: 3.302186338 | K55: 7.28 | L55: 3.411049624 | M55: 7.52 | N55: 1339 | O55: 7772 | P55: 9111
B56: 3.411049624 | C56: 7.52 | D56: 3.519912909 | E56: 7.76 | F56: 0.02293737901 | G56: 0.06772682607 | H56: 0.09066420509 | J56: 3.411049624 | K56: 7.52 | L56: 3.519912909 | M56: 7.76 | N56: 2294 | O56: 6773 | P56: 9067
B57: 3.519912909 | C57: 7.76 | D57: 3.628776195 | E57: 8 | F57: 0.03520317269 | G57: 0.05052167111 | H57: 0.08572484381 | J57: 3.519912909 | K57: 7.76 | L57: 3.628776195 | M57: 8 | N57: 3520 | O57: 5052 | P57: 8572
B58: 3.628776195 | C58: 8 | D58: 3.737639481 | E58: 8.24 | F58: 0.04838893203 | G58: 0.03226315812 | H58: 0.08065209015 | J58: 3.628776195 | K58: 8 | L58: 3.737639481 | M58: 8.24 | N58: 4839 | O58: 3226 | P58: 8065
B59: 3.737639481 | C59: 8.24 | D59: 3.846502767 | E59: 8.48 | F59: 0.0595714338 | G59: 0.0176377028 | H59: 0.0772091366 | J59: 3.737639481 | K59: 8.24 | L59: 3.846502767 | M59: 8.48 | N59: 5957 | O59: 1764 | P59: 7721
B60: 3.846502767 | C60: 8.48 | D60: 3.955366053 | E60: 8.72 | F60: 0.06568389295 | G60: 0.00825419803 | H60: 0.07393809098 | J60: 3.846502767 | K60: 8.48 | L60: 3.955366053 | M60: 8.72 | N60: 6568 | O60: 825 | P60: 7393
B61: 3.955366053 | C61: 8.72 | D61: 4.064229339 | E61: 8.96 | F61: 0.06486479009 | G61: 0.003306703562 | H61: 0.06817149365 | J61: 3.955366053 | K61: 8.72 | L61: 4.064229339 | M61: 8.96 | N61: 6486 | O61: 331 | P61: 6817
B62: 4.064229339 | C62: 8.96 | D62: 4.173092625 | E62: 9.2 | F62: 0.05737046737 | G62: 0.001133942715 | H62: 0.05850441009 | J62: 4.064229339 | K62: 8.96 | L62: 4.173092625 | M62: 9.2 | N62: 5737 | O62: 113 | P62: 5850
B63: 4.173092625 | C63: 9.2 | D63: 4.28195591 | E63: 9.44 | F63: 0.04544607569 | G63: 0.0003328500979 | H63: 0.04577892579 | J63: 4.173092625 | K63: 9.2 | L63: 4.28195591 | M63: 9.44 | N63: 4545 | O63: 33 | P63: 4578
B64: 4.28195591 | C64: 9.44 | D64: 4.390819196 | E64: 9.68 | F64: 0.03224273411 | G64: 8.36281844e-05 | H64: 0.03232636229 | J64: 4.28195591 | K64: 9.44 | L64: 4.390819196 | M64: 9.68 | N64: 3224 | O64: 8 | P64: 3232
B65: 4.390819196 | C65: 9.68 | D65: 4.499682482 | E65: 9.92 | F65: 0.02048769594 | G65: 1.798400131e-05 | H65: 0.02050567994 | J65: 4.390819196 | K65: 9.68 | L65: 4.499682482 | M65: 9.92 | N65: 2049 | O65: 2 | P65: 2051
B66: 4.499682482 | C66: 9.92 | D66: 4.608545768 | E66: 10.16 | F66: 0.01165944677 | G66: 3.310028129e-06 | H66: 0.01166275679 | J66: 4.499682482 | K66: 9.92 | L66: 4.608545768 | M66: 10.16 | N66: 1166 | O66: 0 | P66: 1166
B67: 4.608545768 | C67: 10.16 | D67: 4.717409054 | E67: 10.4 | F67: 0.005942697173 | G67: 5.213983897e-07 | H67: 0.005943218571 | J67: 4.608545768 | K67: 10.16 | L67: 4.717409054 | M67: 10.4 | N67: 594 | O67: 0 | P67: 594
B68: 4.717409054 | C68: 10.4 | D68: 4.82627234 | E68: 10.64 | F68: 0.002712731788 | G68: 7.028786536e-08 | H68: 0.002712802076 | J68: 4.717409054 | K68: 10.4 | L68: 4.82627234 | M68: 10.64 | N68: 271 | O68: 0 | P68: 271
B69: 4.82627234 | C69: 10.64 | D69: 4.935135626 | E69: 10.88 | F69: 0.001109031801 | G69: 8.108545613e-09 | H69: 0.00110903991 | J69: 4.82627234 | K69: 10.64 | L69: 4.935135626 | M69: 10.88 | N69: 111 | O69: 0 | P69: 111
B70: 4.935135626 | C70: 10.88 | D70: 5.043998911 | E70: 11.12 | F70: 0.0004060606033 | G70: 8.004537033e-10 | H70: 0.0004060614038 | J70: 4.935135626 | K70: 10.88 | L70: 5.043998911 | M70: 11.12 | N70: 41 | O70: 0 | P70: 41
B71: 5.043998911 | C71: 11.12 | D71: 5.152862197 | E71: 11.36 | F71: 0.0001331505032 | G71: 6.761424753e-11 | H71: 0.0001331505708 | J71: 5.043998911 | K71: 11.12 | L71: 5.152862197 | M71: 11.36 | N71: 13 | O71: 0 | P71: 13
B72: 5.152862197 | C72: 11.36 | D72: 5.261725483 | E72: 11.6 | F72: 3.910162832e-05 | G72: 4.886868687e-12 | H72: 3.91016332e-05 | J72: 5.152862197 | K72: 11.36 | L72: 5.261725483 | M72: 11.6 | N72: 4 | O72: 0 | P72: 4
B73: 5.261725483 | C73: 11.6 | D73: 5.370588769 | E73: 11.84 | F73: 1.028351381e-05 | G73: 3.021471962e-13 | H73: 1.028351412e-05 | J73: 5.261725483 | K73: 11.6 | L73: 5.370588769 | M73: 11.84 | N73: 1 | O73: 0 | P73: 1
B74: =D73 -> 5.370588769 | C74: =E73 -> 11.84 | D74: inf. | F74: =IF($D$22="","",IF($D$24="",1-_xlfn.NORM.DIST(C74,$D$22,$E$22,TRUE),$H$10/100-_xlfn.NORM.DIST(C74,$D$22,$E$22,TRUE)*$H$10/100)) -> 3.04853525e-06 | G74: =IF($D$24="","",IF($D$22="",1-_xlfn.NORM.DIST(C74,$D$24,$E$24,TRUE),(1-$H$10/100)-_xlfn.NORM.DIST(C74,$D$24,$E$24,TRUE)*(1-$H$10/100))) -> 1.676436767e-14 | H74: =IF(F74="","",IF(G74="","",F74+G74)) -> 3.048535267e-06 | J74: 5.370588769 | K74: 11.84 | L74: =D74 -> inf. | N74: 0 | O74: 0 | P74: 0
B75: Total | F75: =IF(F74<>"",SUM(F41:F74),"") -> 0.5 | G75: =IF(G74<>"",SUM(G41:G74),"") -> 0.5 | H75: =IF(H74<>"",SUM(H41:H74),"") -> 1 | J75: Total | N75: =IF(F75<>"",ROUND(F75*$H$9*1000,0),"") -> 50000 | O75: =IF(G75<>"",ROUND(G75*$H$9*1000,0),"") -> 50000 | P75: =IF(H75<>"",ROUNDDOWN(H75*$H$9*1000,0),"") -> 100000

Sheet Min_Max_Table
H3: SR | I3: Male | J3: Female
F4: Mean (lbs) | H4: 8 | I4: 8.692677025 | J4: 7.307322975
F5: C.V. % | H5: 12 | I5: 8.277521017 | J5: 8.277521017
F6: Std. Dev. | H6: 0.96 | I6: 0.7195381677 | J6: 0.6048651951
C8: Weight | E8: Percentage | H8: Numbers
C9: Min (>) | D9: Max (≤) | E9: Male | F9: Female | G9: S/Run | H9: Male | I9: Female | J9: S/Run
C10: ="-inf." -> -inf. | D10: 4 | E10: =IF(AND(C10<>"",D10<>""),IF($H$4<>"",_xlfn.NORM.DIST(D10,$I$4,$I$6,TRUE)*BRLRWT!$H$10/100,IF($I$4<>"",_xlfn.NORM.DIST(D10,$I$4,$I$6,TRUE),"")),"") -> 1.73682781e-11 | F10: =IF(AND(C10<>"",D10<>""),IF($H$4<>"",_xlfn.NORM.DIST(D10,$J$4,$J$6,TRUE)*(1-BRLRWT!$H$10/100),IF($J$4<>"",_xlfn.NORM.DIST(D10,$J$4,$J$6,TRUE),"")),"") -> 1.138702904e-08 | G10: =IF(AND(C10<>"",D10<>""),IF($H$4<>"",E10+F10,""),"") -> 1.140439731e-08 | H10: =IF(E10<>"",ROUND(E10*BRLRWT!$H$9*1000,0),"") -> 0 | I10: =IF(F10<>"",ROUND(F10*BRLRWT!$H$9*1000,0),"") -> 0 | J10: =IF(G10<>"",H10+I10,"") -> 0
C11: 0.9 | D11: 5 | E11: =IF(AND(C11<>"",D11<>""),IF($H$4<>"",_xlfn.NORM.DIST(D11,$I$4,$I$6,TRUE)*BRLRWT!$H$10/100-_xlfn.NORM.DIST(C11,$I$4,$I$6,TRUE)*BRLRWT!$H$10/100,IF($I$4<>"",_xlfn.NORM.DIST(D11,$I$4,$I$6,TRUE)-_xlfn.NORM.DIST(C11,$I$4,$I$6,TRUE),"")),"") -> 7.166609123e-08 | F11: =IF(AND(C11<>"",D11<>""),IF($H$4<>"",_xlfn.NORM.DIST(D11,$J$4,$J$6,TRUE)*(1-BRLRWT!$H$10/100)-_xlfn.NORM.DIST(C11,$J$4,$J$6,TRUE)*(1-BRLRWT!$H$10/100),IF($J$4<>"",_xlfn.NORM.DIST(D11,$J$4,$J$6,TRUE)-_xlfn.NORM.DIST(C11,$J$4,$J$6,TRUE),"")),"") -> 3.409996428e-05 | G11: 3.417163037e-05 | H11: =IF(E11<>"",ROUND(E11*BRLRWT!$H$9*1000,0),"") -> 0 | I11: =IF(F11<>"",ROUND(F11*BRLRWT!$H$9*1000,0),"") -> 3 | J11: =IF(G11<>"",H11+I11,"") -> 3
C12: 6 | D12: 12 | E12: =IF(AND(C12<>"",D12<>""),IF($H$4<>"",_xlfn.NORM.DIST(D12,$I$4,$I$6,TRUE)*BRLRWT!$H$10/100-_xlfn.NORM.DIST(C12,$I$4,$I$6,TRUE)*BRLRWT!$H$10/100,IF($I$4<>"",_xlfn.NORM.DIST(D12,$I$4,$I$6,TRUE)-_xlfn.NORM.DIST(C12,$I$4,$I$6,TRUE),"")),"") -> 0.4999533269 | F12: =IF(AND(C12<>"",D12<>""),IF($H$4<>"",_xlfn.NORM.DIST(D12,$J$4,$J$6,TRUE)*(1-BRLRWT!$H$10/100)-_xlfn.NORM.DIST(C12,$J$4,$J$6,TRUE)*(1-BRLRWT!$H$10/100),IF($J$4<>"",_xlfn.NORM.DIST(D12,$J$4,$J$6,TRUE)-_xlfn.NORM.DIST(C12,$J$4,$J$6,TRUE),"")),"") -> 0.4923328447 | G12: 0.9922861716 | H12: =IF(E12<>"",ROUND(E12*BRLRWT!$H$9*1000,0),"") -> 49995 | I12: =IF(F12<>"",ROUND(F12*BRLRWT!$H$9*1000,0),"") -> 49233 | J12: =IF(G12<>"",H12+I12,"") -> 99228
C13: 0.63 | D13: 0.77 | E13: =IF(AND(C13<>"",D13<>""),IF($H$4<>"",_xlfn.NORM.DIST(D13,$I$4,$I$6,TRUE)*BRLRWT!$H$10/100-_xlfn.NORM.DIST(C13,$I$4,$I$6,TRUE)*BRLRWT!$H$10/100,IF($I$4<>"",_xlfn.NORM.DIST(D13,$I$4,$I$6,TRUE)-_xlfn.NORM.DIST(C13,$I$4,$I$6,TRUE),"")),"") -> 7.516730496e-29 | F13: =IF(AND(C13<>"",D13<>""),IF($H$4<>"",_xlfn.NORM.DIST(D13,$J$4,$J$6,TRUE)*(1-BRLRWT!$H$10/100)-_xlfn.NORM.DIST(C13,$J$4,$J$6,TRUE)*(1-BRLRWT!$H$10/100),IF($J$4<>"",_xlfn.NORM.DIST(D13,$J$4,$J$6,TRUE)-_xlfn.NORM.DIST(C13,$J$4,$J$6,TRUE),"")),"") -> 7.278382266e-28 | G13: 8.030055315e-28 | H13: =IF(E13<>"",ROUND(E13*BRLRWT!$H$9*1000,0),"") -> 0 | I13: =IF(F13<>"",ROUND(F13*BRLRWT!$H$9*1000,0),"") -> 0 | J13: 0
E14: =IF(AND(C14<>"",D14<>""),IF($H$4<>"",_xlfn.NORM.DIST(D14,$I$4,$I$6,TRUE)*BRLRWT!$H$10/100-_xlfn.NORM.DIST(C14,$I$4,$I$6,TRUE)*BRLRWT!$H$10/100,IF($I$4<>"",_xlfn.NORM.DIST(D14,$I$4,$I$6,TRUE)-_xlfn.NORM.DIST(C14,$I$4,$I$6,TRUE),"")),"") ->  | F14: =IF(AND(C14<>"",D14<>""),IF($H$4<>"",_xlfn.NORM.DIST(D14,$J$4,$J$6,TRUE)*(1-BRLRWT!$H$10/100)-_xlfn.NORM.DIST(C14,$J$4,$J$6,TRUE)*(1-BRLRWT!$H$10/100),IF($J$4<>"",_xlfn.NORM.DIST(D14,$J$4,$J$6,TRUE)-_xlfn.NORM.DIST(C14,$J$4,$J$6,TRUE),"")),"") ->  | H14: =IF(E14<>"",ROUND(E14*BRLRWT!$H$9*1000,0),"") ->  | I14: =IF(F14<>"",ROUND(F14*BRLRWT!$H$9*1000,0),"") -> 
E15: =IF(AND(C15<>"",D15<>""),IF($H$4<>"",_xlfn.NORM.DIST(D15,$I$4,$I$6,TRUE)*BRLRWT!$H$10/100-_xlfn.NORM.DIST(C15,$I$4,$I$6,TRUE)*BRLRWT!$H$10/100,IF($I$4<>"",_xlfn.NORM.DIST(D15,$I$4,$I$6,TRUE)-_xlfn.NORM.DIST(C15,$I$4,$I$6,TRUE),"")),"") ->  | F15: =IF(AND(C15<>"",D15<>""),IF($H$4<>"",_xlfn.NORM.DIST(D15,$J$4,$J$6,TRUE)*(1-BRLRWT!$H$10/100)-_xlfn.NORM.DIST(C15,$J$4,$J$6,TRUE)*(1-BRLRWT!$H$10/100),IF($J$4<>"",_xlfn.NORM.DIST(D15,$J$4,$J$6,TRUE)-_xlfn.NORM.DIST(C15,$J$4,$J$6,TRUE),"")),"") ->  | H15: =IF(E15<>"",ROUND(E15*BRLRWT!$H$9*1000,0),"") ->  | I15: =IF(F15<>"",ROUND(F15*BRLRWT!$H$9*1000,0),"") -> 
E16: =IF(AND(C16<>"",D16<>""),IF($H$4<>"",_xlfn.NORM.DIST(D16,$I$4,$I$6,TRUE)*BRLRWT!$H$10/100-_xlfn.NORM.DIST(C16,$I$4,$I$6,TRUE)*BRLRWT!$H$10/100,IF($I$4<>"",_xlfn.NORM.DIST(D16,$I$4,$I$6,TRUE)-_xlfn.NORM.DIST(C16,$I$4,$I$6,TRUE),"")),"") ->  | F16: =IF(AND(C16<>"",D16<>""),IF($H$4<>"",_xlfn.NORM.DIST(D16,$J$4,$J$6,TRUE)*(1-BRLRWT!$H$10/100)-_xlfn.NORM.DIST(C16,$J$4,$J$6,TRUE)*(1-BRLRWT!$H$10/100),IF($J$4<>"",_xlfn.NORM.DIST(D16,$J$4,$J$6,TRUE)-_xlfn.NORM.DIST(C16,$J$4,$J$6,TRUE),"")),"") ->  | H16: =IF(E16<>"",ROUND(E16*BRLRWT!$H$9*1000,0),"") ->  | I16: =IF(F16<>"",ROUND(F16*BRLRWT!$H$9*1000,0),"") -> 
E17: =IF(AND(C17<>"",D17<>""),IF($H$4<>"",_xlfn.NORM.DIST(D17,$I$4,$I$6,TRUE)*BRLRWT!$H$10/100-_xlfn.NORM.DIST(C17,$I$4,$I$6,TRUE)*BRLRWT!$H$10/100,IF($I$4<>"",_xlfn.NORM.DIST(D17,$I$4,$I$6,TRUE)-_xlfn.NORM.DIST(C17,$I$4,$I$6,TRUE),"")),"") ->  | F17: =IF(AND(C17<>"",D17<>""),IF($H$4<>"",_xlfn.NORM.DIST(D17,$J$4,$J$6,TRUE)*(1-BRLRWT!$H$10/100)-_xlfn.NORM.DIST(C17,$J$4,$J$6,TRUE)*(1-BRLRWT!$H$10/100),IF($J$4<>"",_xlfn.NORM.DIST(D17,$J$4,$J$6,TRUE)-_xlfn.NORM.DIST(C17,$J$4,$J$6,TRUE),"")),"") ->  | H17: =IF(E17<>"",ROUND(E17*BRLRWT!$H$9*1000,0),"") ->  | I17: =IF(F17<>"",ROUND(F17*BRLRWT!$H$9*1000,0),"") -> 
E18: =IF(AND(C18<>"",D18<>""),IF($H$4<>"",_xlfn.NORM.DIST(D18,$I$4,$I$6,TRUE)*BRLRWT!$H$10/100-_xlfn.NORM.DIST(C18,$I$4,$I$6,TRUE)*BRLRWT!$H$10/100,IF($I$4<>"",_xlfn.NORM.DIST(D18,$I$4,$I$6,TRUE)-_xlfn.NORM.DIST(C18,$I$4,$I$6,TRUE),"")),"") ->  | F18: =IF(AND(C18<>"",D18<>""),IF($H$4<>"",_xlfn.NORM.DIST(D18,$J$4,$J$6,TRUE)*(1-BRLRWT!$H$10/100)-_xlfn.NORM.DIST(C18,$J$4,$J$6,TRUE)*(1-BRLRWT!$H$10/100),IF($J$4<>"",_xlfn.NORM.DIST(D18,$J$4,$J$6,TRUE)-_xlfn.NORM.DIST(C18,$J$4,$J$6,TRUE),"")),"") ->  | H18: =IF(E18<>"",ROUND(E18*BRLRWT!$H$9*1000,0),"") ->  | I18: =IF(F18<>"",ROUND(F18*BRLRWT!$H$9*1000,0),"") -> 
E19: =IF(AND(C19<>"",D19<>""),IF($H$4<>"",_xlfn.NORM.DIST(D19,$I$4,$I$6,TRUE)*BRLRWT!$H$10/100-_xlfn.NORM.DIST(C19,$I$4,$I$6,TRUE)*BRLRWT!$H$10/100,IF($I$4<>"",_xlfn.NORM.DIST(D19,$I$4,$I$6,TRUE)-_xlfn.NORM.DIST(C19,$I$4,$I$6,TRUE),"")),"") ->  | F19: =IF(AND(C19<>"",D19<>""),IF($H$4<>"",_xlfn.NORM.DIST(D19,$J$4,$J$6,TRUE)*(1-BRLRWT!$H$10/100)-_xlfn.NORM.DIST(C19,$J$4,$J$6,TRUE)*(1-BRLRWT!$H$10/100),IF($J$4<>"",_xlfn.NORM.DIST(D19,$J$4,$J$6,TRUE)-_xlfn.NORM.DIST(C19,$J$4,$J$6,TRUE),"")),"") ->  | H19: =IF(E19<>"",ROUND(E19*BRLRWT!$H$9*1000,0),"") ->  | I19: =IF(F19<>"",ROUND(F19*BRLRWT!$H$9*1000,0),"") -> 
E20: =IF(AND(C20<>"",D20<>""),IF($H$4<>"",_xlfn.NORM.DIST(D20,$I$4,$I$6,TRUE)*BRLRWT!$H$10/100-_xlfn.NORM.DIST(C20,$I$4,$I$6,TRUE)*BRLRWT!$H$10/100,IF($I$4<>"",_xlfn.NORM.DIST(D20,$I$4,$I$6,TRUE)-_xlfn.NORM.DIST(C20,$I$4,$I$6,TRUE),"")),"") ->  | F20: =IF(AND(C20<>"",D20<>""),IF($H$4<>"",_xlfn.NORM.DIST(D20,$J$4,$J$6,TRUE)*(1-BRLRWT!$H$10/100)-_xlfn.NORM.DIST(C20,$J$4,$J$6,TRUE)*(1-BRLRWT!$H$10/100),IF($J$4<>"",_xlfn.NORM.DIST(D20,$J$4,$J$6,TRUE)-_xlfn.NORM.DIST(C20,$J$4,$J$6,TRUE),"")),"") ->  | H20: =IF(E20<>"",ROUND(E20*BRLRWT!$H$9*1000,0),"") ->  | I20: =IF(F20<>"",ROUND(F20*BRLRWT!$H$9*1000,0),"") -> 
E21: =IF(AND(C21<>"",D21<>""),IF($H$4<>"",_xlfn.NORM.DIST(D21,$I$4,$I$6,TRUE)*BRLRWT!$H$10/100-_xlfn.NORM.DIST(C21,$I$4,$I$6,TRUE)*BRLRWT!$H$10/100,IF($I$4<>"",_xlfn.NORM.DIST(D21,$I$4,$I$6,TRUE)-_xlfn.NORM.DIST(C21,$I$4,$I$6,TRUE),"")),"") ->  | F21: =IF(AND(C21<>"",D21<>""),IF($H$4<>"",_xlfn.NORM.DIST(D21,$J$4,$J$6,TRUE)*(1-BRLRWT!$H$10/100)-_xlfn.NORM.DIST(C21,$J$4,$J$6,TRUE)*(1-BRLRWT!$H$10/100),IF($J$4<>"",_xlfn.NORM.DIST(D21,$J$4,$J$6,TRUE)-_xlfn.NORM.DIST(C21,$J$4,$J$6,TRUE),"")),"") ->  | H21: =IF(E21<>"",ROUND(E21*BRLRWT!$H$9*1000,0),"") ->  | I21: =IF(F21<>"",ROUND(F21*BRLRWT!$H$9*1000,0),"") -> 
E22: =IF(AND(C22<>"",D22<>""),IF($H$4<>"",_xlfn.NORM.DIST(D22,$I$4,$I$6,TRUE)*BRLRWT!$H$10/100-_xlfn.NORM.DIST(C22,$I$4,$I$6,TRUE)*BRLRWT!$H$10/100,IF($I$4<>"",_xlfn.NORM.DIST(D22,$I$4,$I$6,TRUE)-_xlfn.NORM.DIST(C22,$I$4,$I$6,TRUE),"")),"") ->  | F22: =IF(AND(C22<>"",D22<>""),IF($H$4<>"",_xlfn.NORM.DIST(D22,$J$4,$J$6,TRUE)*(1-BRLRWT!$H$10/100)-_xlfn.NORM.DIST(C22,$J$4,$J$6,TRUE)*(1-BRLRWT!$H$10/100),IF($J$4<>"",_xlfn.NORM.DIST(D22,$J$4,$J$6,TRUE)-_xlfn.NORM.DIST(C22,$J$4,$J$6,TRUE),"")),"") ->  | H22: =IF(E22<>"",ROUND(E22*BRLRWT!$H$9*1000,0),"") ->  | I22: =IF(F22<>"",ROUND(F22*BRLRWT!$H$9*1000,0),"") -> 
E23: =IF(AND(C23<>"",D23<>""),IF($H$4<>"",_xlfn.NORM.DIST(D23,$I$4,$I$6,TRUE)*BRLRWT!$H$10/100-_xlfn.NORM.DIST(C23,$I$4,$I$6,TRUE)*BRLRWT!$H$10/100,IF($I$4<>"",_xlfn.NORM.DIST(D23,$I$4,$I$6,TRUE)-_xlfn.NORM.DIST(C23,$I$4,$I$6,TRUE),"")),"") ->  | F23: =IF(AND(C23<>"",D23<>""),IF($H$4<>"",_xlfn.NORM.DIST(D23,$J$4,$J$6,TRUE)*(1-BRLRWT!$H$10/100)-_xlfn.NORM.DIST(C23,$J$4,$J$6,TRUE)*(1-BRLRWT!$H$10/100),IF($J$4<>"",_xlfn.NORM.DIST(D23,$J$4,$J$6,TRUE)-_xlfn.NORM.DIST(C23,$J$4,$J$6,TRUE),"")),"") ->  | H23: =IF(E23<>"",ROUND(E23*BRLRWT!$H$9*1000,0),"") ->  | I23: =IF(F23<>"",ROUND(F23*BRLRWT!$H$9*1000,0),"") -> 
E24: =IF(AND(C24<>"",D24<>""),IF($H$4<>"",_xlfn.NORM.DIST(D24,$I$4,$I$6,TRUE)*BRLRWT!$H$10/100-_xlfn.NORM.DIST(C24,$I$4,$I$6,TRUE)*BRLRWT!$H$10/100,IF($I$4<>"",_xlfn.NORM.DIST(D24,$I$4,$I$6,TRUE)-_xlfn.NORM.DIST(C24,$I$4,$I$6,TRUE),"")),"") ->  | F24: =IF(AND(C24<>"",D24<>""),IF($H$4<>"",_xlfn.NORM.DIST(D24,$J$4,$J$6,TRUE)*(1-BRLRWT!$H$10/100)-_xlfn.NORM.DIST(C24,$J$4,$J$6,TRUE)*(1-BRLRWT!$H$10/100),IF($J$4<>"",_xlfn.NORM.DIST(D24,$J$4,$J$6,TRUE)-_xlfn.NORM.DIST(C24,$J$4,$J$6,TRUE),"")),"") ->  | H24: =IF(E24<>"",ROUND(E24*BRLRWT!$H$9*1000,0),"") ->  | I24: =IF(F24<>"",ROUND(F24*BRLRWT!$H$9*1000,0),"") -> 
E25: =IF(AND(C25<>"",D25<>""),IF($H$4<>"",_xlfn.NORM.DIST(D25,$I$4,$I$6,TRUE)*BRLRWT!$H$10/100-_xlfn.NORM.DIST(C25,$I$4,$I$6,TRUE)*BRLRWT!$H$10/100,IF($I$4<>"",_xlfn.NORM.DIST(D25,$I$4,$I$6,TRUE)-_xlfn.NORM.DIST(C25,$I$4,$I$6,TRUE),"")),"") ->  | F25: =IF(AND(C25<>"",D25<>""),IF($H$4<>"",_xlfn.NORM.DIST(D25,$J$4,$J$6,TRUE)*(1-BRLRWT!$H$10/100)-_xlfn.NORM.DIST(C25,$J$4,$J$6,TRUE)*(1-BRLRWT!$H$10/100),IF($J$4<>"",_xlfn.NORM.DIST(D25,$J$4,$J$6,TRUE)-_xlfn.NORM.DIST(C25,$J$4,$J$6,TRUE),"")),"") ->  | H25: =IF(E25<>"",ROUND(E25*BRLRWT!$H$9*1000,0),"") ->  | I25: =IF(F25<>"",ROUND(F25*BRLRWT!$H$9*1000,0),"") -> 
E26: =IF(AND(C26<>"",D26<>""),IF($H$4<>"",_xlfn.NORM.DIST(D26,$I$4,$I$6,TRUE)*BRLRWT!$H$10/100-_xlfn.NORM.DIST(C26,$I$4,$I$6,TRUE)*BRLRWT!$H$10/100,IF($I$4<>"",_xlfn.NORM.DIST(D26,$I$4,$I$6,TRUE)-_xlfn.NORM.DIST(C26,$I$4,$I$6,TRUE),"")),"") ->  | F26: =IF(AND(C26<>"",D26<>""),IF($H$4<>"",_xlfn.NORM.DIST(D26,$J$4,$J$6,TRUE)*(1-BRLRWT!$H$10/100)-_xlfn.NORM.DIST(C26,$J$4,$J$6,TRUE)*(1-BRLRWT!$H$10/100),IF($J$4<>"",_xlfn.NORM.DIST(D26,$J$4,$J$6,TRUE)-_xlfn.NORM.DIST(C26,$J$4,$J$6,TRUE),"")),"") ->  | H26: =IF(E26<>"",ROUND(E26*BRLRWT!$H$9*1000,0),"") ->  | I26: =IF(F26<>"",ROUND(F26*BRLRWT!$H$9*1000,0),"") -> 
E27: =IF(AND(C27<>"",D27<>""),IF($H$4<>"",_xlfn.NORM.DIST(D27,$I$4,$I$6,TRUE)*BRLRWT!$H$10/100-_xlfn.NORM.DIST(C27,$I$4,$I$6,TRUE)*BRLRWT!$H$10/100,IF($I$4<>"",_xlfn.NORM.DIST(D27,$I$4,$I$6,TRUE)-_xlfn.NORM.DIST(C27,$I$4,$I$6,TRUE),"")),"") ->  | F27: =IF(AND(C27<>"",D27<>""),IF($H$4<>"",_xlfn.NORM.DIST(D27,$J$4,$J$6,TRUE)*(1-BRLRWT!$H$10/100)-_xlfn.NORM.DIST(C27,$J$4,$J$6,TRUE)*(1-BRLRWT!$H$10/100),IF($J$4<>"",_xlfn.NORM.DIST(D27,$J$4,$J$6,TRUE)-_xlfn.NORM.DIST(C27,$J$4,$J$6,TRUE),"")),"") ->  | H27: =IF(E27<>"",ROUND(E27*BRLRWT!$H$9*1000,0),"") ->  | I27: =IF(F27<>"",ROUND(F27*BRLRWT!$H$9*1000,0),"") -> 
E28: =IF(AND(C28<>"",D28<>""),IF($H$4<>"",_xlfn.NORM.DIST(D28,$I$4,$I$6,TRUE)*BRLRWT!$H$10/100-_xlfn.NORM.DIST(C28,$I$4,$I$6,TRUE)*BRLRWT!$H$10/100,IF($I$4<>"",_xlfn.NORM.DIST(D28,$I$4,$I$6,TRUE)-_xlfn.NORM.DIST(C28,$I$4,$I$6,TRUE),"")),"") ->  | F28: =IF(AND(C28<>"",D28<>""),IF($H$4<>"",_xlfn.NORM.DIST(D28,$J$4,$J$6,TRUE)*(1-BRLRWT!$H$10/100)-_xlfn.NORM.DIST(C28,$J$4,$J$6,TRUE)*(1-BRLRWT!$H$10/100),IF($J$4<>"",_xlfn.NORM.DIST(D28,$J$4,$J$6,TRUE)-_xlfn.NORM.DIST(C28,$J$4,$J$6,TRUE),"")),"") ->  | H28: =IF(E28<>"",ROUND(E28*BRLRWT!$H$9*1000,0),"") ->  | I28: =IF(F28<>"",ROUND(F28*BRLRWT!$H$9*1000,0),"") -> 
E29: =IF(AND(C29<>"",D29<>""),IF($H$4<>"",_xlfn.NORM.DIST(D29,$I$4,$I$6,TRUE)*BRLRWT!$H$10/100-_xlfn.NORM.DIST(C29,$I$4,$I$6,TRUE)*BRLRWT!$H$10/100,IF($I$4<>"",_xlfn.NORM.DIST(D29,$I$4,$I$6,TRUE)-_xlfn.NORM.DIST(C29,$I$4,$I$6,TRUE),"")),"") ->  | F29: =IF(AND(C29<>"",D29<>""),IF($H$4<>"",_xlfn.NORM.DIST(D29,$J$4,$J$6,TRUE)*(1-BRLRWT!$H$10/100)-_xlfn.NORM.DIST(C29,$J$4,$J$6,TRUE)*(1-BRLRWT!$H$10/100),IF($J$4<>"",_xlfn.NORM.DIST(D29,$J$4,$J$6,TRUE)-_xlfn.NORM.DIST(C29,$J$4,$J$6,TRUE),"")),"") ->  | H29: =IF(E29<>"",ROUND(E29*BRLRWT!$H$9*1000,0),"") ->  | I29: =IF(F29<>"",ROUND(F29*BRLRWT!$H$9*1000,0),"") -> 
E30: =IF(AND(C30<>"",D30<>""),IF($H$4<>"",_xlfn.NORM.DIST(D30,$I$4,$I$6,TRUE)*BRLRWT!$H$10/100-_xlfn.NORM.DIST(C30,$I$4,$I$6,TRUE)*BRLRWT!$H$10/100,IF($I$4<>"",_xlfn.NORM.DIST(D30,$I$4,$I$6,TRUE)-_xlfn.NORM.DIST(C30,$I$4,$I$6,TRUE),"")),"") ->  | F30: =IF(AND(C30<>"",D30<>""),IF($H$4<>"",_xlfn.NORM.DIST(D30,$J$4,$J$6,TRUE)*(1-BRLRWT!$H$10/100)-_xlfn.NORM.DIST(C30,$J$4,$J$6,TRUE)*(1-BRLRWT!$H$10/100),IF($J$4<>"",_xlfn.NORM.DIST(D30,$J$4,$J$6,TRUE)-_xlfn.NORM.DIST(C30,$J$4,$J$6,TRUE),"")),"") ->  | H30: =IF(E30<>"",ROUND(E30*BRLRWT!$H$9*1000,0),"") ->  | I30: =IF(F30<>"",ROUND(F30*BRLRWT!$H$9*1000,0),"") -> 
E31: =IF(AND(C31<>"",D31<>""),IF($H$4<>"",_xlfn.NORM.DIST(D31,$I$4,$I$6,TRUE)*BRLRWT!$H$10/100-_xlfn.NORM.DIST(C31,$I$4,$I$6,TRUE)*BRLRWT!$H$10/100,IF($I$4<>"",_xlfn.NORM.DIST(D31,$I$4,$I$6,TRUE)-_xlfn.NORM.DIST(C31,$I$4,$I$6,TRUE),"")),"") ->  | F31: =IF(AND(C31<>"",D31<>""),IF($H$4<>"",_xlfn.NORM.DIST(D31,$J$4,$J$6,TRUE)*(1-BRLRWT!$H$10/100)-_xlfn.NORM.DIST(C31,$J$4,$J$6,TRUE)*(1-BRLRWT!$H$10/100),IF($J$4<>"",_xlfn.NORM.DIST(D31,$J$4,$J$6,TRUE)-_xlfn.NORM.DIST(C31,$J$4,$J$6,TRUE),"")),"") ->  | H31: =IF(E31<>"",ROUND(E31*BRLRWT!$H$9*1000,0),"") ->  | I31: =IF(F31<>"",ROUND(F31*BRLRWT!$H$9*1000,0),"") -> 
E32: =IF(AND(C32<>"",D32<>""),IF($H$4<>"",_xlfn.NORM.DIST(D32,$I$4,$I$6,TRUE)*BRLRWT!$H$10/100-_xlfn.NORM.DIST(C32,$I$4,$I$6,TRUE)*BRLRWT!$H$10/100,IF($I$4<>"",_xlfn.NORM.DIST(D32,$I$4,$I$6,TRUE)-_xlfn.NORM.DIST(C32,$I$4,$I$6,TRUE),"")),"") ->  | F32: =IF(AND(C32<>"",D32<>""),IF($H$4<>"",_xlfn.NORM.DIST(D32,$J$4,$J$6,TRUE)*(1-BRLRWT!$H$10/100)-_xlfn.NORM.DIST(C32,$J$4,$J$6,TRUE)*(1-BRLRWT!$H$10/100),IF($J$4<>"",_xlfn.NORM.DIST(D32,$J$4,$J$6,TRUE)-_xlfn.NORM.DIST(C32,$J$4,$J$6,TRUE),"")),"") ->  | H32: =IF(E32<>"",ROUND(E32*BRLRWT!$H$9*1000,0),"") ->  | I32: =IF(F32<>"",ROUND(F32*BRLRWT!$H$9*1000,0),"") -> 
E33: =IF(AND(C33<>"",D33<>""),IF($H$4<>"",_xlfn.NORM.DIST(D33,$I$4,$I$6,TRUE)*BRLRWT!$H$10/100-_xlfn.NORM.DIST(C33,$I$4,$I$6,TRUE)*BRLRWT!$H$10/100,IF($I$4<>"",_xlfn.NORM.DIST(D33,$I$4,$I$6,TRUE)-_xlfn.NORM.DIST(C33,$I$4,$I$6,TRUE),"")),"") ->  | F33: =IF(AND(C33<>"",D33<>""),IF($H$4<>"",_xlfn.NORM.DIST(D33,$J$4,$J$6,TRUE)*(1-BRLRWT!$H$10/100)-_xlfn.NORM.DIST(C33,$J$4,$J$6,TRUE)*(1-BRLRWT!$H$10/100),IF($J$4<>"",_xlfn.NORM.DIST(D33,$J$4,$J$6,TRUE)-_xlfn.NORM.DIST(C33,$J$4,$J$6,TRUE),"")),"") ->  | H33: =IF(E33<>"",ROUND(E33*BRLRWT!$H$9*1000,0),"") ->  | I33: =IF(F33<>"",ROUND(F33*BRLRWT!$H$9*1000,0),"") -> 
E34: =IF(AND(C34<>"",D34<>""),IF($H$4<>"",_xlfn.NORM.DIST(D34,$I$4,$I$6,TRUE)*BRLRWT!$H$10/100-_xlfn.NORM.DIST(C34,$I$4,$I$6,TRUE)*BRLRWT!$H$10/100,IF($I$4<>"",_xlfn.NORM.DIST(D34,$I$4,$I$6,TRUE)-_xlfn.NORM.DIST(C34,$I$4,$I$6,TRUE),"")),"") ->  | F34: =IF(AND(C34<>"",D34<>""),IF($H$4<>"",_xlfn.NORM.DIST(D34,$J$4,$J$6,TRUE)*(1-BRLRWT!$H$10/100)-_xlfn.NORM.DIST(C34,$J$4,$J$6,TRUE)*(1-BRLRWT!$H$10/100),IF($J$4<>"",_xlfn.NORM.DIST(D34,$J$4,$J$6,TRUE)-_xlfn.NORM.DIST(C34,$J$4,$J$6,TRUE),"")),"") ->  | H34: =IF(E34<>"",ROUND(E34*BRLRWT!$H$9*1000,0),"") ->  | I34: =IF(F34<>"",ROUND(F34*BRLRWT!$H$9*1000,0),"") -> 
E35: =IF(AND(C35<>"",D35<>""),IF($H$4<>"",_xlfn.NORM.DIST(D35,$I$4,$I$6,TRUE)*BRLRWT!$H$10/100-_xlfn.NORM.DIST(C35,$I$4,$I$6,TRUE)*BRLRWT!$H$10/100,IF($I$4<>"",_xlfn.NORM.DIST(D35,$I$4,$I$6,TRUE)-_xlfn.NORM.DIST(C35,$I$4,$I$6,TRUE),"")),"") ->  | F35: =IF(AND(C35<>"",D35<>""),IF($H$4<>"",_xlfn.NORM.DIST(D35,$J$4,$J$6,TRUE)*(1-BRLRWT!$H$10/100)-_xlfn.NORM.DIST(C35,$J$4,$J$6,TRUE)*(1-BRLRWT!$H$10/100),IF($J$4<>"",_xlfn.NORM.DIST(D35,$J$4,$J$6,TRUE)-_xlfn.NORM.DIST(C35,$J$4,$J$6,TRUE),"")),"") ->  | H35: =IF(E35<>"",ROUND(E35*BRLRWT!$H$9*1000,0),"") ->  | I35: =IF(F35<>"",ROUND(F35*BRLRWT!$H$9*1000,0),"") -> 
E36: =IF(AND(C36<>"",D36<>""),IF($H$4<>"",_xlfn.NORM.DIST(D36,$I$4,$I$6,TRUE)*BRLRWT!$H$10/100-_xlfn.NORM.DIST(C36,$I$4,$I$6,TRUE)*BRLRWT!$H$10/100,IF($I$4<>"",_xlfn.NORM.DIST(D36,$I$4,$I$6,TRUE)-_xlfn.NORM.DIST(C36,$I$4,$I$6,TRUE),"")),"") ->  | F36: =IF(AND(C36<>"",D36<>""),IF($H$4<>"",_xlfn.NORM.DIST(D36,$J$4,$J$6,TRUE)*(1-BRLRWT!$H$10/100)-_xlfn.NORM.DIST(C36,$J$4,$J$6,TRUE)*(1-BRLRWT!$H$10/100),IF($J$4<>"",_xlfn.NORM.DIST(D36,$J$4,$J$6,TRUE)-_xlfn.NORM.DIST(C36,$J$4,$J$6,TRUE),"")),"") ->  | H36: =IF(E36<>"",ROUND(E36*BRLRWT!$H$9*1000,0),"") ->  | I36: =IF(F36<>"",ROUND(F36*BRLRWT!$H$9*1000,0),"") -> 
E37: =IF(AND(C37<>"",D37<>""),IF($H$4<>"",_xlfn.NORM.DIST(D37,$I$4,$I$6,TRUE)*BRLRWT!$H$10/100-_xlfn.NORM.DIST(C37,$I$4,$I$6,TRUE)*BRLRWT!$H$10/100,IF($I$4<>"",_xlfn.NORM.DIST(D37,$I$4,$I$6,TRUE)-_xlfn.NORM.DIST(C37,$I$4,$I$6,TRUE),"")),"") ->  | F37: =IF(AND(C37<>"",D37<>""),IF($H$4<>"",_xlfn.NORM.DIST(D37,$J$4,$J$6,TRUE)*(1-BRLRWT!$H$10/100)-_xlfn.NORM.DIST(C37,$J$4,$J$6,TRUE)*(1-BRLRWT!$H$10/100),IF($J$4<>"",_xlfn.NORM.DIST(D37,$J$4,$J$6,TRUE)-_xlfn.NORM.DIST(C37,$J$4,$J$6,TRUE),"")),"") ->  | H37: =IF(E37<>"",ROUND(E37*BRLRWT!$H$9*1000,0),"") ->  | I37: =IF(F37<>"",ROUND(F37*BRLRWT!$H$9*1000,0),"") -> 
E38: =IF(AND(C38<>"",D38<>""),IF($H$4<>"",_xlfn.NORM.DIST(D38,$I$4,$I$6,TRUE)*BRLRWT!$H$10/100-_xlfn.NORM.DIST(C38,$I$4,$I$6,TRUE)*BRLRWT!$H$10/100,IF($I$4<>"",_xlfn.NORM.DIST(D38,$I$4,$I$6,TRUE)-_xlfn.NORM.DIST(C38,$I$4,$I$6,TRUE),"")),"") ->  | F38: =IF(AND(C38<>"",D38<>""),IF($H$4<>"",_xlfn.NORM.DIST(D38,$J$4,$J$6,TRUE)*(1-BRLRWT!$H$10/100)-_xlfn.NORM.DIST(C38,$J$4,$J$6,TRUE)*(1-BRLRWT!$H$10/100),IF($J$4<>"",_xlfn.NORM.DIST(D38,$J$4,$J$6,TRUE)-_xlfn.NORM.DIST(C38,$J$4,$J$6,TRUE),"")),"") ->  | H38: =IF(E38<>"",ROUND(E38*BRLRWT!$H$9*1000,0),"") ->  | I38: =IF(F38<>"",ROUND(F38*BRLRWT!$H$9*1000,0),"") -> 
E39: =IF(AND(C39<>"",D39<>""),IF($H$4<>"",_xlfn.NORM.DIST(D39,$I$4,$I$6,TRUE)*BRLRWT!$H$10/100-_xlfn.NORM.DIST(C39,$I$4,$I$6,TRUE)*BRLRWT!$H$10/100,IF($I$4<>"",_xlfn.NORM.DIST(D39,$I$4,$I$6,TRUE)-_xlfn.NORM.DIST(C39,$I$4,$I$6,TRUE),"")),"") ->  | F39: =IF(AND(C39<>"",D39<>""),IF($H$4<>"",_xlfn.NORM.DIST(D39,$J$4,$J$6,TRUE)*(1-BRLRWT!$H$10/100)-_xlfn.NORM.DIST(C39,$J$4,$J$6,TRUE)*(1-BRLRWT!$H$10/100),IF($J$4<>"",_xlfn.NORM.DIST(D39,$J$4,$J$6,TRUE)-_xlfn.NORM.DIST(C39,$J$4,$J$6,TRUE),"")),"") ->  | H39: =IF(E39<>"",ROUND(E39*BRLRWT!$H$9*1000,0),"") ->  | I39: =IF(F39<>"",ROUND(F39*BRLRWT!$H$9*1000,0),"") -> 
E40: =IF(AND(C40<>"",D40<>""),IF($H$4<>"",_xlfn.NORM.DIST(D40,$I$4,$I$6,TRUE)*BRLRWT!$H$10/100-_xlfn.NORM.DIST(C40,$I$4,$I$6,TRUE)*BRLRWT!$H$10/100,IF($I$4<>"",_xlfn.NORM.DIST(D40,$I$4,$I$6,TRUE)-_xlfn.NORM.DIST(C40,$I$4,$I$6,TRUE),"")),"") ->  | F40: =IF(AND(C40<>"",D40<>""),IF($H$4<>"",_xlfn.NORM.DIST(D40,$J$4,$J$6,TRUE)*(1-BRLRWT!$H$10/100)-_xlfn.NORM.DIST(C40,$J$4,$J$6,TRUE)*(1-BRLRWT!$H$10/100),IF($J$4<>"",_xlfn.NORM.DIST(D40,$J$4,$J$6,TRUE)-_xlfn.NORM.DIST(C40,$J$4,$J$6,TRUE),"")),"") ->  | H40: =IF(E40<>"",ROUND(E40*BRLRWT!$H$9*1000,0),"") ->  | I40: =IF(F40<>"",ROUND(F40*BRLRWT!$H$9*1000,0),"") -> 
E41: =IF(AND(C41<>"",D41<>""),IF($H$4<>"",_xlfn.NORM.DIST(D41,$I$4,$I$6,TRUE)*BRLRWT!$H$10/100-_xlfn.NORM.DIST(C41,$I$4,$I$6,TRUE)*BRLRWT!$H$10/100,IF($I$4<>"",_xlfn.NORM.DIST(D41,$I$4,$I$6,TRUE)-_xlfn.NORM.DIST(C41,$I$4,$I$6,TRUE),"")),"") ->  | F41: =IF(AND(C41<>"",D41<>""),IF($H$4<>"",_xlfn.NORM.DIST(D41,$J$4,$J$6,TRUE)*(1-BRLRWT!$H$10/100)-_xlfn.NORM.DIST(C41,$J$4,$J$6,TRUE)*(1-BRLRWT!$H$10/100),IF($J$4<>"",_xlfn.NORM.DIST(D41,$J$4,$J$6,TRUE)-_xlfn.NORM.DIST(C41,$J$4,$J$6,TRUE),"")),"") ->  | H41: =IF(E41<>"",ROUND(E41*BRLRWT!$H$9*1000,0),"") ->  | I41: =IF(F41<>"",ROUND(F41*BRLRWT!$H$9*1000,0),"") -> 
E42: =IF(AND(C42<>"",D42<>""),IF($H$4<>"",_xlfn.NORM.DIST(D42,$I$4,$I$6,TRUE)*BRLRWT!$H$10/100-_xlfn.NORM.DIST(C42,$I$4,$I$6,TRUE)*BRLRWT!$H$10/100,IF($I$4<>"",_xlfn.NORM.DIST(D42,$I$4,$I$6,TRUE)-_xlfn.NORM.DIST(C42,$I$4,$I$6,TRUE),"")),"") ->  | F42: =IF(AND(C42<>"",D42<>""),IF($H$4<>"",_xlfn.NORM.DIST(D42,$J$4,$J$6,TRUE)*(1-BRLRWT!$H$10/100)-_xlfn.NORM.DIST(C42,$J$4,$J$6,TRUE)*(1-BRLRWT!$H$10/100),IF($J$4<>"",_xlfn.NORM.DIST(D42,$J$4,$J$6,TRUE)-_xlfn.NORM.DIST(C42,$J$4,$J$6,TRUE),"")),"") ->  | H42: =IF(E42<>"",ROUND(E42*BRLRWT!$H$9*1000,0),"") ->  | I42: =IF(F42<>"",ROUND(F42*BRLRWT!$H$9*1000,0),"") -> 
E43: =IF(AND(C43<>"",D43<>""),IF($H$4<>"",_xlfn.NORM.DIST(D43,$I$4,$I$6,TRUE)*BRLRWT!$H$10/100-_xlfn.NORM.DIST(C43,$I$4,$I$6,TRUE)*BRLRWT!$H$10/100,IF($I$4<>"",_xlfn.NORM.DIST(D43,$I$4,$I$6,TRUE)-_xlfn.NORM.DIST(C43,$I$4,$I$6,TRUE),"")),"") ->  | F43: =IF(AND(C43<>"",D43<>""),IF($H$4<>"",_xlfn.NORM.DIST(D43,$J$4,$J$6,TRUE)*(1-BRLRWT!$H$10/100)-_xlfn.NORM.DIST(C43,$J$4,$J$6,TRUE)*(1-BRLRWT!$H$10/100),IF($J$4<>"",_xlfn.NORM.DIST(D43,$J$4,$J$6,TRUE)-_xlfn.NORM.DIST(C43,$J$4,$J$6,TRUE),"")),"") ->  | H43: =IF(E43<>"",ROUND(E43*BRLRWT!$H$9*1000,0),"") ->  | I43: =IF(F43<>"",ROUND(F43*BRLRWT!$H$9*1000,0),"") -> 
E44: =IF(AND(C44<>"",D44<>""),IF($H$4<>"",_xlfn.NORM.DIST(D44,$I$4,$I$6,TRUE)*BRLRWT!$H$10/100-_xlfn.NORM.DIST(C44,$I$4,$I$6,TRUE)*BRLRWT!$H$10/100,IF($I$4<>"",_xlfn.NORM.DIST(D44,$I$4,$I$6,TRUE)-_xlfn.NORM.DIST(C44,$I$4,$I$6,TRUE),"")),"") ->  | F44: =IF(AND(C44<>"",D44<>""),IF($H$4<>"",_xlfn.NORM.DIST(D44,$J$4,$J$6,TRUE)*(1-BRLRWT!$H$10/100)-_xlfn.NORM.DIST(C44,$J$4,$J$6,TRUE)*(1-BRLRWT!$H$10/100),IF($J$4<>"",_xlfn.NORM.DIST(D44,$J$4,$J$6,TRUE)-_xlfn.NORM.DIST(C44,$J$4,$J$6,TRUE),"")),"") ->  | H44: =IF(E44<>"",ROUND(E44*BRLRWT!$H$9*1000,0),"") ->  | I44: =IF(F44<>"",ROUND(F44*BRLRWT!$H$9*1000,0),"") -> 
E45: =IF(AND(C45<>"",D45<>""),IF($H$4<>"",_xlfn.NORM.DIST(D45,$I$4,$I$6,TRUE)*BRLRWT!$H$10/100-_xlfn.NORM.DIST(C45,$I$4,$I$6,TRUE)*BRLRWT!$H$10/100,IF($I$4<>"",_xlfn.NORM.DIST(D45,$I$4,$I$6,TRUE)-_xlfn.NORM.DIST(C45,$I$4,$I$6,TRUE),"")),"") ->  | F45: =IF(AND(C45<>"",D45<>""),IF($H$4<>"",_xlfn.NORM.DIST(D45,$J$4,$J$6,TRUE)*(1-BRLRWT!$H$10/100)-_xlfn.NORM.DIST(C45,$J$4,$J$6,TRUE)*(1-BRLRWT!$H$10/100),IF($J$4<>"",_xlfn.NORM.DIST(D45,$J$4,$J$6,TRUE)-_xlfn.NORM.DIST(C45,$J$4,$J$6,TRUE),"")),"") ->  | H45: =IF(E45<>"",ROUND(E45*BRLRWT!$H$9*1000,0),"") ->  | I45: =IF(F45<>"",ROUND(F45*BRLRWT!$H$9*1000,0),"") -> 
E46: =IF(AND(C46<>"",D46<>""),IF($H$4<>"",_xlfn.NORM.DIST(D46,$I$4,$I$6,TRUE)*BRLRWT!$H$10/100-_xlfn.NORM.DIST(C46,$I$4,$I$6,TRUE)*BRLRWT!$H$10/100,IF($I$4<>"",_xlfn.NORM.DIST(D46,$I$4,$I$6,TRUE)-_xlfn.NORM.DIST(C46,$I$4,$I$6,TRUE),"")),"") ->  | F46: =IF(AND(C46<>"",D46<>""),IF($H$4<>"",_xlfn.NORM.DIST(D46,$J$4,$J$6,TRUE)*(1-BRLRWT!$H$10/100)-_xlfn.NORM.DIST(C46,$J$4,$J$6,TRUE)*(1-BRLRWT!$H$10/100),IF($J$4<>"",_xlfn.NORM.DIST(D46,$J$4,$J$6,TRUE)-_xlfn.NORM.DIST(C46,$J$4,$J$6,TRUE),"")),"") ->  | H46: =IF(E46<>"",ROUND(E46*BRLRWT!$H$9*1000,0),"") ->  | I46: =IF(F46<>"",ROUND(F46*BRLRWT!$H$9*1000,0),"") -> 
E47: =IF(AND(C47<>"",D47<>""),IF($H$4<>"",_xlfn.NORM.DIST(D47,$I$4,$I$6,TRUE)*BRLRWT!$H$10/100-_xlfn.NORM.DIST(C47,$I$4,$I$6,TRUE)*BRLRWT!$H$10/100,IF($I$4<>"",_xlfn.NORM.DIST(D47,$I$4,$I$6,TRUE)-_xlfn.NORM.DIST(C47,$I$4,$I$6,TRUE),"")),"") ->  | F47: =IF(AND(C47<>"",D47<>""),IF($H$4<>"",_xlfn.NORM.DIST(D47,$J$4,$J$6,TRUE)*(1-BRLRWT!$H$10/100)-_xlfn.NORM.DIST(C47,$J$4,$J$6,TRUE)*(1-BRLRWT!$H$10/100),IF($J$4<>"",_xlfn.NORM.DIST(D47,$J$4,$J$6,TRUE)-_xlfn.NORM.DIST(C47,$J$4,$J$6,TRUE),"")),"") ->  | H47: =IF(E47<>"",ROUND(E47*BRLRWT!$H$9*1000,0),"") ->  | I47: =IF(F47<>"",ROUND(F47*BRLRWT!$H$9*1000,0),"") -> 
E48: =IF(AND(C48<>"",D48<>""),IF($H$4<>"",_xlfn.NORM.DIST(D48,$I$4,$I$6,TRUE)*BRLRWT!$H$10/100-_xlfn.NORM.DIST(C48,$I$4,$I$6,TRUE)*BRLRWT!$H$10/100,IF($I$4<>"",_xlfn.NORM.DIST(D48,$I$4,$I$6,TRUE)-_xlfn.NORM.DIST(C48,$I$4,$I$6,TRUE),"")),"") ->  | F48: =IF(AND(C48<>"",D48<>""),IF($H$4<>"",_xlfn.NORM.DIST(D48,$J$4,$J$6,TRUE)*(1-BRLRWT!$H$10/100)-_xlfn.NORM.DIST(C48,$J$4,$J$6,TRUE)*(1-BRLRWT!$H$10/100),IF($J$4<>"",_xlfn.NORM.DIST(D48,$J$4,$J$6,TRUE)-_xlfn.NORM.DIST(C48,$J$4,$J$6,TRUE),"")),"") ->  | H48: =IF(E48<>"",ROUND(E48*BRLRWT!$H$9*1000,0),"") ->  | I48: =IF(F48<>"",ROUND(F48*BRLRWT!$H$9*1000,0),"") -> 
E49: =IF(AND(C49<>"",D49<>""),IF($H$4<>"",_xlfn.NORM.DIST(D49,$I$4,$I$6,TRUE)*BRLRWT!$H$10/100-_xlfn.NORM.DIST(C49,$I$4,$I$6,TRUE)*BRLRWT!$H$10/100,IF($I$4<>"",_xlfn.NORM.DIST(D49,$I$4,$I$6,TRUE)-_xlfn.NORM.DIST(C49,$I$4,$I$6,TRUE),"")),"") ->  | F49: =IF(AND(C49<>"",D49<>""),IF($H$4<>"",_xlfn.NORM.DIST(D49,$J$4,$J$6,TRUE)*(1-BRLRWT!$H$10/100)-_xlfn.NORM.DIST(C49,$J$4,$J$6,TRUE)*(1-BRLRWT!$H$10/100),IF($J$4<>"",_xlfn.NORM.DIST(D49,$J$4,$J$6,TRUE)-_xlfn.NORM.DIST(C49,$J$4,$J$6,TRUE),"")),"") ->  | H49: =IF(E49<>"",ROUND(E49*BRLRWT!$H$9*1000,0),"") ->  | I49: =IF(F49<>"",ROUND(F49*BRLRWT!$H$9*1000,0),"") -> 
E50: =IF(AND(C50<>"",D50<>""),IF($H$4<>"",_xlfn.NORM.DIST(D50,$I$4,$I$6,TRUE)*BRLRWT!$H$10/100-_xlfn.NORM.DIST(C50,$I$4,$I$6,TRUE)*BRLRWT!$H$10/100,IF($I$4<>"",_xlfn.NORM.DIST(D50,$I$4,$I$6,TRUE)-_xlfn.NORM.DIST(C50,$I$4,$I$6,TRUE),"")),"") ->  | F50: =IF(AND(C50<>"",D50<>""),IF($H$4<>"",_xlfn.NORM.DIST(D50,$J$4,$J$6,TRUE)*(1-BRLRWT!$H$10/100)-_xlfn.NORM.DIST(C50,$J$4,$J$6,TRUE)*(1-BRLRWT!$H$10/100),IF($J$4<>"",_xlfn.NORM.DIST(D50,$J$4,$J$6,TRUE)-_xlfn.NORM.DIST(C50,$J$4,$J$6,TRUE),"")),"") ->  | H50: =IF(E50<>"",ROUND(E50*BRLRWT!$H$9*1000,0),"") ->  | I50: =IF(F50<>"",ROUND(F50*BRLRWT!$H$9*1000,0),"") -> 

Sheet EvisWT
A8: 3-1. Results - Eviscerated Weight Distribution | K8: Breed
B10: Weight (lbs) | D10: Percentage | G10: Numbers
B11: Min. (>) | C11: Max. (≤) | D11: Male | E11: Female | F11: S/Run | G11: Male | H11: Female | I11: S/Run
B12: ="-inf." -> -inf. | C12: =$M$13 -> 2.94436468 | D12: =IF($L$30<>"",IF(INPUT!$H$10=1,_xlfn.NORM.DIST(C12,$L$30,$M$30,TRUE)*BRLRWT!$H$10/100,_xlfn.NORM.DIST(C12,$L$30,$M$30,TRUE)),"") -> 7.46877502e-11 | E12: =IF($L$31<>"",IF(INPUT!$H$10=1,_xlfn.NORM.DIST(C12,$L$31,$M$31,TRUE)*(1-BRLRWT!$H$10/100),_xlfn.NORM.DIST(C12,$L$31,$M$31,TRUE)),"") -> 4.059935173e-08 | F12: =IF(D12<>"",IF(E12<>"",D12+E12,""),"") -> 4.067403948e-08 | G12: =IF(D12<>"",D12*BRLRWT!$H$9*1000,"") -> 7.46877502e-06 | H12: =IF(E12<>"",E12*BRLRWT!$H$9*1000,"") -> 0.004059935173 | I12: =IF(G12<>"",IF(H12<>"",G12+H12,""),"") -> 0.004067403948
B13: =C12 -> 2.94436468 | C13: =C12+$M$14 -> 3.133012955 | D13: =IF($L$30<>"",IF(INPUT!$H$10=1,(_xlfn.NORM.DIST(C13,$L$30,$M$30,TRUE)-_xlfn.NORM.DIST(B13,$L$30,$M$30,TRUE))*BRLRWT!$H$10/100,(_xlfn.NORM.DIST(C13,$L$30,$M$30,TRUE)-_xlfn.NORM.DIST(B13,$L$30,$M$30,TRUE))),"") -> 5.539156525e-10 | E13: =IF($L$31<>"",IF(INPUT!$H$10=1,(_xlfn.NORM.DIST(C13,$L$31,$M$31,TRUE)-_xlfn.NORM.DIST(B13,$L$31,$M$31,TRUE))*(1-BRLRWT!$H$10/100),(_xlfn.NORM.DIST(C13,$L$31,$M$31,TRUE)-_xlfn.NORM.DIST(B13,$L$31,$M$31,TRUE))),"") -> 2.839072466e-07 | F13: =IF(D13<>"",IF(E13<>"",D13+E13,""),"") -> 2.844611623e-07 | G13: =IF(D13<>"",D13*BRLRWT!$H$9*1000,"") -> 5.539156525e-05 | H13: =IF(E13<>"",E13*BRLRWT!$H$9*1000,"") -> 0.02839072466 | I13: =IF(G13<>"",IF(H13<>"",G13+H13,""),"") -> 0.02844611623 | L13: min | M13: 2.94436468
B14: =C13 -> 3.133012955 | C14: =C13+$M$14 -> 3.32166123 | D14: =IF($L$30<>"",IF(INPUT!$H$10=1,(_xlfn.NORM.DIST(C14,$L$30,$M$30,TRUE)-_xlfn.NORM.DIST(B14,$L$30,$M$30,TRUE))*BRLRWT!$H$10/100,(_xlfn.NORM.DIST(C14,$L$30,$M$30,TRUE)-_xlfn.NORM.DIST(B14,$L$30,$M$30,TRUE))),"") -> 4.101092653e-09 | E14: =IF($L$31<>"",IF(INPUT!$H$10=1,(_xlfn.NORM.DIST(C14,$L$31,$M$31,TRUE)-_xlfn.NORM.DIST(B14,$L$31,$M$31,TRUE))*(1-BRLRWT!$H$10/100),(_xlfn.NORM.DIST(C14,$L$31,$M$31,TRUE)-_xlfn.NORM.DIST(B14,$L$31,$M$31,TRUE))),"") -> 1.901660911e-06 | F14: =IF(D14<>"",IF(E14<>"",D14+E14,""),"") -> 1.905762004e-06 | G14: =IF(D14<>"",D14*BRLRWT!$H$9*1000,"") -> 0.0004101092653 | H14: =IF(E14<>"",E14*BRLRWT!$H$9*1000,"") -> 0.1901660911 | I14: =IF(G14<>"",IF(H14<>"",G14+H14,""),"") -> 0.1905762004 | L14: step size | M14: 0.188648275
B15: =C14 -> 3.32166123 | C15: =C14+$M$14 -> 3.510309505 | D15: =IF($L$30<>"",IF(INPUT!$H$10=1,(_xlfn.NORM.DIST(C15,$L$30,$M$30,TRUE)-_xlfn.NORM.DIST(B15,$L$30,$M$30,TRUE))*BRLRWT!$H$10/100,(_xlfn.NORM.DIST(C15,$L$30,$M$30,TRUE)-_xlfn.NORM.DIST(B15,$L$30,$M$30,TRUE))),"") -> 2.709378726e-08 | E15: =IF($L$31<>"",IF(INPUT!$H$10=1,(_xlfn.NORM.DIST(C15,$L$31,$M$31,TRUE)-_xlfn.NORM.DIST(B15,$L$31,$M$31,TRUE))*(1-BRLRWT!$H$10/100),(_xlfn.NORM.DIST(C15,$L$31,$M$31,TRUE)-_xlfn.NORM.DIST(B15,$L$31,$M$31,TRUE))),"") -> 1.08920847e-05 | F15: 1.091917849e-05 | G15: =IF(D15<>"",D15*BRLRWT!$H$9*1000,"") -> 0.002709378726 | H15: =IF(E15<>"",E15*BRLRWT!$H$9*1000,"") -> 1.08920847 | I15: 1.091917849
B16: 3.510309505 | C16: 3.69895778 | D16: =IF($L$30<>"",IF(INPUT!$H$10=1,(_xlfn.NORM.DIST(C16,$L$30,$M$30,TRUE)-_xlfn.NORM.DIST(B16,$L$30,$M$30,TRUE))*BRLRWT!$H$10/100,(_xlfn.NORM.DIST(C16,$L$30,$M$30,TRUE)-_xlfn.NORM.DIST(B16,$L$30,$M$30,TRUE))),"") -> 1.597209551e-07 | E16: =IF($L$31<>"",IF(INPUT!$H$10=1,(_xlfn.NORM.DIST(C16,$L$31,$M$31,TRUE)-_xlfn.NORM.DIST(B16,$L$31,$M$31,TRUE))*(1-BRLRWT!$H$10/100),(_xlfn.NORM.DIST(C16,$L$31,$M$31,TRUE)-_xlfn.NORM.DIST(B16,$L$31,$M$31,TRUE))),"") -> 5.334945358e-05 | F16: 5.350917454e-05 | G16: =IF(D16<>"",D16*BRLRWT!$H$9*1000,"") -> 0.01597209551 | H16: =IF(E16<>"",E16*BRLRWT!$H$9*1000,"") -> 5.334945358 | I16: 5.350917454
B17: 3.69895778 | C17: 3.887606055 | D17: =IF($L$30<>"",IF(INPUT!$H$10=1,(_xlfn.NORM.DIST(C17,$L$30,$M$30,TRUE)-_xlfn.NORM.DIST(B17,$L$30,$M$30,TRUE))*BRLRWT!$H$10/100,(_xlfn.NORM.DIST(C17,$L$30,$M$30,TRUE)-_xlfn.NORM.DIST(B17,$L$30,$M$30,TRUE))),"") -> 8.402020561e-07 | E17: =IF($L$31<>"",IF(INPUT!$H$10=1,(_xlfn.NORM.DIST(C17,$L$31,$M$31,TRUE)-_xlfn.NORM.DIST(B17,$L$31,$M$31,TRUE))*(1-BRLRWT!$H$10/100),(_xlfn.NORM.DIST(C17,$L$31,$M$31,TRUE)-_xlfn.NORM.DIST(B17,$L$31,$M$31,TRUE))),"") -> 0.0002234645485 | F17: 0.0002243047505 | G17: =IF(D17<>"",D17*BRLRWT!$H$9*1000,"") -> 0.08402020561 | H17: =IF(E17<>"",E17*BRLRWT!$H$9*1000,"") -> 22.34645485 | I17: 22.43047505
B18: 3.887606055 | C18: 4.07625433 | D18: =IF($L$30<>"",IF(INPUT!$H$10=1,(_xlfn.NORM.DIST(C18,$L$30,$M$30,TRUE)-_xlfn.NORM.DIST(B18,$L$30,$M$30,TRUE))*BRLRWT!$H$10/100,(_xlfn.NORM.DIST(C18,$L$30,$M$30,TRUE)-_xlfn.NORM.DIST(B18,$L$30,$M$30,TRUE))),"") -> 3.944051482e-06 | E18: =IF($L$31<>"",IF(INPUT!$H$10=1,(_xlfn.NORM.DIST(C18,$L$31,$M$31,TRUE)-_xlfn.NORM.DIST(B18,$L$31,$M$31,TRUE))*(1-BRLRWT!$H$10/100),(_xlfn.NORM.DIST(C18,$L$31,$M$31,TRUE)-_xlfn.NORM.DIST(B18,$L$31,$M$31,TRUE))),"") -> 0.0008005056895 | F18: 0.0008044497409 | G18: =IF(D18<>"",D18*BRLRWT!$H$9*1000,"") -> 0.3944051482 | H18: =IF(E18<>"",E18*BRLRWT!$H$9*1000,"") -> 80.05056895 | I18: 80.44497409
B19: 4.07625433 | C19: 4.264902605 | D19: =IF($L$30<>"",IF(INPUT!$H$10=1,(_xlfn.NORM.DIST(C19,$L$30,$M$30,TRUE)-_xlfn.NORM.DIST(B19,$L$30,$M$30,TRUE))*BRLRWT!$H$10/100,(_xlfn.NORM.DIST(C19,$L$30,$M$30,TRUE)-_xlfn.NORM.DIST(B19,$L$30,$M$30,TRUE))),"") -> 1.652134598e-05 | E19: =IF($L$31<>"",IF(INPUT!$H$10=1,(_xlfn.NORM.DIST(C19,$L$31,$M$31,TRUE)-_xlfn.NORM.DIST(B19,$L$31,$M$31,TRUE))*(1-BRLRWT!$H$10/100),(_xlfn.NORM.DIST(C19,$L$31,$M$31,TRUE)-_xlfn.NORM.DIST(B19,$L$31,$M$31,TRUE))),"") -> 0.0024525247 | F19: 0.002469046046 | G19: =IF(D19<>"",D19*BRLRWT!$H$9*1000,"") -> 1.652134598 | H19: =IF(E19<>"",E19*BRLRWT!$H$9*1000,"") -> 245.25247 | I19: 246.9046046
B20: 4.264902605 | C20: 4.45355088 | D20: =IF($L$30<>"",IF(INPUT!$H$10=1,(_xlfn.NORM.DIST(C20,$L$30,$M$30,TRUE)-_xlfn.NORM.DIST(B20,$L$30,$M$30,TRUE))*BRLRWT!$H$10/100,(_xlfn.NORM.DIST(C20,$L$30,$M$30,TRUE)-_xlfn.NORM.DIST(B20,$L$30,$M$30,TRUE))),"") -> 6.175881677e-05 | E20: =IF($L$31<>"",IF(INPUT!$H$10=1,(_xlfn.NORM.DIST(C20,$L$31,$M$31,TRUE)-_xlfn.NORM.DIST(B20,$L$31,$M$31,TRUE))*(1-BRLRWT!$H$10/100),(_xlfn.NORM.DIST(C20,$L$31,$M$31,TRUE)-_xlfn.NORM.DIST(B20,$L$31,$M$31,TRUE))),"") -> 0.006426433734 | F20: 0.00648819255 | G20: =IF(D20<>"",D20*BRLRWT!$H$9*1000,"") -> 6.175881677 | H20: =IF(E20<>"",E20*BRLRWT!$H$9*1000,"") -> 642.6433734 | I20: 648.819255
B21: 4.45355088 | C21: 4.642199155 | D21: =IF($L$30<>"",IF(INPUT!$H$10=1,(_xlfn.NORM.DIST(C21,$L$30,$M$30,TRUE)-_xlfn.NORM.DIST(B21,$L$30,$M$30,TRUE))*BRLRWT!$H$10/100,(_xlfn.NORM.DIST(C21,$L$30,$M$30,TRUE)-_xlfn.NORM.DIST(B21,$L$30,$M$30,TRUE))),"") -> 0.0002060200512 | E21: =IF($L$31<>"",IF(INPUT!$H$10=1,(_xlfn.NORM.DIST(C21,$L$31,$M$31,TRUE)-_xlfn.NORM.DIST(B21,$L$31,$M$31,TRUE))*(1-BRLRWT!$H$10/100),(_xlfn.NORM.DIST(C21,$L$31,$M$31,TRUE)-_xlfn.NORM.DIST(B21,$L$31,$M$31,TRUE))),"") -> 0.01440280734 | F21: 0.01460882739 | G21: =IF(D21<>"",D21*BRLRWT!$H$9*1000,"") -> 20.60200512 | H21: =IF(E21<>"",E21*BRLRWT!$H$9*1000,"") -> 1440.280734 | I21: 1460.882739
B22: 4.642199155 | C22: 4.83084743 | D22: =IF($L$30<>"",IF(INPUT!$H$10=1,(_xlfn.NORM.DIST(C22,$L$30,$M$30,TRUE)-_xlfn.NORM.DIST(B22,$L$30,$M$30,TRUE))*BRLRWT!$H$10/100,(_xlfn.NORM.DIST(C22,$L$30,$M$30,TRUE)-_xlfn.NORM.DIST(B22,$L$30,$M$30,TRUE))),"") -> 0.0006133139978 | E22: =IF($L$31<>"",IF(INPUT!$H$10=1,(_xlfn.NORM.DIST(C22,$L$31,$M$31,TRUE)-_xlfn.NORM.DIST(B22,$L$31,$M$31,TRUE))*(1-BRLRWT!$H$10/100),(_xlfn.NORM.DIST(C22,$L$31,$M$31,TRUE)-_xlfn.NORM.DIST(B22,$L$31,$M$31,TRUE))),"") -> 0.02760931942 | F22: 0.02822263342 | G22: =IF(D22<>"",D22*BRLRWT!$H$9*1000,"") -> 61.33139978 | H22: =IF(E22<>"",E22*BRLRWT!$H$9*1000,"") -> 2760.931942 | I22: 2822.263342
B23: 4.83084743 | C23: 5.019495705 | D23: =IF($L$30<>"",IF(INPUT!$H$10=1,(_xlfn.NORM.DIST(C23,$L$30,$M$30,TRUE)-_xlfn.NORM.DIST(B23,$L$30,$M$30,TRUE))*BRLRWT!$H$10/100,(_xlfn.NORM.DIST(C23,$L$30,$M$30,TRUE)-_xlfn.NORM.DIST(B23,$L$30,$M$30,TRUE))),"") -> 0.001629388164 | E23: =IF($L$31<>"",IF(INPUT!$H$10=1,(_xlfn.NORM.DIST(C23,$L$31,$M$31,TRUE)-_xlfn.NORM.DIST(B23,$L$31,$M$31,TRUE))*(1-BRLRWT!$H$10/100),(_xlfn.NORM.DIST(C23,$L$31,$M$31,TRUE)-_xlfn.NORM.DIST(B23,$L$31,$M$31,TRUE))),"") -> 0.04526939408 | F23: 0.04689878224 | G23: =IF(D23<>"",D23*BRLRWT!$H$9*1000,"") -> 162.9388164 | H23: =IF(E23<>"",E23*BRLRWT!$H$9*1000,"") -> 4526.939408 | I23: 4689.878224
B24: 5.019495705 | C24: 5.20814398 | D24: =IF($L$30<>"",IF(INPUT!$H$10=1,(_xlfn.NORM.DIST(C24,$L$30,$M$30,TRUE)-_xlfn.NORM.DIST(B24,$L$30,$M$30,TRUE))*BRLRWT!$H$10/100,(_xlfn.NORM.DIST(C24,$L$30,$M$30,TRUE)-_xlfn.NORM.DIST(B24,$L$30,$M$30,TRUE))),"") -> 0.00386313147 | E24: =IF($L$31<>"",IF(INPUT!$H$10=1,(_xlfn.NORM.DIST(C24,$L$31,$M$31,TRUE)-_xlfn.NORM.DIST(B24,$L$31,$M$31,TRUE))*(1-BRLRWT!$H$10/100),(_xlfn.NORM.DIST(C24,$L$31,$M$31,TRUE)-_xlfn.NORM.DIST(B24,$L$31,$M$31,TRUE))),"") -> 0.06348937162 | F24: 0.06735250309 | G24: =IF(D24<>"",D24*BRLRWT!$H$9*1000,"") -> 386.313147 | H24: =IF(E24<>"",E24*BRLRWT!$H$9*1000,"") -> 6348.937162 | I24: 6735.250309
B25: 5.20814398 | C25: 5.396792255 | D25: =IF($L$30<>"",IF(INPUT!$H$10=1,(_xlfn.NORM.DIST(C25,$L$30,$M$30,TRUE)-_xlfn.NORM.DIST(B25,$L$30,$M$30,TRUE))*BRLRWT!$H$10/100,(_xlfn.NORM.DIST(C25,$L$30,$M$30,TRUE)-_xlfn.NORM.DIST(B25,$L$30,$M$30,TRUE))),"") -> 0.008173952727 | E25: =IF($L$31<>"",IF(INPUT!$H$10=1,(_xlfn.NORM.DIST(C25,$L$31,$M$31,TRUE)-_xlfn.NORM.DIST(B25,$L$31,$M$31,TRUE))*(1-BRLRWT!$H$10/100),(_xlfn.NORM.DIST(C25,$L$31,$M$31,TRUE)-_xlfn.NORM.DIST(B25,$L$31,$M$31,TRUE))),"") -> 0.07616396366 | F25: 0.08433791639 | G25: =IF(D25<>"",D25*BRLRWT!$H$9*1000,"") -> 817.3952727 | H25: =IF(E25<>"",E25*BRLRWT!$H$9*1000,"") -> 7616.396366 | I25: 8433.791639
B26: 5.396792255 | C26: 5.58544053 | D26: =IF($L$30<>"",IF(INPUT!$H$10=1,(_xlfn.NORM.DIST(C26,$L$30,$M$30,TRUE)-_xlfn.NORM.DIST(B26,$L$30,$M$30,TRUE))*BRLRWT!$H$10/100,(_xlfn.NORM.DIST(C26,$L$30,$M$30,TRUE)-_xlfn.NORM.DIST(B26,$L$30,$M$30,TRUE))),"") -> 0.01543499093 | E26: =IF($L$31<>"",IF(INPUT!$H$10=1,(_xlfn.NORM.DIST(C26,$L$31,$M$31,TRUE)-_xlfn.NORM.DIST(B26,$L$31,$M$31,TRUE))*(1-BRLRWT!$H$10/100),(_xlfn.NORM.DIST(C26,$L$31,$M$31,TRUE)-_xlfn.NORM.DIST(B26,$L$31,$M$31,TRUE))),"") -> 0.07815428677 | F26: 0.09358927771 | G26: =IF(D26<>"",D26*BRLRWT!$H$9*1000,"") -> 1543.499093 | H26: =IF(E26<>"",E26*BRLRWT!$H$9*1000,"") -> 7815.428677 | I26: 9358.927771
B27: 5.58544053 | C27: 5.774088805 | D27: =IF($L$30<>"",IF(INPUT!$H$10=1,(_xlfn.NORM.DIST(C27,$L$30,$M$30,TRUE)-_xlfn.NORM.DIST(B27,$L$30,$M$30,TRUE))*BRLRWT!$H$10/100,(_xlfn.NORM.DIST(C27,$L$30,$M$30,TRUE)-_xlfn.NORM.DIST(B27,$L$30,$M$30,TRUE))),"") -> 0.02601151377 | E27: =IF($L$31<>"",IF(INPUT!$H$10=1,(_xlfn.NORM.DIST(C27,$L$31,$M$31,TRUE)-_xlfn.NORM.DIST(B27,$L$31,$M$31,TRUE))*(1-BRLRWT!$H$10/100),(_xlfn.NORM.DIST(C27,$L$31,$M$31,TRUE)-_xlfn.NORM.DIST(B27,$L$31,$M$31,TRUE))),"") -> 0.06859795968 | F27: 0.09460947345 | G27: =IF(D27<>"",D27*BRLRWT!$H$9*1000,"") -> 2601.151377 | H27: =IF(E27<>"",E27*BRLRWT!$H$9*1000,"") -> 6859.795968 | I27: 9460.947345
B28: 5.774088805 | C28: 5.96273708 | D28: =IF($L$30<>"",IF(INPUT!$H$10=1,(_xlfn.NORM.DIST(C28,$L$30,$M$30,TRUE)-_xlfn.NORM.DIST(B28,$L$30,$M$30,TRUE))*BRLRWT!$H$10/100,(_xlfn.NORM.DIST(C28,$L$30,$M$30,TRUE)-_xlfn.NORM.DIST(B28,$L$30,$M$30,TRUE))),"") -> 0.03912124446 | E28: =IF($L$31<>"",IF(INPUT!$H$10=1,(_xlfn.NORM.DIST(C28,$L$31,$M$31,TRUE)-_xlfn.NORM.DIST(B28,$L$31,$M$31,TRUE))*(1-BRLRWT!$H$10/100),(_xlfn.NORM.DIST(C28,$L$31,$M$31,TRUE)-_xlfn.NORM.DIST(B28,$L$31,$M$31,TRUE))),"") -> 0.05150185328 | F28: 0.09062309774 | G28: =IF(D28<>"",D28*BRLRWT!$H$9*1000,"") -> 3912.124446 | H28: =IF(E28<>"",E28*BRLRWT!$H$9*1000,"") -> 5150.185328 | I28: 9062.309774 | K28: - Summary
B29: 5.96273708 | C29: 6.151385355 | D29: =IF($L$30<>"",IF(INPUT!$H$10=1,(_xlfn.NORM.DIST(C29,$L$30,$M$30,TRUE)-_xlfn.NORM.DIST(B29,$L$30,$M$30,TRUE))*BRLRWT!$H$10/100,(_xlfn.NORM.DIST(C29,$L$30,$M$30,TRUE)-_xlfn.NORM.DIST(B29,$L$30,$M$30,TRUE))),"") -> 0.05251092699 | E29: =IF($L$31<>"",IF(INPUT!$H$10=1,(_xlfn.NORM.DIST(C29,$L$31,$M$31,TRUE)-_xlfn.NORM.DIST(B29,$L$31,$M$31,TRUE))*(1-BRLRWT!$H$10/100),(_xlfn.NORM.DIST(C29,$L$31,$M$31,TRUE)-_xlfn.NORM.DIST(B29,$L$31,$M$31,TRUE))),"") -> 0.03307377033 | F29: 0.08558469732 | G29: =IF(D29<>"",D29*BRLRWT!$H$9*1000,"") -> 5251.092699 | H29: =IF(E29<>"",E29*BRLRWT!$H$9*1000,"") -> 3307.377033 | I29: 8558.469732 | K29: Unit (lbs) | L29: Mean | M29: Std. Dev. | N29: C.V. (%)
B30: 6.151385355 | C30: 6.34003363 | D30: =IF($L$30<>"",IF(INPUT!$H$10=1,(_xlfn.NORM.DIST(C30,$L$30,$M$30,TRUE)-_xlfn.NORM.DIST(B30,$L$30,$M$30,TRUE))*BRLRWT!$H$10/100,(_xlfn.NORM.DIST(C30,$L$30,$M$30,TRUE)-_xlfn.NORM.DIST(B30,$L$30,$M$30,TRUE))),"") -> 0.06290400509 | E30: =IF($L$31<>"",IF(INPUT!$H$10=1,(_xlfn.NORM.DIST(C30,$L$31,$M$31,TRUE)-_xlfn.NORM.DIST(B30,$L$31,$M$31,TRUE))*(1-BRLRWT!$H$10/100),(_xlfn.NORM.DIST(C30,$L$31,$M$31,TRUE)-_xlfn.NORM.DIST(B30,$L$31,$M$31,TRUE))),"") -> 0.01816717957 | F30: 0.08107118466 | G30: =IF(D30<>"",D30*BRLRWT!$H$9*1000,"") -> 6290.400509 | H30: =IF(E30<>"",E30*BRLRWT!$H$9*1000,"") -> 1816.717957 | I30: 8107.118466 | K30: Male | L30: 6.450843626 | M30: 0.5566347265 | N30: =IF(L30<>"",M30/L30*100,"") -> 8.628867149
B31: 6.34003363 | C31: 6.528681905 | D31: =IF($L$30<>"",IF(INPUT!$H$10=1,(_xlfn.NORM.DIST(C31,$L$30,$M$30,TRUE)-_xlfn.NORM.DIST(B31,$L$30,$M$30,TRUE))*BRLRWT!$H$10/100,(_xlfn.NORM.DIST(C31,$L$30,$M$30,TRUE)-_xlfn.NORM.DIST(B31,$L$30,$M$30,TRUE))),"") -> 0.06725111438 | E31: =IF($L$31<>"",IF(INPUT!$H$10=1,(_xlfn.NORM.DIST(C31,$L$31,$M$31,TRUE)-_xlfn.NORM.DIST(B31,$L$31,$M$31,TRUE))*(1-BRLRWT!$H$10/100),(_xlfn.NORM.DIST(C31,$L$31,$M$31,TRUE)-_xlfn.NORM.DIST(B31,$L$31,$M$31,TRUE))),"") -> 0.00853544047 | F31: 0.07578655485 | G31: =IF(D31<>"",D31*BRLRWT!$H$9*1000,"") -> 6725.111438 | H31: =IF(E31<>"",E31*BRLRWT!$H$9*1000,"") -> 853.544047 | I31: 7578.655485 | K31: Female | L31: 5.42794396 | M31: 0.4741538264 | N31: =IF(L31<>"",M31/L31*100,"") -> 8.735422287
B32: 6.528681905 | C32: 6.71733018 | D32: =IF($L$30<>"",IF(INPUT!$H$10=1,(_xlfn.NORM.DIST(C32,$L$30,$M$30,TRUE)-_xlfn.NORM.DIST(B32,$L$30,$M$30,TRUE))*BRLRWT!$H$10/100,(_xlfn.NORM.DIST(C32,$L$30,$M$30,TRUE)-_xlfn.NORM.DIST(B32,$L$30,$M$30,TRUE))),"") -> 0.06416727742 | E32: =IF($L$31<>"",IF(INPUT!$H$10=1,(_xlfn.NORM.DIST(C32,$L$31,$M$31,TRUE)-_xlfn.NORM.DIST(B32,$L$31,$M$31,TRUE))*(1-BRLRWT!$H$10/100),(_xlfn.NORM.DIST(C32,$L$31,$M$31,TRUE)-_xlfn.NORM.DIST(B32,$L$31,$M$31,TRUE))),"") -> 0.003429956951 | F32: 0.06759723437 | G32: =IF(D32<>"",D32*BRLRWT!$H$9*1000,"") -> 6416.727742 | H32: =IF(E32<>"",E32*BRLRWT!$H$9*1000,"") -> 342.9956951 | I32: 6759.723437 | K32: S/Run | L32: 5.939393793 | M32: 0.7272640281 | N32: =IF(L32<>"",M32/L32*100,"") -> 12.24475179
B33: 6.71733018 | C33: 6.905978455 | D33: =IF($L$30<>"",IF(INPUT!$H$10=1,(_xlfn.NORM.DIST(C33,$L$30,$M$30,TRUE)-_xlfn.NORM.DIST(B33,$L$30,$M$30,TRUE))*BRLRWT!$H$10/100,(_xlfn.NORM.DIST(C33,$L$30,$M$30,TRUE)-_xlfn.NORM.DIST(B33,$L$30,$M$30,TRUE))),"") -> 0.05464122457 | E33: =IF($L$31<>"",IF(INPUT!$H$10=1,(_xlfn.NORM.DIST(C33,$L$31,$M$31,TRUE)-_xlfn.NORM.DIST(B33,$L$31,$M$31,TRUE))*(1-BRLRWT!$H$10/100),(_xlfn.NORM.DIST(C33,$L$31,$M$31,TRUE)-_xlfn.NORM.DIST(B33,$L$31,$M$31,TRUE))),"") -> 0.00117886344 | F33: 0.05582008801 | G33: =IF(D33<>"",D33*BRLRWT!$H$9*1000,"") -> 5464.122457 | H33: =IF(E33<>"",E33*BRLRWT!$H$9*1000,"") -> 117.886344 | I33: 5582.008801
B34: 6.905978455 | C34: 7.09462673 | D34: =IF($L$30<>"",IF(INPUT!$H$10=1,(_xlfn.NORM.DIST(C34,$L$30,$M$30,TRUE)-_xlfn.NORM.DIST(B34,$L$30,$M$30,TRUE))*BRLRWT!$H$10/100,(_xlfn.NORM.DIST(C34,$L$30,$M$30,TRUE)-_xlfn.NORM.DIST(B34,$L$30,$M$30,TRUE))),"") -> 0.04152589874 | E34: =IF($L$31<>"",IF(INPUT!$H$10=1,(_xlfn.NORM.DIST(C34,$L$31,$M$31,TRUE)-_xlfn.NORM.DIST(B34,$L$31,$M$31,TRUE))*(1-BRLRWT!$H$10/100),(_xlfn.NORM.DIST(C34,$L$31,$M$31,TRUE)-_xlfn.NORM.DIST(B34,$L$31,$M$31,TRUE))),"") -> 0.0003465265182 | F34: 0.04187242526 | G34: =IF(D34<>"",D34*BRLRWT!$H$9*1000,"") -> 4152.589874 | H34: =IF(E34<>"",E34*BRLRWT!$H$9*1000,"") -> 34.65265182 | I34: 4187.242526
B35: 7.09462673 | C35: 7.283275005 | D35: =IF($L$30<>"",IF(INPUT!$H$10=1,(_xlfn.NORM.DIST(C35,$L$30,$M$30,TRUE)-_xlfn.NORM.DIST(B35,$L$30,$M$30,TRUE))*BRLRWT!$H$10/100,(_xlfn.NORM.DIST(C35,$L$30,$M$30,TRUE)-_xlfn.NORM.DIST(B35,$L$30,$M$30,TRUE))),"") -> 0.02816488423 | E35: =IF($L$31<>"",IF(INPUT!$H$10=1,(_xlfn.NORM.DIST(C35,$L$31,$M$31,TRUE)-_xlfn.NORM.DIST(B35,$L$31,$M$31,TRUE))*(1-BRLRWT!$H$10/100),(_xlfn.NORM.DIST(C35,$L$31,$M$31,TRUE)-_xlfn.NORM.DIST(B35,$L$31,$M$31,TRUE))),"") -> 8.711481975e-05 | F35: 0.02825199905 | G35: =IF(D35<>"",D35*BRLRWT!$H$9*1000,"") -> 2816.488423 | H35: =IF(E35<>"",E35*BRLRWT!$H$9*1000,"") -> 8.711481975 | I35: 2825.199905
B36: 7.283275005 | C36: 7.47192328 | D36: =IF($L$30<>"",IF(INPUT!$H$10=1,(_xlfn.NORM.DIST(C36,$L$30,$M$30,TRUE)-_xlfn.NORM.DIST(B36,$L$30,$M$30,TRUE))*BRLRWT!$H$10/100,(_xlfn.NORM.DIST(C36,$L$30,$M$30,TRUE)-_xlfn.NORM.DIST(B36,$L$30,$M$30,TRUE))),"") -> 0.01704845839 | E36: =IF($L$31<>"",IF(INPUT!$H$10=1,(_xlfn.NORM.DIST(C36,$L$31,$M$31,TRUE)-_xlfn.NORM.DIST(B36,$L$31,$M$31,TRUE))*(1-BRLRWT!$H$10/100),(_xlfn.NORM.DIST(C36,$L$31,$M$31,TRUE)-_xlfn.NORM.DIST(B36,$L$31,$M$31,TRUE))),"") -> 1.872894028e-05 | F36: 0.01706718733 | G36: =IF(D36<>"",D36*BRLRWT!$H$9*1000,"") -> 1704.845839 | H36: =IF(E36<>"",E36*BRLRWT!$H$9*1000,"") -> 1.872894028 | I36: 1706.718733
B37: 7.47192328 | C37: 7.660571555 | D37: =IF($L$30<>"",IF(INPUT!$H$10=1,(_xlfn.NORM.DIST(C37,$L$30,$M$30,TRUE)-_xlfn.NORM.DIST(B37,$L$30,$M$30,TRUE))*BRLRWT!$H$10/100,(_xlfn.NORM.DIST(C37,$L$30,$M$30,TRUE)-_xlfn.NORM.DIST(B37,$L$30,$M$30,TRUE))),"") -> 0.009209748687 | E37: =IF($L$31<>"",IF(INPUT!$H$10=1,(_xlfn.NORM.DIST(C37,$L$31,$M$31,TRUE)-_xlfn.NORM.DIST(B37,$L$31,$M$31,TRUE))*(1-BRLRWT!$H$10/100),(_xlfn.NORM.DIST(C37,$L$31,$M$31,TRUE)-_xlfn.NORM.DIST(B37,$L$31,$M$31,TRUE))),"") -> 3.443354125e-06 | F37: 0.009213192041 | G37: =IF(D37<>"",D37*BRLRWT!$H$9*1000,"") -> 920.9748687 | H37: =IF(E37<>"",E37*BRLRWT!$H$9*1000,"") -> 0.3443354125 | I37: 921.3192041
B38: 7.660571555 | C38: 7.84921983 | D38: =IF($L$30<>"",IF(INPUT!$H$10=1,(_xlfn.NORM.DIST(C38,$L$30,$M$30,TRUE)-_xlfn.NORM.DIST(B38,$L$30,$M$30,TRUE))*BRLRWT!$H$10/100,(_xlfn.NORM.DIST(C38,$L$30,$M$30,TRUE)-_xlfn.NORM.DIST(B38,$L$30,$M$30,TRUE))),"") -> 0.00444009945 | E38: =IF($L$31<>"",IF(INPUT!$H$10=1,(_xlfn.NORM.DIST(C38,$L$31,$M$31,TRUE)-_xlfn.NORM.DIST(B38,$L$31,$M$31,TRUE))*(1-BRLRWT!$H$10/100),(_xlfn.NORM.DIST(C38,$L$31,$M$31,TRUE)-_xlfn.NORM.DIST(B38,$L$31,$M$31,TRUE))),"") -> 5.413499685e-07 | F38: 0.0044406408 | G38: =IF(D38<>"",D38*BRLRWT!$H$9*1000,"") -> 444.009945 | H38: =IF(E38<>"",E38*BRLRWT!$H$9*1000,"") -> 0.05413499685 | I38: 444.06408
B39: 7.84921983 | C39: 8.037868105 | D39: =IF($L$30<>"",IF(INPUT!$H$10=1,(_xlfn.NORM.DIST(C39,$L$30,$M$30,TRUE)-_xlfn.NORM.DIST(B39,$L$30,$M$30,TRUE))*BRLRWT!$H$10/100,(_xlfn.NORM.DIST(C39,$L$30,$M$30,TRUE)-_xlfn.NORM.DIST(B39,$L$30,$M$30,TRUE))),"") -> 0.001910363635 | E39: =IF($L$31<>"",IF(INPUT!$H$10=1,(_xlfn.NORM.DIST(C39,$L$31,$M$31,TRUE)-_xlfn.NORM.DIST(B39,$L$31,$M$31,TRUE))*(1-BRLRWT!$H$10/100),(_xlfn.NORM.DIST(C39,$L$31,$M$31,TRUE)-_xlfn.NORM.DIST(B39,$L$31,$M$31,TRUE))),"") -> 7.277499298e-08 | F39: 0.00191043641 | G39: =IF(D39<>"",D39*BRLRWT!$H$9*1000,"") -> 191.0363635 | H39: =IF(E39<>"",E39*BRLRWT!$H$9*1000,"") -> 0.007277499298 | I39: 191.043641
B40: 8.037868105 | C40: 8.22651638 | D40: =IF($L$30<>"",IF(INPUT!$H$10=1,(_xlfn.NORM.DIST(C40,$L$30,$M$30,TRUE)-_xlfn.NORM.DIST(B40,$L$30,$M$30,TRUE))*BRLRWT!$H$10/100,(_xlfn.NORM.DIST(C40,$L$30,$M$30,TRUE)-_xlfn.NORM.DIST(B40,$L$30,$M$30,TRUE))),"") -> 0.0007335225221 | E40: =IF($L$31<>"",IF(INPUT!$H$10=1,(_xlfn.NORM.DIST(C40,$L$31,$M$31,TRUE)-_xlfn.NORM.DIST(B40,$L$31,$M$31,TRUE))*(1-BRLRWT!$H$10/100),(_xlfn.NORM.DIST(C40,$L$31,$M$31,TRUE)-_xlfn.NORM.DIST(B40,$L$31,$M$31,TRUE))),"") -> 8.365131643e-09 | F40: 0.0007335308872 | G40: =IF(D40<>"",D40*BRLRWT!$H$9*1000,"") -> 73.35225221 | H40: =IF(E40<>"",E40*BRLRWT!$H$9*1000,"") -> 0.0008365131643 | I40: 73.35308872
B41: 8.22651638 | C41: 8.415164655 | D41: =IF($L$30<>"",IF(INPUT!$H$10=1,(_xlfn.NORM.DIST(C41,$L$30,$M$30,TRUE)-_xlfn.NORM.DIST(B41,$L$30,$M$30,TRUE))*BRLRWT!$H$10/100,(_xlfn.NORM.DIST(C41,$L$30,$M$30,TRUE)-_xlfn.NORM.DIST(B41,$L$30,$M$30,TRUE))),"") -> 0.0002513506771 | E41: =IF($L$31<>"",IF(INPUT!$H$10=1,(_xlfn.NORM.DIST(C41,$L$31,$M$31,TRUE)-_xlfn.NORM.DIST(B41,$L$31,$M$31,TRUE))*(1-BRLRWT!$H$10/100),(_xlfn.NORM.DIST(C41,$L$31,$M$31,TRUE)-_xlfn.NORM.DIST(B41,$L$31,$M$31,TRUE))),"") -> 8.221068826e-10 | F41: 0.0002513514992 | G41: =IF(D41<>"",D41*BRLRWT!$H$9*1000,"") -> 25.13506771 | H41: =IF(E41<>"",E41*BRLRWT!$H$9*1000,"") -> 8.221068826e-05 | I41: 25.13514992
B42: 8.415164655 | C42: 8.60381293 | D42: =IF($L$30<>"",IF(INPUT!$H$10=1,(_xlfn.NORM.DIST(C42,$L$30,$M$30,TRUE)-_xlfn.NORM.DIST(B42,$L$30,$M$30,TRUE))*BRLRWT!$H$10/100,(_xlfn.NORM.DIST(C42,$L$30,$M$30,TRUE)-_xlfn.NORM.DIST(B42,$L$30,$M$30,TRUE))),"") -> 7.686179285e-05 | E42: =IF($L$31<>"",IF(INPUT!$H$10=1,(_xlfn.NORM.DIST(C42,$L$31,$M$31,TRUE)-_xlfn.NORM.DIST(B42,$L$31,$M$31,TRUE))*(1-BRLRWT!$H$10/100),(_xlfn.NORM.DIST(C42,$L$31,$M$31,TRUE)-_xlfn.NORM.DIST(B42,$L$31,$M$31,TRUE))),"") -> 6.907591166e-11 | F42: 7.686186192e-05 | G42: =IF(D42<>"",D42*BRLRWT!$H$9*1000,"") -> 7.686179285 | H42: =IF(E42<>"",E42*BRLRWT!$H$9*1000,"") -> 6.907591166e-06 | I42: 7.686186192
B43: 8.60381293 | C43: 8.792461205 | D43: =IF($L$30<>"",IF(INPUT!$H$10=1,(_xlfn.NORM.DIST(C43,$L$30,$M$30,TRUE)-_xlfn.NORM.DIST(B43,$L$30,$M$30,TRUE))*BRLRWT!$H$10/100,(_xlfn.NORM.DIST(C43,$L$30,$M$30,TRUE)-_xlfn.NORM.DIST(B43,$L$30,$M$30,TRUE))),"") -> 2.097485672e-05 | E43: =IF($L$31<>"",IF(INPUT!$H$10=1,(_xlfn.NORM.DIST(C43,$L$31,$M$31,TRUE)-_xlfn.NORM.DIST(B43,$L$31,$M$31,TRUE))*(1-BRLRWT!$H$10/100),(_xlfn.NORM.DIST(C43,$L$31,$M$31,TRUE)-_xlfn.NORM.DIST(B43,$L$31,$M$31,TRUE))),"") -> 4.961864253e-12 | F43: 2.097486169e-05 | G43: =IF(D43<>"",D43*BRLRWT!$H$9*1000,"") -> 2.097485672 | H43: =IF(E43<>"",E43*BRLRWT!$H$9*1000,"") -> 4.961864253e-07 | I43: 2.097486169
B44: 8.792461205 | C44: 8.98110948 | D44: =IF($L$30<>"",IF(INPUT!$H$10=1,(_xlfn.NORM.DIST(C44,$L$30,$M$30,TRUE)-_xlfn.NORM.DIST(B44,$L$30,$M$30,TRUE))*BRLRWT!$H$10/100,(_xlfn.NORM.DIST(C44,$L$30,$M$30,TRUE)-_xlfn.NORM.DIST(B44,$L$30,$M$30,TRUE))),"") -> 5.107863864e-06 | E44: =IF($L$31<>"",IF(INPUT!$H$10=1,(_xlfn.NORM.DIST(C44,$L$31,$M$31,TRUE)-_xlfn.NORM.DIST(B44,$L$31,$M$31,TRUE))*(1-BRLRWT!$H$10/100),(_xlfn.NORM.DIST(C44,$L$31,$M$31,TRUE)-_xlfn.NORM.DIST(B44,$L$31,$M$31,TRUE))),"") -> 3.04645198e-13 | F44: 5.107864168e-06 | G44: =IF(D44<>"",D44*BRLRWT!$H$9*1000,"") -> 0.5107863864 | H44: =IF(E44<>"",E44*BRLRWT!$H$9*1000,"") -> 3.04645198e-08 | I44: 0.5107864168
B45: 8.98110948 | C45: ="inf." -> inf. | D45: =IF($L$30<>"",IF(INPUT!$H$10=1,(1-_xlfn.NORM.DIST(B45,$L$30,$M$30,TRUE))*BRLRWT!$H$10/100,(1-_xlfn.NORM.DIST(B45,$L$30,$M$30,TRUE))),"") -> 1.369158683e-06 | E45: =IF($L$31<>"",IF(INPUT!$H$10=1,(1-_xlfn.NORM.DIST(B44,$L$31,$M$31,TRUE))*(1-BRLRWT!$H$10/100),(1-_xlfn.NORM.DIST(B44,$L$31,$M$31,TRUE))),"") -> 3.214095656e-13 | F45: 1.369159005e-06 | G45: =IF(D45<>"",D45*BRLRWT!$H$9*1000,"") -> 0.1369158683 | H45: =IF(E45<>"",E45*BRLRWT!$H$9*1000,"") -> 3.214095656e-08 | I45: 0.1369159005
B46: Total | D46: =SUM(D12:D45) -> 0.5 | E46: 0.5 | F46: 1 | G46: 50000 | H46: 50000 | I46: 100000

Sheet BreastWT
A8: 3-2. Results - Breast Weight Distribution | K8: Breed
B10: Weight (lbs) | D10: Percentage | G10: Numbers
B11: Min. (>) | C11: Max. (≤) | D11: Male | E11: Female | F11: S/Run | G11: Male | H11: Female | I11: S/Run
B12: ="-inf." -> -inf. | C12: =$M$13 -> 0.935821 | D12: =IF($L$30<>"",IF(INPUT!$H$10=1,_xlfn.NORM.DIST(C12,$L$30,$M$30,TRUE)*BRLRWT!$H$10/100,_xlfn.NORM.DIST(C12,$L$30,$M$30,TRUE)),"") -> 7.46877502e-11 | E12: =IF($L$31<>"",IF(INPUT!$H$10=1,_xlfn.NORM.DIST(C12,$L$31,$M$31,TRUE)*(1-BRLRWT!$H$10/100),_xlfn.NORM.DIST(C12,$L$31,$M$31,TRUE)),"") -> 7.059390342e-09 | F12: =IF(D12<>"",IF(E12<>"",D12+E12,""),"") -> 7.134078092e-09 | G12: =IF(D12<>"",D12*BRLRWT!$H$9*1000,"") -> 7.46877502e-06 | H12: =IF(E12<>"",E12*BRLRWT!$H$9*1000,"") -> 0.0007059390342 | I12: =IF(G12<>"",IF(H12<>"",G12+H12,""),"") -> 0.0007134078092 | L12: Range
B13: =C12 -> 0.935821 | C13: =C12+$M$14 -> 1.017837094 | D13: =IF($L$30<>"",IF(INPUT!$H$10=1,(_xlfn.NORM.DIST(C13,$L$30,$M$30,TRUE)-_xlfn.NORM.DIST(B13,$L$30,$M$30,TRUE))*BRLRWT!$H$10/100,(_xlfn.NORM.DIST(C13,$L$30,$M$30,TRUE)-_xlfn.NORM.DIST(B13,$L$30,$M$30,TRUE))),"") -> 7.216769781e-10 | E13: =IF($L$31<>"",IF(INPUT!$H$10=1,(_xlfn.NORM.DIST(C13,$L$31,$M$31,TRUE)-_xlfn.NORM.DIST(B13,$L$31,$M$31,TRUE))*(1-BRLRWT!$H$10/100),(_xlfn.NORM.DIST(C13,$L$31,$M$31,TRUE)-_xlfn.NORM.DIST(B13,$L$31,$M$31,TRUE))),"") -> 6.005337502e-08 | F13: =IF(D13<>"",IF(E13<>"",D13+E13,""),"") -> 6.0775052e-08 | G13: =IF(D13<>"",D13*BRLRWT!$H$9*1000,"") -> 7.216769781e-05 | H13: =IF(E13<>"",E13*BRLRWT!$H$9*1000,"") -> 0.006005337502 | I13: =IF(G13<>"",IF(H13<>"",G13+H13,""),"") -> 0.0060775052 | L13: min | M13: 0.935821
B14: =C13 -> 1.017837094 | C14: =C13+$M$14 -> 1.099853189 | D14: =IF($L$30<>"",IF(INPUT!$H$10=1,(_xlfn.NORM.DIST(C14,$L$30,$M$30,TRUE)-_xlfn.NORM.DIST(B14,$L$30,$M$30,TRUE))*BRLRWT!$H$10/100,(_xlfn.NORM.DIST(C14,$L$30,$M$30,TRUE)-_xlfn.NORM.DIST(B14,$L$30,$M$30,TRUE))),"") -> 6.591992405e-09 | E14: =IF($L$31<>"",IF(INPUT!$H$10=1,(_xlfn.NORM.DIST(C14,$L$31,$M$31,TRUE)-_xlfn.NORM.DIST(B14,$L$31,$M$31,TRUE))*(1-BRLRWT!$H$10/100),(_xlfn.NORM.DIST(C14,$L$31,$M$31,TRUE)-_xlfn.NORM.DIST(B14,$L$31,$M$31,TRUE))),"") -> 4.760350999e-07 | F14: =IF(D14<>"",IF(E14<>"",D14+E14,""),"") -> 4.826270923e-07 | G14: =IF(D14<>"",D14*BRLRWT!$H$9*1000,"") -> 0.0006591992405 | H14: =IF(E14<>"",E14*BRLRWT!$H$9*1000,"") -> 0.04760350999 | I14: =IF(G14<>"",IF(H14<>"",G14+H14,""),"") -> 0.04826270923 | L14: step size | M14: 0.08201609438
B15: =C14 -> 1.099853189 | C15: =C14+$M$14 -> 1.181869283 | D15: =IF($L$30<>"",IF(INPUT!$H$10=1,(_xlfn.NORM.DIST(C15,$L$30,$M$30,TRUE)-_xlfn.NORM.DIST(B15,$L$30,$M$30,TRUE))*BRLRWT!$H$10/100,(_xlfn.NORM.DIST(C15,$L$30,$M$30,TRUE)-_xlfn.NORM.DIST(B15,$L$30,$M$30,TRUE))),"") -> 5.227942766e-08 | E15: =IF($L$31<>"",IF(INPUT!$H$10=1,(_xlfn.NORM.DIST(C15,$L$31,$M$31,TRUE)-_xlfn.NORM.DIST(B15,$L$31,$M$31,TRUE))*(1-BRLRWT!$H$10/100),(_xlfn.NORM.DIST(C15,$L$31,$M$31,TRUE)-_xlfn.NORM.DIST(B15,$L$31,$M$31,TRUE))),"") -> 3.201712148e-06 | F15: 3.253991576e-06 | G15: =IF(D15<>"",D15*BRLRWT!$H$9*1000,"") -> 0.005227942766 | H15: =IF(E15<>"",E15*BRLRWT!$H$9*1000,"") -> 0.3201712148 | I15: 0.3253991576
B16: 1.181869283 | C16: 1.263885378 | D16: =IF($L$30<>"",IF(INPUT!$H$10=1,(_xlfn.NORM.DIST(C16,$L$30,$M$30,TRUE)-_xlfn.NORM.DIST(B16,$L$30,$M$30,TRUE))*BRLRWT!$H$10/100,(_xlfn.NORM.DIST(C16,$L$30,$M$30,TRUE)-_xlfn.NORM.DIST(B16,$L$30,$M$30,TRUE))),"") -> 3.599986395e-07 | E16: =IF($L$31<>"",IF(INPUT!$H$10=1,(_xlfn.NORM.DIST(C16,$L$31,$M$31,TRUE)-_xlfn.NORM.DIST(B16,$L$31,$M$31,TRUE))*(1-BRLRWT!$H$10/100),(_xlfn.NORM.DIST(C16,$L$31,$M$31,TRUE)-_xlfn.NORM.DIST(B16,$L$31,$M$31,TRUE))),"") -> 1.827221435e-05 | F16: 1.863221299e-05 | G16: =IF(D16<>"",D16*BRLRWT!$H$9*1000,"") -> 0.03599986395 | H16: =IF(E16<>"",E16*BRLRWT!$H$9*1000,"") -> 1.827221435 | I16: 1.863221299
B17: 1.263885378 | C17: 1.345901472 | D17: =IF($L$30<>"",IF(INPUT!$H$10=1,(_xlfn.NORM.DIST(C17,$L$30,$M$30,TRUE)-_xlfn.NORM.DIST(B17,$L$30,$M$30,TRUE))*BRLRWT!$H$10/100,(_xlfn.NORM.DIST(C17,$L$30,$M$30,TRUE)-_xlfn.NORM.DIST(B17,$L$30,$M$30,TRUE))),"") -> 2.152494148e-06 | E17: =IF($L$31<>"",IF(INPUT!$H$10=1,(_xlfn.NORM.DIST(C17,$L$31,$M$31,TRUE)-_xlfn.NORM.DIST(B17,$L$31,$M$31,TRUE))*(1-BRLRWT!$H$10/100),(_xlfn.NORM.DIST(C17,$L$31,$M$31,TRUE)-_xlfn.NORM.DIST(B17,$L$31,$M$31,TRUE))),"") -> 8.848882799e-05 | F17: 9.064132213e-05 | G17: =IF(D17<>"",D17*BRLRWT!$H$9*1000,"") -> 0.2152494148 | H17: =IF(E17<>"",E17*BRLRWT!$H$9*1000,"") -> 8.848882799 | I17: 9.064132213
B18: 1.345901472 | C18: 1.427917566 | D18: =IF($L$30<>"",IF(INPUT!$H$10=1,(_xlfn.NORM.DIST(C18,$L$30,$M$30,TRUE)-_xlfn.NORM.DIST(B18,$L$30,$M$30,TRUE))*BRLRWT!$H$10/100,(_xlfn.NORM.DIST(C18,$L$30,$M$30,TRUE)-_xlfn.NORM.DIST(B18,$L$30,$M$30,TRUE))),"") -> 1.117554741e-05 | E18: =IF($L$31<>"",IF(INPUT!$H$10=1,(_xlfn.NORM.DIST(C18,$L$31,$M$31,TRUE)-_xlfn.NORM.DIST(B18,$L$31,$M$31,TRUE))*(1-BRLRWT!$H$10/100),(_xlfn.NORM.DIST(C18,$L$31,$M$31,TRUE)-_xlfn.NORM.DIST(B18,$L$31,$M$31,TRUE))),"") -> 0.0003636600215 | F18: 0.000374835569 | G18: =IF(D18<>"",D18*BRLRWT!$H$9*1000,"") -> 1.117554741 | H18: =IF(E18<>"",E18*BRLRWT!$H$9*1000,"") -> 36.36600215 | I18: 37.4835569
B19: 1.427917566 | C19: 1.509933661 | D19: =IF($L$30<>"",IF(INPUT!$H$10=1,(_xlfn.NORM.DIST(C19,$L$30,$M$30,TRUE)-_xlfn.NORM.DIST(B19,$L$30,$M$30,TRUE))*BRLRWT!$H$10/100,(_xlfn.NORM.DIST(C19,$L$30,$M$30,TRUE)-_xlfn.NORM.DIST(B19,$L$30,$M$30,TRUE))),"") -> 5.038430832e-05 | E19: =IF($L$31<>"",IF(INPUT!$H$10=1,(_xlfn.NORM.DIST(C19,$L$31,$M$31,TRUE)-_xlfn.NORM.DIST(B19,$L$31,$M$31,TRUE))*(1-BRLRWT!$H$10/100),(_xlfn.NORM.DIST(C19,$L$31,$M$31,TRUE)-_xlfn.NORM.DIST(B19,$L$31,$M$31,TRUE))),"") -> 0.001268330753 | F19: 0.001318715061 | G19: =IF(D19<>"",D19*BRLRWT!$H$9*1000,"") -> 5.038430832 | H19: =IF(E19<>"",E19*BRLRWT!$H$9*1000,"") -> 126.8330753 | I19: 131.8715061
B20: 1.509933661 | C20: 1.591949755 | D20: =IF($L$30<>"",IF(INPUT!$H$10=1,(_xlfn.NORM.DIST(C20,$L$30,$M$30,TRUE)-_xlfn.NORM.DIST(B20,$L$30,$M$30,TRUE))*BRLRWT!$H$10/100,(_xlfn.NORM.DIST(C20,$L$30,$M$30,TRUE)-_xlfn.NORM.DIST(B20,$L$30,$M$30,TRUE))),"") -> 0.0001972580208 | E20: =IF($L$31<>"",IF(INPUT!$H$10=1,(_xlfn.NORM.DIST(C20,$L$31,$M$31,TRUE)-_xlfn.NORM.DIST(B20,$L$31,$M$31,TRUE))*(1-BRLRWT!$H$10/100),(_xlfn.NORM.DIST(C20,$L$31,$M$31,TRUE)-_xlfn.NORM.DIST(B20,$L$31,$M$31,TRUE))),"") -> 0.003754201733 | F20: 0.003951459753 | G20: =IF(D20<>"",D20*BRLRWT!$H$9*1000,"") -> 19.72580208 | H20: =IF(E20<>"",E20*BRLRWT!$H$9*1000,"") -> 375.4201733 | I20: 395.1459753
B21: 1.591949755 | C21: 1.673965849 | D21: =IF($L$30<>"",IF(INPUT!$H$10=1,(_xlfn.NORM.DIST(C21,$L$30,$M$30,TRUE)-_xlfn.NORM.DIST(B21,$L$30,$M$30,TRUE))*BRLRWT!$H$10/100,(_xlfn.NORM.DIST(C21,$L$30,$M$30,TRUE)-_xlfn.NORM.DIST(B21,$L$30,$M$30,TRUE))),"") -> 0.0006706551443 | E21: =IF($L$31<>"",IF(INPUT!$H$10=1,(_xlfn.NORM.DIST(C21,$L$31,$M$31,TRUE)-_xlfn.NORM.DIST(B21,$L$31,$M$31,TRUE))*(1-BRLRWT!$H$10/100),(_xlfn.NORM.DIST(C21,$L$31,$M$31,TRUE)-_xlfn.NORM.DIST(B21,$L$31,$M$31,TRUE))),"") -> 0.009431204594 | F21: 0.01010185974 | G21: =IF(D21<>"",D21*BRLRWT!$H$9*1000,"") -> 67.06551443 | H21: =IF(E21<>"",E21*BRLRWT!$H$9*1000,"") -> 943.1204594 | I21: 1010.185974
B22: 1.673965849 | C22: 1.755981944 | D22: =IF($L$30<>"",IF(INPUT!$H$10=1,(_xlfn.NORM.DIST(C22,$L$30,$M$30,TRUE)-_xlfn.NORM.DIST(B22,$L$30,$M$30,TRUE))*BRLRWT!$H$10/100,(_xlfn.NORM.DIST(C22,$L$30,$M$30,TRUE)-_xlfn.NORM.DIST(B22,$L$30,$M$30,TRUE))),"") -> 0.001980160769 | E22: =IF($L$31<>"",IF(INPUT!$H$10=1,(_xlfn.NORM.DIST(C22,$L$31,$M$31,TRUE)-_xlfn.NORM.DIST(B22,$L$31,$M$31,TRUE))*(1-BRLRWT!$H$10/100),(_xlfn.NORM.DIST(C22,$L$31,$M$31,TRUE)-_xlfn.NORM.DIST(B22,$L$31,$M$31,TRUE))),"") -> 0.02010923053 | F22: 0.0220893913 | G22: =IF(D22<>"",D22*BRLRWT!$H$9*1000,"") -> 198.0160769 | H22: =IF(E22<>"",E22*BRLRWT!$H$9*1000,"") -> 2010.923053 | I22: 2208.93913
B23: 1.755981944 | C23: 1.837998038 | D23: =IF($L$30<>"",IF(INPUT!$H$10=1,(_xlfn.NORM.DIST(C23,$L$30,$M$30,TRUE)-_xlfn.NORM.DIST(B23,$L$30,$M$30,TRUE))*BRLRWT!$H$10/100,(_xlfn.NORM.DIST(C23,$L$30,$M$30,TRUE)-_xlfn.NORM.DIST(B23,$L$30,$M$30,TRUE))),"") -> 0.005077484167 | E23: =IF($L$31<>"",IF(INPUT!$H$10=1,(_xlfn.NORM.DIST(C23,$L$31,$M$31,TRUE)-_xlfn.NORM.DIST(B23,$L$31,$M$31,TRUE))*(1-BRLRWT!$H$10/100),(_xlfn.NORM.DIST(C23,$L$31,$M$31,TRUE)-_xlfn.NORM.DIST(B23,$L$31,$M$31,TRUE))),"") -> 0.03639271337 | F23: 0.04147019754 | G23: =IF(D23<>"",D23*BRLRWT!$H$9*1000,"") -> 507.7484167 | H23: =IF(E23<>"",E23*BRLRWT!$H$9*1000,"") -> 3639.271337 | I23: 4147.019754
B24: 1.837998038 | C24: 1.920014133 | D24: =IF($L$30<>"",IF(INPUT!$H$10=1,(_xlfn.NORM.DIST(C24,$L$30,$M$30,TRUE)-_xlfn.NORM.DIST(B24,$L$30,$M$30,TRUE))*BRLRWT!$H$10/100,(_xlfn.NORM.DIST(C24,$L$30,$M$30,TRUE)-_xlfn.NORM.DIST(B24,$L$30,$M$30,TRUE))),"") -> 0.01130714147 | E24: =IF($L$31<>"",IF(INPUT!$H$10=1,(_xlfn.NORM.DIST(C24,$L$31,$M$31,TRUE)-_xlfn.NORM.DIST(B24,$L$31,$M$31,TRUE))*(1-BRLRWT!$H$10/100),(_xlfn.NORM.DIST(C24,$L$31,$M$31,TRUE)-_xlfn.NORM.DIST(B24,$L$31,$M$31,TRUE))),"") -> 0.05590281332 | F24: 0.0672099548 | G24: =IF(D24<>"",D24*BRLRWT!$H$9*1000,"") -> 1130.714147 | H24: =IF(E24<>"",E24*BRLRWT!$H$9*1000,"") -> 5590.281332 | I24: 6720.99548
B25: 1.920014133 | C25: 2.002030227 | D25: =IF($L$30<>"",IF(INPUT!$H$10=1,(_xlfn.NORM.DIST(C25,$L$30,$M$30,TRUE)-_xlfn.NORM.DIST(B25,$L$30,$M$30,TRUE))*BRLRWT!$H$10/100,(_xlfn.NORM.DIST(C25,$L$30,$M$30,TRUE)-_xlfn.NORM.DIST(B25,$L$30,$M$30,TRUE))),"") -> 0.02186860917 | E25: =IF($L$31<>"",IF(INPUT!$H$10=1,(_xlfn.NORM.DIST(C25,$L$31,$M$31,TRUE)-_xlfn.NORM.DIST(B25,$L$31,$M$31,TRUE))*(1-BRLRWT!$H$10/100),(_xlfn.NORM.DIST(C25,$L$31,$M$31,TRUE)-_xlfn.NORM.DIST(B25,$L$31,$M$31,TRUE))),"") -> 0.07288868863 | F25: 0.0947572978 | G25: =IF(D25<>"",D25*BRLRWT!$H$9*1000,"") -> 2186.860917 | H25: =IF(E25<>"",E25*BRLRWT!$H$9*1000,"") -> 7288.868863 | I25: 9475.72978
B26: 2.002030227 | C26: 2.084046321 | D26: =IF($L$30<>"",IF(INPUT!$H$10=1,(_xlfn.NORM.DIST(C26,$L$30,$M$30,TRUE)-_xlfn.NORM.DIST(B26,$L$30,$M$30,TRUE))*BRLRWT!$H$10/100,(_xlfn.NORM.DIST(C26,$L$30,$M$30,TRUE)-_xlfn.NORM.DIST(B26,$L$30,$M$30,TRUE))),"") -> 0.03673332658 | E26: =IF($L$31<>"",IF(INPUT!$H$10=1,(_xlfn.NORM.DIST(C26,$L$31,$M$31,TRUE)-_xlfn.NORM.DIST(B26,$L$31,$M$31,TRUE))*(1-BRLRWT!$H$10/100),(_xlfn.NORM.DIST(C26,$L$31,$M$31,TRUE)-_xlfn.NORM.DIST(B26,$L$31,$M$31,TRUE))),"") -> 0.08066743012 | F26: 0.1174007567 | G26: =IF(D26<>"",D26*BRLRWT!$H$9*1000,"") -> 3673.332658 | H26: =IF(E26<>"",E26*BRLRWT!$H$9*1000,"") -> 8066.743012 | I26: 11740.07567
B27: 2.084046321 | C27: 2.166062416 | D27: =IF($L$30<>"",IF(INPUT!$H$10=1,(_xlfn.NORM.DIST(C27,$L$30,$M$30,TRUE)-_xlfn.NORM.DIST(B27,$L$30,$M$30,TRUE))*BRLRWT!$H$10/100,(_xlfn.NORM.DIST(C27,$L$30,$M$30,TRUE)-_xlfn.NORM.DIST(B27,$L$30,$M$30,TRUE))),"") -> 0.05358897284 | E27: =IF($L$31<>"",IF(INPUT!$H$10=1,(_xlfn.NORM.DIST(C27,$L$31,$M$31,TRUE)-_xlfn.NORM.DIST(B27,$L$31,$M$31,TRUE))*(1-BRLRWT!$H$10/100),(_xlfn.NORM.DIST(C27,$L$31,$M$31,TRUE)-_xlfn.NORM.DIST(B27,$L$31,$M$31,TRUE))),"") -> 0.07577912671 | F27: 0.1293680995 | G27: =IF(D27<>"",D27*BRLRWT!$H$9*1000,"") -> 5358.897284 | H27: =IF(E27<>"",E27*BRLRWT!$H$9*1000,"") -> 7577.912671 | I27: 12936.80995
B28: 2.166062416 | C28: 2.24807851 | D28: =IF($L$30<>"",IF(INPUT!$H$10=1,(_xlfn.NORM.DIST(C28,$L$30,$M$30,TRUE)-_xlfn.NORM.DIST(B28,$L$30,$M$30,TRUE))*BRLRWT!$H$10/100,(_xlfn.NORM.DIST(C28,$L$30,$M$30,TRUE)-_xlfn.NORM.DIST(B28,$L$30,$M$30,TRUE))),"") -> 0.0679001278 | E28: =IF($L$31<>"",IF(INPUT!$H$10=1,(_xlfn.NORM.DIST(C28,$L$31,$M$31,TRUE)-_xlfn.NORM.DIST(B28,$L$31,$M$31,TRUE))*(1-BRLRWT!$H$10/100),(_xlfn.NORM.DIST(C28,$L$31,$M$31,TRUE)-_xlfn.NORM.DIST(B28,$L$31,$M$31,TRUE))),"") -> 0.06042452232 | F28: 0.1283246501 | G28: =IF(D28<>"",D28*BRLRWT!$H$9*1000,"") -> 6790.01278 | H28: =IF(E28<>"",E28*BRLRWT!$H$9*1000,"") -> 6042.452232 | I28: 12832.46501 | K28: - Summary
B29: 2.24807851 | C29: 2.330094604 | D29: =IF($L$30<>"",IF(INPUT!$H$10=1,(_xlfn.NORM.DIST(C29,$L$30,$M$30,TRUE)-_xlfn.NORM.DIST(B29,$L$30,$M$30,TRUE))*BRLRWT!$H$10/100,(_xlfn.NORM.DIST(C29,$L$30,$M$30,TRUE)-_xlfn.NORM.DIST(B29,$L$30,$M$30,TRUE))),"") -> 0.07472195129 | E29: =IF($L$31<>"",IF(INPUT!$H$10=1,(_xlfn.NORM.DIST(C29,$L$31,$M$31,TRUE)-_xlfn.NORM.DIST(B29,$L$31,$M$31,TRUE))*(1-BRLRWT!$H$10/100),(_xlfn.NORM.DIST(C29,$L$31,$M$31,TRUE)-_xlfn.NORM.DIST(B29,$L$31,$M$31,TRUE))),"") -> 0.04089642804 | F29: 0.1156183793 | G29: =IF(D29<>"",D29*BRLRWT!$H$9*1000,"") -> 7472.195129 | H29: =IF(E29<>"",E29*BRLRWT!$H$9*1000,"") -> 4089.642804 | I29: 11561.83793 | K29: Unit (lbs) | L29: Mean | M29: Std. Dev. | N29: C.V. (%)
B30: 2.330094604 | C30: 2.412110699 | D30: =IF($L$30<>"",IF(INPUT!$H$10=1,(_xlfn.NORM.DIST(C30,$L$30,$M$30,TRUE)-_xlfn.NORM.DIST(B30,$L$30,$M$30,TRUE))*BRLRWT!$H$10/100,(_xlfn.NORM.DIST(C30,$L$30,$M$30,TRUE)-_xlfn.NORM.DIST(B30,$L$30,$M$30,TRUE))),"") -> 0.07141826135 | E30: =IF($L$31<>"",IF(INPUT!$H$10=1,(_xlfn.NORM.DIST(C30,$L$31,$M$31,TRUE)-_xlfn.NORM.DIST(B30,$L$31,$M$31,TRUE))*(1-BRLRWT!$H$10/100),(_xlfn.NORM.DIST(C30,$L$31,$M$31,TRUE)-_xlfn.NORM.DIST(B30,$L$31,$M$31,TRUE))),"") -> 0.02349414627 | F30: 0.09491240761 | G30: =IF(D30<>"",D30*BRLRWT!$H$9*1000,"") -> 7141.826135 | H30: =IF(E30<>"",E30*BRLRWT!$H$9*1000,"") -> 2349.414627 | I30: 9491.240761 | K30: Male | L30: 2.303782926 | M30: 0.217156619 | N30: =IF(L30<>"",M30/L30*100,"") -> 9.426088567
B31: 2.412110699 | C31: 2.494126793 | D31: =IF($L$30<>"",IF(INPUT!$H$10=1,(_xlfn.NORM.DIST(C31,$L$30,$M$30,TRUE)-_xlfn.NORM.DIST(B31,$L$30,$M$30,TRUE))*BRLRWT!$H$10/100,(_xlfn.NORM.DIST(C31,$L$30,$M$30,TRUE)-_xlfn.NORM.DIST(B31,$L$30,$M$30,TRUE))),"") -> 0.05928616036 | E31: =IF($L$31<>"",IF(INPUT!$H$10=1,(_xlfn.NORM.DIST(C31,$L$31,$M$31,TRUE)-_xlfn.NORM.DIST(B31,$L$31,$M$31,TRUE))*(1-BRLRWT!$H$10/100),(_xlfn.NORM.DIST(C31,$L$31,$M$31,TRUE)-_xlfn.NORM.DIST(B31,$L$31,$M$31,TRUE))),"") -> 0.01145584543 | F31: 0.07074200579 | G31: =IF(D31<>"",D31*BRLRWT!$H$9*1000,"") -> 5928.616036 | H31: =IF(E31<>"",E31*BRLRWT!$H$9*1000,"") -> 1145.584543 | I31: 7074.200579 | K31: Female | L31: 2.052767642 | M31: 0.2011781639 | N31: =IF(L31<>"",M31/L31*100,"") -> 9.800337837
B32: 2.494126793 | C32: 2.576142888 | D32: =IF($L$30<>"",IF(INPUT!$H$10=1,(_xlfn.NORM.DIST(C32,$L$30,$M$30,TRUE)-_xlfn.NORM.DIST(B32,$L$30,$M$30,TRUE))*BRLRWT!$H$10/100,(_xlfn.NORM.DIST(C32,$L$30,$M$30,TRUE)-_xlfn.NORM.DIST(B32,$L$30,$M$30,TRUE))),"") -> 0.04274432008 | E32: =IF($L$31<>"",IF(INPUT!$H$10=1,(_xlfn.NORM.DIST(C32,$L$31,$M$31,TRUE)-_xlfn.NORM.DIST(B32,$L$31,$M$31,TRUE))*(1-BRLRWT!$H$10/100),(_xlfn.NORM.DIST(C32,$L$31,$M$31,TRUE)-_xlfn.NORM.DIST(B32,$L$31,$M$31,TRUE))),"") -> 0.004741070362 | F32: 0.04748539044 | G32: =IF(D32<>"",D32*BRLRWT!$H$9*1000,"") -> 4274.432008 | H32: =IF(E32<>"",E32*BRLRWT!$H$9*1000,"") -> 474.1070362 | I32: 4748.539044 | K32: S/Run | L32: 2.178275284 | M32: 0.2440635033 | N32: =IF(L32<>"",M32/L32*100,"") -> 11.20443799
B33: 2.576142888 | C33: 2.658158982 | D33: =IF($L$30<>"",IF(INPUT!$H$10=1,(_xlfn.NORM.DIST(C33,$L$30,$M$30,TRUE)-_xlfn.NORM.DIST(B33,$L$30,$M$30,TRUE))*BRLRWT!$H$10/100,(_xlfn.NORM.DIST(C33,$L$30,$M$30,TRUE)-_xlfn.NORM.DIST(B33,$L$30,$M$30,TRUE))),"") -> 0.02676585637 | E33: =IF($L$31<>"",IF(INPUT!$H$10=1,(_xlfn.NORM.DIST(C33,$L$31,$M$31,TRUE)-_xlfn.NORM.DIST(B33,$L$31,$M$31,TRUE))*(1-BRLRWT!$H$10/100),(_xlfn.NORM.DIST(C33,$L$31,$M$31,TRUE)-_xlfn.NORM.DIST(B33,$L$31,$M$31,TRUE))),"") -> 0.001665304715 | F33: 0.02843116109 | G33: =IF(D33<>"",D33*BRLRWT!$H$9*1000,"") -> 2676.585637 | H33: =IF(E33<>"",E33*BRLRWT!$H$9*1000,"") -> 166.5304715 | I33: 2843.116109
B34: 2.658158982 | C34: 2.740175076 | D34: =IF($L$30<>"",IF(INPUT!$H$10=1,(_xlfn.NORM.DIST(C34,$L$30,$M$30,TRUE)-_xlfn.NORM.DIST(B34,$L$30,$M$30,TRUE))*BRLRWT!$H$10/100,(_xlfn.NORM.DIST(C34,$L$30,$M$30,TRUE)-_xlfn.NORM.DIST(B34,$L$30,$M$30,TRUE))),"") -> 0.01455649103 | E34: =IF($L$31<>"",IF(INPUT!$H$10=1,(_xlfn.NORM.DIST(C34,$L$31,$M$31,TRUE)-_xlfn.NORM.DIST(B34,$L$31,$M$31,TRUE))*(1-BRLRWT!$H$10/100),(_xlfn.NORM.DIST(C34,$L$31,$M$31,TRUE)-_xlfn.NORM.DIST(B34,$L$31,$M$31,TRUE))),"") -> 0.000496435928 | F34: 0.01505292695 | G34: =IF(D34<>"",D34*BRLRWT!$H$9*1000,"") -> 1455.649103 | H34: =IF(E34<>"",E34*BRLRWT!$H$9*1000,"") -> 49.6435928 | I34: 1505.292695
B35: 2.740175076 | C35: 2.822191171 | D35: =IF($L$30<>"",IF(INPUT!$H$10=1,(_xlfn.NORM.DIST(C35,$L$30,$M$30,TRUE)-_xlfn.NORM.DIST(B35,$L$30,$M$30,TRUE))*BRLRWT!$H$10/100,(_xlfn.NORM.DIST(C35,$L$30,$M$30,TRUE)-_xlfn.NORM.DIST(B35,$L$30,$M$30,TRUE))),"") -> 0.006875414449 | E35: =IF($L$31<>"",IF(INPUT!$H$10=1,(_xlfn.NORM.DIST(C35,$L$31,$M$31,TRUE)-_xlfn.NORM.DIST(B35,$L$31,$M$31,TRUE))*(1-BRLRWT!$H$10/100),(_xlfn.NORM.DIST(C35,$L$31,$M$31,TRUE)-_xlfn.NORM.DIST(B35,$L$31,$M$31,TRUE))),"") -> 0.0001255934649 | F35: 0.007001007914 | G35: =IF(D35<>"",D35*BRLRWT!$H$9*1000,"") -> 687.5414449 | H35: =IF(E35<>"",E35*BRLRWT!$H$9*1000,"") -> 12.55934649 | I35: 700.1007914
B36: 2.822191171 | C36: 2.904207265 | D36: =IF($L$30<>"",IF(INPUT!$H$10=1,(_xlfn.NORM.DIST(C36,$L$30,$M$30,TRUE)-_xlfn.NORM.DIST(B36,$L$30,$M$30,TRUE))*BRLRWT!$H$10/100,(_xlfn.NORM.DIST(C36,$L$30,$M$30,TRUE)-_xlfn.NORM.DIST(B36,$L$30,$M$30,TRUE))),"") -> 0.002820331708 | E36: =IF($L$31<>"",IF(INPUT!$H$10=1,(_xlfn.NORM.DIST(C36,$L$31,$M$31,TRUE)-_xlfn.NORM.DIST(B36,$L$31,$M$31,TRUE))*(1-BRLRWT!$H$10/100),(_xlfn.NORM.DIST(C36,$L$31,$M$31,TRUE)-_xlfn.NORM.DIST(B36,$L$31,$M$31,TRUE))),"") -> 2.69640809e-05 | F36: 0.002847295789 | G36: =IF(D36<>"",D36*BRLRWT!$H$9*1000,"") -> 282.0331708 | H36: =IF(E36<>"",E36*BRLRWT!$H$9*1000,"") -> 2.69640809 | I36: 284.7295789
B37: 2.904207265 | C37: 2.986223359 | D37: =IF($L$30<>"",IF(INPUT!$H$10=1,(_xlfn.NORM.DIST(C37,$L$30,$M$30,TRUE)-_xlfn.NORM.DIST(B37,$L$30,$M$30,TRUE))*BRLRWT!$H$10/100,(_xlfn.NORM.DIST(C37,$L$30,$M$30,TRUE)-_xlfn.NORM.DIST(B37,$L$30,$M$30,TRUE))),"") -> 0.001004735761 | E37: =IF($L$31<>"",IF(INPUT!$H$10=1,(_xlfn.NORM.DIST(C37,$L$31,$M$31,TRUE)-_xlfn.NORM.DIST(B37,$L$31,$M$31,TRUE))*(1-BRLRWT!$H$10/100),(_xlfn.NORM.DIST(C37,$L$31,$M$31,TRUE)-_xlfn.NORM.DIST(B37,$L$31,$M$31,TRUE))),"") -> 4.912445987e-06 | F37: 0.001009648207 | G37: =IF(D37<>"",D37*BRLRWT!$H$9*1000,"") -> 100.4735761 | H37: =IF(E37<>"",E37*BRLRWT!$H$9*1000,"") -> 0.4912445987 | I37: 100.9648207
B38: 2.986223359 | C38: 3.068239454 | D38: =IF($L$30<>"",IF(INPUT!$H$10=1,(_xlfn.NORM.DIST(C38,$L$30,$M$30,TRUE)-_xlfn.NORM.DIST(B38,$L$30,$M$30,TRUE))*BRLRWT!$H$10/100,(_xlfn.NORM.DIST(C38,$L$30,$M$30,TRUE)-_xlfn.NORM.DIST(B38,$L$30,$M$30,TRUE))),"") -> 0.0003108450539 | E38: =IF($L$31<>"",IF(INPUT!$H$10=1,(_xlfn.NORM.DIST(C38,$L$31,$M$31,TRUE)-_xlfn.NORM.DIST(B38,$L$31,$M$31,TRUE))*(1-BRLRWT!$H$10/100),(_xlfn.NORM.DIST(C38,$L$31,$M$31,TRUE)-_xlfn.NORM.DIST(B38,$L$31,$M$31,TRUE))),"") -> 7.594182901e-07 | F38: 0.0003116044722 | G38: =IF(D38<>"",D38*BRLRWT!$H$9*1000,"") -> 31.08450539 | H38: =IF(E38<>"",E38*BRLRWT!$H$9*1000,"") -> 0.07594182901 | I38: 31.16044722
B39: 3.068239454 | C39: 3.150255548 | D39: =IF($L$30<>"",IF(INPUT!$H$10=1,(_xlfn.NORM.DIST(C39,$L$30,$M$30,TRUE)-_xlfn.NORM.DIST(B39,$L$30,$M$30,TRUE))*BRLRWT!$H$10/100,(_xlfn.NORM.DIST(C39,$L$30,$M$30,TRUE)-_xlfn.NORM.DIST(B39,$L$30,$M$30,TRUE))),"") -> 8.351519055e-05 | E39: =IF($L$31<>"",IF(INPUT!$H$10=1,(_xlfn.NORM.DIST(C39,$L$31,$M$31,TRUE)-_xlfn.NORM.DIST(B39,$L$31,$M$31,TRUE))*(1-BRLRWT!$H$10/100),(_xlfn.NORM.DIST(C39,$L$31,$M$31,TRUE)-_xlfn.NORM.DIST(B39,$L$31,$M$31,TRUE))),"") -> 9.961203418e-08 | F39: 8.361480258e-05 | G39: =IF(D39<>"",D39*BRLRWT!$H$9*1000,"") -> 8.351519055 | H39: =IF(E39<>"",E39*BRLRWT!$H$9*1000,"") -> 0.009961203418 | I39: 8.361480258
B40: 3.150255548 | C40: 3.232271643 | D40: =IF($L$30<>"",IF(INPUT!$H$10=1,(_xlfn.NORM.DIST(C40,$L$30,$M$30,TRUE)-_xlfn.NORM.DIST(B40,$L$30,$M$30,TRUE))*BRLRWT!$H$10/100,(_xlfn.NORM.DIST(C40,$L$30,$M$30,TRUE)-_xlfn.NORM.DIST(B40,$L$30,$M$30,TRUE))),"") -> 1.948517874e-05 | E40: =IF($L$31<>"",IF(INPUT!$H$10=1,(_xlfn.NORM.DIST(C40,$L$31,$M$31,TRUE)-_xlfn.NORM.DIST(B40,$L$31,$M$31,TRUE))*(1-BRLRWT!$H$10/100),(_xlfn.NORM.DIST(C40,$L$31,$M$31,TRUE)-_xlfn.NORM.DIST(B40,$L$31,$M$31,TRUE))),"") -> 1.108576209e-08 | F40: 1.94962645e-05 | G40: =IF(D40<>"",D40*BRLRWT!$H$9*1000,"") -> 1.948517874 | H40: =IF(E40<>"",E40*BRLRWT!$H$9*1000,"") -> 0.001108576209 | I40: 1.94962645
B41: 3.232271643 | C41: 3.314287737 | D41: =IF($L$30<>"",IF(INPUT!$H$10=1,(_xlfn.NORM.DIST(C41,$L$30,$M$30,TRUE)-_xlfn.NORM.DIST(B41,$L$30,$M$30,TRUE))*BRLRWT!$H$10/100,(_xlfn.NORM.DIST(C41,$L$30,$M$30,TRUE)-_xlfn.NORM.DIST(B41,$L$30,$M$30,TRUE))),"") -> 3.947733313e-06 | E41: =IF($L$31<>"",IF(INPUT!$H$10=1,(_xlfn.NORM.DIST(C41,$L$31,$M$31,TRUE)-_xlfn.NORM.DIST(B41,$L$31,$M$31,TRUE))*(1-BRLRWT!$H$10/100),(_xlfn.NORM.DIST(C41,$L$31,$M$31,TRUE)-_xlfn.NORM.DIST(B41,$L$31,$M$31,TRUE))),"") -> 1.046687625e-09 | F41: 3.948780001e-06 | G41: =IF(D41<>"",D41*BRLRWT!$H$9*1000,"") -> 0.3947733313 | H41: =IF(E41<>"",E41*BRLRWT!$H$9*1000,"") -> 0.0001046687625 | I41: 0.3948780001
B42: 3.314287737 | C42: 3.396303831 | D42: =IF($L$30<>"",IF(INPUT!$H$10=1,(_xlfn.NORM.DIST(C42,$L$30,$M$30,TRUE)-_xlfn.NORM.DIST(B42,$L$30,$M$30,TRUE))*BRLRWT!$H$10/100,(_xlfn.NORM.DIST(C42,$L$30,$M$30,TRUE)-_xlfn.NORM.DIST(B42,$L$30,$M$30,TRUE))),"") -> 6.945156079e-07 | E42: =IF($L$31<>"",IF(INPUT!$H$10=1,(_xlfn.NORM.DIST(C42,$L$31,$M$31,TRUE)-_xlfn.NORM.DIST(B42,$L$31,$M$31,TRUE))*(1-BRLRWT!$H$10/100),(_xlfn.NORM.DIST(C42,$L$31,$M$31,TRUE)-_xlfn.NORM.DIST(B42,$L$31,$M$31,TRUE))),"") -> 8.383793659e-11 | F42: 6.945994458e-07 | G42: =IF(D42<>"",D42*BRLRWT!$H$9*1000,"") -> 0.06945156079 | H42: =IF(E42<>"",E42*BRLRWT!$H$9*1000,"") -> 8.383793659e-06 | I42: 0.06945994458
B43: 3.396303831 | C43: 3.478319926 | D43: =IF($L$30<>"",IF(INPUT!$H$10=1,(_xlfn.NORM.DIST(C43,$L$30,$M$30,TRUE)-_xlfn.NORM.DIST(B43,$L$30,$M$30,TRUE))*BRLRWT!$H$10/100,(_xlfn.NORM.DIST(C43,$L$30,$M$30,TRUE)-_xlfn.NORM.DIST(B43,$L$30,$M$30,TRUE))),"") -> 1.060944358e-07 | E43: =IF($L$31<>"",IF(INPUT!$H$10=1,(_xlfn.NORM.DIST(C43,$L$31,$M$31,TRUE)-_xlfn.NORM.DIST(B43,$L$31,$M$31,TRUE))*(1-BRLRWT!$H$10/100),(_xlfn.NORM.DIST(C43,$L$31,$M$31,TRUE)-_xlfn.NORM.DIST(B43,$L$31,$M$31,TRUE))),"") -> 5.696554339e-12 | F43: 1.061001323e-07 | G43: =IF(D43<>"",D43*BRLRWT!$H$9*1000,"") -> 0.01060944358 | H43: =IF(E43<>"",E43*BRLRWT!$H$9*1000,"") -> 5.696554339e-07 | I43: 0.01061001323
B44: 3.478319926 | C44: 3.56033602 | D44: =IF($L$30<>"",IF(INPUT!$H$10=1,(_xlfn.NORM.DIST(C44,$L$30,$M$30,TRUE)-_xlfn.NORM.DIST(B44,$L$30,$M$30,TRUE))*BRLRWT!$H$10/100,(_xlfn.NORM.DIST(C44,$L$30,$M$30,TRUE)-_xlfn.NORM.DIST(B44,$L$30,$M$30,TRUE))),"") -> 1.407228462e-08 | E44: =IF($L$31<>"",IF(INPUT!$H$10=1,(_xlfn.NORM.DIST(C44,$L$31,$M$31,TRUE)-_xlfn.NORM.DIST(B44,$L$31,$M$31,TRUE))*(1-BRLRWT!$H$10/100),(_xlfn.NORM.DIST(C44,$L$31,$M$31,TRUE)-_xlfn.NORM.DIST(B44,$L$31,$M$31,TRUE))),"") -> 3.282929484e-13 | F44: 1.407261291e-08 | G44: =IF(D44<>"",D44*BRLRWT!$H$9*1000,"") -> 0.001407228462 | H44: =IF(E44<>"",E44*BRLRWT!$H$9*1000,"") -> 3.282929484e-08 | I44: 0.001407261291
B45: 3.56033602 | C45: ="inf." -> inf. | D45: =IF($L$30<>"",IF(INPUT!$H$10=1,(1-_xlfn.NORM.DIST(B45,$L$30,$M$30,TRUE))*BRLRWT!$H$10/100,(1-_xlfn.NORM.DIST(B45,$L$30,$M$30,TRUE))),"") -> 1.79786841e-09 | E45: =IF($L$31<>"",IF(INPUT!$H$10=1,(1-_xlfn.NORM.DIST(B44,$L$31,$M$31,TRUE))*(1-BRLRWT!$H$10/100),(1-_xlfn.NORM.DIST(B44,$L$31,$M$31,TRUE))),"") -> 3.450573161e-13 | F45: 1.798213467e-09 | G45: =IF(D45<>"",D45*BRLRWT!$H$9*1000,"") -> 0.000179786841 | H45: =IF(E45<>"",E45*BRLRWT!$H$9*1000,"") -> 3.450573161e-08 | I45: 0.0001798213467
B46: Total | D46: =SUM(D12:D45) -> 0.5 | E46: 0.5 | F46: 1 | G46: 50000 | H46: 50000 | I46: 100000

Sheet ThighWT
A8: 3-3. Results - Thigh Weight Distribution | K8: Breed
B10: Weight (lbs) | D10: Percentage | G10: Numbers
B11: Min. (>) | C11: Max. (≤) | D11: Male | E11: Female | F11: S/Run | G11: Male | H11: Female | I11: S/Run
B12: ="-inf." -> -inf. | C12: =$M$13 -> 0.559424464 | D12: =IF($L$30<>"",IF(INPUT!$H$10=1,_xlfn.NORM.DIST(C12,$L$30,$M$30,TRUE)*BRLRWT!$H$10/100,_xlfn.NORM.DIST(C12,$L$30,$M$30,TRUE)),"") -> 7.46877502e-11 | E12: =IF($L$31<>"",IF(INPUT!$H$10=1,_xlfn.NORM.DIST(C12,$L$31,$M$31,TRUE)*(1-BRLRWT!$H$10/100),_xlfn.NORM.DIST(C12,$L$31,$M$31,TRUE)),"") -> 4.472801043e-08 | F12: =IF(D12<>"",IF(E12<>"",D12+E12,""),"") -> 4.480269818e-08 | G12: =IF(D12<>"",D12*BRLRWT!$H$9*1000,"") -> 7.46877502e-06 | H12: =IF(E12<>"",E12*BRLRWT!$H$9*1000,"") -> 0.004472801043 | I12: =IF(G12<>"",IF(H12<>"",G12+H12,""),"") -> 0.004480269818 | L12: Range
B13: =C12 -> 0.559424464 | C13: =C12+$M$14 -> 0.5947267388 | D13: =IF($L$30<>"",IF(INPUT!$H$10=1,(_xlfn.NORM.DIST(C13,$L$30,$M$30,TRUE)-_xlfn.NORM.DIST(B13,$L$30,$M$30,TRUE))*BRLRWT!$H$10/100,(_xlfn.NORM.DIST(C13,$L$30,$M$30,TRUE)-_xlfn.NORM.DIST(B13,$L$30,$M$30,TRUE))),"") -> 4.754014819e-10 | E13: =IF($L$31<>"",IF(INPUT!$H$10=1,(_xlfn.NORM.DIST(C13,$L$31,$M$31,TRUE)-_xlfn.NORM.DIST(B13,$L$31,$M$31,TRUE))*(1-BRLRWT!$H$10/100),(_xlfn.NORM.DIST(C13,$L$31,$M$31,TRUE)-_xlfn.NORM.DIST(B13,$L$31,$M$31,TRUE))),"") -> 3.09327434e-07 | F13: =IF(D13<>"",IF(E13<>"",D13+E13,""),"") -> 3.098028355e-07 | G13: =IF(D13<>"",D13*BRLRWT!$H$9*1000,"") -> 4.754014819e-05 | H13: =IF(E13<>"",E13*BRLRWT!$H$9*1000,"") -> 0.0309327434 | I13: =IF(G13<>"",IF(H13<>"",G13+H13,""),"") -> 0.03098028355 | L13: min | M13: 0.559424464
B14: =C13 -> 0.5947267388 | C14: =C13+$M$14 -> 0.6300290136 | D14: =IF($L$30<>"",IF(INPUT!$H$10=1,(_xlfn.NORM.DIST(C14,$L$30,$M$30,TRUE)-_xlfn.NORM.DIST(B14,$L$30,$M$30,TRUE))*BRLRWT!$H$10/100,(_xlfn.NORM.DIST(C14,$L$30,$M$30,TRUE)-_xlfn.NORM.DIST(B14,$L$30,$M$30,TRUE))),"") -> 3.122643479e-09 | E14: =IF($L$31<>"",IF(INPUT!$H$10=1,(_xlfn.NORM.DIST(C14,$L$31,$M$31,TRUE)-_xlfn.NORM.DIST(B14,$L$31,$M$31,TRUE))*(1-BRLRWT!$H$10/100),(_xlfn.NORM.DIST(C14,$L$31,$M$31,TRUE)-_xlfn.NORM.DIST(B14,$L$31,$M$31,TRUE))),"") -> 2.052486345e-06 | F14: =IF(D14<>"",IF(E14<>"",D14+E14,""),"") -> 2.055608988e-06 | G14: =IF(D14<>"",D14*BRLRWT!$H$9*1000,"") -> 0.0003122643479 | H14: =IF(E14<>"",E14*BRLRWT!$H$9*1000,"") -> 0.2052486345 | I14: =IF(G14<>"",IF(H14<>"",G14+H14,""),"") -> 0.2055608988 | L14: step size | M14: 0.03530227481
B15: =C14 -> 0.6300290136 | C15: =C14+$M$14 -> 0.6653312884 | D15: =IF($L$30<>"",IF(INPUT!$H$10=1,(_xlfn.NORM.DIST(C15,$L$30,$M$30,TRUE)-_xlfn.NORM.DIST(B15,$L$30,$M$30,TRUE))*BRLRWT!$H$10/100,(_xlfn.NORM.DIST(C15,$L$30,$M$30,TRUE)-_xlfn.NORM.DIST(B15,$L$30,$M$30,TRUE))),"") -> 1.856149119e-08 | E15: =IF($L$31<>"",IF(INPUT!$H$10=1,(_xlfn.NORM.DIST(C15,$L$31,$M$31,TRUE)-_xlfn.NORM.DIST(B15,$L$31,$M$31,TRUE))*(1-BRLRWT!$H$10/100),(_xlfn.NORM.DIST(C15,$L$31,$M$31,TRUE)-_xlfn.NORM.DIST(B15,$L$31,$M$31,TRUE))),"") -> 1.165074183e-05 | F15: 1.166930333e-05 | G15: =IF(D15<>"",D15*BRLRWT!$H$9*1000,"") -> 0.001856149119 | H15: =IF(E15<>"",E15*BRLRWT!$H$9*1000,"") -> 1.165074183 | I15: 1.166930333
B16: 0.6653312884 | C16: 0.7006335633 | D16: =IF($L$30<>"",IF(INPUT!$H$10=1,(_xlfn.NORM.DIST(C16,$L$30,$M$30,TRUE)-_xlfn.NORM.DIST(B16,$L$30,$M$30,TRUE))*BRLRWT!$H$10/100,(_xlfn.NORM.DIST(C16,$L$30,$M$30,TRUE)-_xlfn.NORM.DIST(B16,$L$30,$M$30,TRUE))),"") -> 9.984746494e-08 | E16: =IF($L$31<>"",IF(INPUT!$H$10=1,(_xlfn.NORM.DIST(C16,$L$31,$M$31,TRUE)-_xlfn.NORM.DIST(B16,$L$31,$M$31,TRUE))*(1-BRLRWT!$H$10/100),(_xlfn.NORM.DIST(C16,$L$31,$M$31,TRUE)-_xlfn.NORM.DIST(B16,$L$31,$M$31,TRUE))),"") -> 5.657933423e-05 | F16: 5.667918169e-05 | G16: =IF(D16<>"",D16*BRLRWT!$H$9*1000,"") -> 0.009984746494 | H16: =IF(E16<>"",E16*BRLRWT!$H$9*1000,"") -> 5.657933423 | I16: 5.667918169
B17: 0.7006335633 | C17: 0.7359358381 | D17: =IF($L$30<>"",IF(INPUT!$H$10=1,(_xlfn.NORM.DIST(C17,$L$30,$M$30,TRUE)-_xlfn.NORM.DIST(B17,$L$30,$M$30,TRUE))*BRLRWT!$H$10/100,(_xlfn.NORM.DIST(C17,$L$30,$M$30,TRUE)-_xlfn.NORM.DIST(B17,$L$30,$M$30,TRUE))),"") -> 4.860712196e-07 | E17: =IF($L$31<>"",IF(INPUT!$H$10=1,(_xlfn.NORM.DIST(C17,$L$31,$M$31,TRUE)-_xlfn.NORM.DIST(B17,$L$31,$M$31,TRUE))*(1-BRLRWT!$H$10/100),(_xlfn.NORM.DIST(C17,$L$31,$M$31,TRUE)-_xlfn.NORM.DIST(B17,$L$31,$M$31,TRUE))),"") -> 0.000235077724 | F17: 0.0002355637952 | G17: =IF(D17<>"",D17*BRLRWT!$H$9*1000,"") -> 0.04860712196 | H17: =IF(E17<>"",E17*BRLRWT!$H$9*1000,"") -> 23.5077724 | I17: 23.55637952
B18: 0.7359358381 | C18: 0.7712381129 | D18: =IF($L$30<>"",IF(INPUT!$H$10=1,(_xlfn.NORM.DIST(C18,$L$30,$M$30,TRUE)-_xlfn.NORM.DIST(B18,$L$30,$M$30,TRUE))*BRLRWT!$H$10/100,(_xlfn.NORM.DIST(C18,$L$30,$M$30,TRUE)-_xlfn.NORM.DIST(B18,$L$30,$M$30,TRUE))),"") -> 2.141441646e-06 | E18: =IF($L$31<>"",IF(INPUT!$H$10=1,(_xlfn.NORM.DIST(C18,$L$31,$M$31,TRUE)-_xlfn.NORM.DIST(B18,$L$31,$M$31,TRUE))*(1-BRLRWT!$H$10/100),(_xlfn.NORM.DIST(C18,$L$31,$M$31,TRUE)-_xlfn.NORM.DIST(B18,$L$31,$M$31,TRUE))),"") -> 0.0008356640814 | F18: 0.000837805523 | G18: =IF(D18<>"",D18*BRLRWT!$H$9*1000,"") -> 0.2141441646 | H18: =IF(E18<>"",E18*BRLRWT!$H$9*1000,"") -> 83.56640814 | I18: 83.7805523
B19: 0.7712381129 | C19: 0.8065403877 | D19: =IF($L$30<>"",IF(INPUT!$H$10=1,(_xlfn.NORM.DIST(C19,$L$30,$M$30,TRUE)-_xlfn.NORM.DIST(B19,$L$30,$M$30,TRUE))*BRLRWT!$H$10/100,(_xlfn.NORM.DIST(C19,$L$30,$M$30,TRUE)-_xlfn.NORM.DIST(B19,$L$30,$M$30,TRUE))),"") -> 8.53808837e-06 | E19: =IF($L$31<>"",IF(INPUT!$H$10=1,(_xlfn.NORM.DIST(C19,$L$31,$M$31,TRUE)-_xlfn.NORM.DIST(B19,$L$31,$M$31,TRUE))*(1-BRLRWT!$H$10/100),(_xlfn.NORM.DIST(C19,$L$31,$M$31,TRUE)-_xlfn.NORM.DIST(B19,$L$31,$M$31,TRUE))),"") -> 0.002541759468 | F19: 0.002550297556 | G19: =IF(D19<>"",D19*BRLRWT!$H$9*1000,"") -> 0.853808837 | H19: =IF(E19<>"",E19*BRLRWT!$H$9*1000,"") -> 254.1759468 | I19: 255.0297556
B20: 0.8065403877 | C20: 0.8418426625 | D20: =IF($L$30<>"",IF(INPUT!$H$10=1,(_xlfn.NORM.DIST(C20,$L$30,$M$30,TRUE)-_xlfn.NORM.DIST(B20,$L$30,$M$30,TRUE))*BRLRWT!$H$10/100,(_xlfn.NORM.DIST(C20,$L$30,$M$30,TRUE)-_xlfn.NORM.DIST(B20,$L$30,$M$30,TRUE))),"") -> 3.080828242e-05 | E20: =IF($L$31<>"",IF(INPUT!$H$10=1,(_xlfn.NORM.DIST(C20,$L$31,$M$31,TRUE)-_xlfn.NORM.DIST(B20,$L$31,$M$31,TRUE))*(1-BRLRWT!$H$10/100),(_xlfn.NORM.DIST(C20,$L$31,$M$31,TRUE)-_xlfn.NORM.DIST(B20,$L$31,$M$31,TRUE))),"") -> 0.006615062045 | F20: 0.006645870327 | G20: =IF(D20<>"",D20*BRLRWT!$H$9*1000,"") -> 3.080828242 | H20: =IF(E20<>"",E20*BRLRWT!$H$9*1000,"") -> 661.5062045 | I20: 664.5870327
B21: 0.8418426625 | C21: 0.8771449373 | D21: =IF($L$30<>"",IF(INPUT!$H$10=1,(_xlfn.NORM.DIST(C21,$L$30,$M$30,TRUE)-_xlfn.NORM.DIST(B21,$L$30,$M$30,TRUE))*BRLRWT!$H$10/100,(_xlfn.NORM.DIST(C21,$L$30,$M$30,TRUE)-_xlfn.NORM.DIST(B21,$L$30,$M$30,TRUE))),"") -> 0.0001006076286 | E21: =IF($L$31<>"",IF(INPUT!$H$10=1,(_xlfn.NORM.DIST(C21,$L$31,$M$31,TRUE)-_xlfn.NORM.DIST(B21,$L$31,$M$31,TRUE))*(1-BRLRWT!$H$10/100),(_xlfn.NORM.DIST(C21,$L$31,$M$31,TRUE)-_xlfn.NORM.DIST(B21,$L$31,$M$31,TRUE))),"") -> 0.01473135735 | F21: 0.01483196498 | G21: =IF(D21<>"",D21*BRLRWT!$H$9*1000,"") -> 10.06076286 | H21: =IF(E21<>"",E21*BRLRWT!$H$9*1000,"") -> 1473.135735 | I21: 1483.196498
B22: 0.8771449373 | C22: 0.9124472121 | D22: =IF($L$30<>"",IF(INPUT!$H$10=1,(_xlfn.NORM.DIST(C22,$L$30,$M$30,TRUE)-_xlfn.NORM.DIST(B22,$L$30,$M$30,TRUE))*BRLRWT!$H$10/100,(_xlfn.NORM.DIST(C22,$L$30,$M$30,TRUE)-_xlfn.NORM.DIST(B22,$L$30,$M$30,TRUE))),"") -> 0.000297341014 | E22: =IF($L$31<>"",IF(INPUT!$H$10=1,(_xlfn.NORM.DIST(C22,$L$31,$M$31,TRUE)-_xlfn.NORM.DIST(B22,$L$31,$M$31,TRUE))*(1-BRLRWT!$H$10/100),(_xlfn.NORM.DIST(C22,$L$31,$M$31,TRUE)-_xlfn.NORM.DIST(B22,$L$31,$M$31,TRUE))),"") -> 0.02807189737 | F22: 0.02836923838 | G22: =IF(D22<>"",D22*BRLRWT!$H$9*1000,"") -> 29.7341014 | H22: =IF(E22<>"",E22*BRLRWT!$H$9*1000,"") -> 2807.189737 | I22: 2836.923838
B23: 0.9124472121 | C23: 0.9477494869 | D23: =IF($L$30<>"",IF(INPUT!$H$10=1,(_xlfn.NORM.DIST(C23,$L$30,$M$30,TRUE)-_xlfn.NORM.DIST(B23,$L$30,$M$30,TRUE))*BRLRWT!$H$10/100,(_xlfn.NORM.DIST(C23,$L$30,$M$30,TRUE)-_xlfn.NORM.DIST(B23,$L$30,$M$30,TRUE))),"") -> 0.0007953217021 | E23: =IF($L$31<>"",IF(INPUT!$H$10=1,(_xlfn.NORM.DIST(C23,$L$31,$M$31,TRUE)-_xlfn.NORM.DIST(B23,$L$31,$M$31,TRUE))*(1-BRLRWT!$H$10/100),(_xlfn.NORM.DIST(C23,$L$31,$M$31,TRUE)-_xlfn.NORM.DIST(B23,$L$31,$M$31,TRUE))),"") -> 0.04577515008 | F23: 0.04657047178 | G23: =IF(D23<>"",D23*BRLRWT!$H$9*1000,"") -> 79.53217021 | H23: =IF(E23<>"",E23*BRLRWT!$H$9*1000,"") -> 4577.515008 | I23: 4657.047178
B24: 0.9477494869 | C24: 0.9830517618 | D24: =IF($L$30<>"",IF(INPUT!$H$10=1,(_xlfn.NORM.DIST(C24,$L$30,$M$30,TRUE)-_xlfn.NORM.DIST(B24,$L$30,$M$30,TRUE))*BRLRWT!$H$10/100,(_xlfn.NORM.DIST(C24,$L$30,$M$30,TRUE)-_xlfn.NORM.DIST(B24,$L$30,$M$30,TRUE))),"") -> 0.001925299542 | E24: =IF($L$31<>"",IF(INPUT!$H$10=1,(_xlfn.NORM.DIST(C24,$L$31,$M$31,TRUE)-_xlfn.NORM.DIST(B24,$L$31,$M$31,TRUE))*(1-BRLRWT!$H$10/100),(_xlfn.NORM.DIST(C24,$L$31,$M$31,TRUE)-_xlfn.NORM.DIST(B24,$L$31,$M$31,TRUE))),"") -> 0.06387392404 | F24: 0.06579922358 | G24: =IF(D24<>"",D24*BRLRWT!$H$9*1000,"") -> 192.5299542 | H24: =IF(E24<>"",E24*BRLRWT!$H$9*1000,"") -> 6387.392404 | I24: 6579.922358
B25: 0.9830517618 | C25: 1.018354037 | D25: =IF($L$30<>"",IF(INPUT!$H$10=1,(_xlfn.NORM.DIST(C25,$L$30,$M$30,TRUE)-_xlfn.NORM.DIST(B25,$L$30,$M$30,TRUE))*BRLRWT!$H$10/100,(_xlfn.NORM.DIST(C25,$L$30,$M$30,TRUE)-_xlfn.NORM.DIST(B25,$L$30,$M$30,TRUE))),"") -> 0.004218172101 | E25: =IF($L$31<>"",IF(INPUT!$H$10=1,(_xlfn.NORM.DIST(C25,$L$31,$M$31,TRUE)-_xlfn.NORM.DIST(B25,$L$31,$M$31,TRUE))*(1-BRLRWT!$H$10/100),(_xlfn.NORM.DIST(C25,$L$31,$M$31,TRUE)-_xlfn.NORM.DIST(B25,$L$31,$M$31,TRUE))),"") -> 0.07627073184 | F25: 0.08048890394 | G25: =IF(D25<>"",D25*BRLRWT!$H$9*1000,"") -> 421.8172101 | H25: =IF(E25<>"",E25*BRLRWT!$H$9*1000,"") -> 7627.073184 | I25: 8048.890394
B26: 1.018354037 | C26: 1.053656311 | D26: =IF($L$30<>"",IF(INPUT!$H$10=1,(_xlfn.NORM.DIST(C26,$L$30,$M$30,TRUE)-_xlfn.NORM.DIST(B26,$L$30,$M$30,TRUE))*BRLRWT!$H$10/100,(_xlfn.NORM.DIST(C26,$L$30,$M$30,TRUE)-_xlfn.NORM.DIST(B26,$L$30,$M$30,TRUE))),"") -> 0.008364183278 | E26: =IF($L$31<>"",IF(INPUT!$H$10=1,(_xlfn.NORM.DIST(C26,$L$31,$M$31,TRUE)-_xlfn.NORM.DIST(B26,$L$31,$M$31,TRUE))*(1-BRLRWT!$H$10/100),(_xlfn.NORM.DIST(C26,$L$31,$M$31,TRUE)-_xlfn.NORM.DIST(B26,$L$31,$M$31,TRUE))),"") -> 0.07793548372 | F26: 0.086299667 | G26: =IF(D26<>"",D26*BRLRWT!$H$9*1000,"") -> 836.4183278 | H26: =IF(E26<>"",E26*BRLRWT!$H$9*1000,"") -> 7793.548372 | I26: 8629.9667
B27: 1.053656311 | C27: 1.088958586 | D27: =IF($L$30<>"",IF(INPUT!$H$10=1,(_xlfn.NORM.DIST(C27,$L$30,$M$30,TRUE)-_xlfn.NORM.DIST(B27,$L$30,$M$30,TRUE))*BRLRWT!$H$10/100,(_xlfn.NORM.DIST(C27,$L$30,$M$30,TRUE)-_xlfn.NORM.DIST(B27,$L$30,$M$30,TRUE))),"") -> 0.01501061439 | E27: =IF($L$31<>"",IF(INPUT!$H$10=1,(_xlfn.NORM.DIST(C27,$L$31,$M$31,TRUE)-_xlfn.NORM.DIST(B27,$L$31,$M$31,TRUE))*(1-BRLRWT!$H$10/100),(_xlfn.NORM.DIST(C27,$L$31,$M$31,TRUE)-_xlfn.NORM.DIST(B27,$L$31,$M$31,TRUE))),"") -> 0.06814843216 | F27: 0.08315904655 | G27: =IF(D27<>"",D27*BRLRWT!$H$9*1000,"") -> 1501.061439 | H27: =IF(E27<>"",E27*BRLRWT!$H$9*1000,"") -> 6814.843216 | I27: 8315.904655
B28: 1.088958586 | C28: 1.124260861 | D28: =IF($L$30<>"",IF(INPUT!$H$10=1,(_xlfn.NORM.DIST(C28,$L$30,$M$30,TRUE)-_xlfn.NORM.DIST(B28,$L$30,$M$30,TRUE))*BRLRWT!$H$10/100,(_xlfn.NORM.DIST(C28,$L$30,$M$30,TRUE)-_xlfn.NORM.DIST(B28,$L$30,$M$30,TRUE))),"") -> 0.02438098069 | E28: =IF($L$31<>"",IF(INPUT!$H$10=1,(_xlfn.NORM.DIST(C28,$L$31,$M$31,TRUE)-_xlfn.NORM.DIST(B28,$L$31,$M$31,TRUE))*(1-BRLRWT!$H$10/100),(_xlfn.NORM.DIST(C28,$L$31,$M$31,TRUE)-_xlfn.NORM.DIST(B28,$L$31,$M$31,TRUE))),"") -> 0.05099386304 | F28: 0.07537484373 | G28: =IF(D28<>"",D28*BRLRWT!$H$9*1000,"") -> 2438.098069 | H28: =IF(E28<>"",E28*BRLRWT!$H$9*1000,"") -> 5099.386304 | I28: 7537.484373 | K28: - Summary
B29: 1.124260861 | C29: 1.159563136 | D29: =IF($L$30<>"",IF(INPUT!$H$10=1,(_xlfn.NORM.DIST(C29,$L$30,$M$30,TRUE)-_xlfn.NORM.DIST(B29,$L$30,$M$30,TRUE))*BRLRWT!$H$10/100,(_xlfn.NORM.DIST(C29,$L$30,$M$30,TRUE)-_xlfn.NORM.DIST(B29,$L$30,$M$30,TRUE))),"") -> 0.0358412705 | E29: =IF($L$31<>"",IF(INPUT!$H$10=1,(_xlfn.NORM.DIST(C29,$L$31,$M$31,TRUE)-_xlfn.NORM.DIST(B29,$L$31,$M$31,TRUE))*(1-BRLRWT!$H$10/100),(_xlfn.NORM.DIST(C29,$L$31,$M$31,TRUE)-_xlfn.NORM.DIST(B29,$L$31,$M$31,TRUE))),"") -> 0.03265256348 | F29: 0.06849383398 | G29: =IF(D29<>"",D29*BRLRWT!$H$9*1000,"") -> 3584.12705 | H29: =IF(E29<>"",E29*BRLRWT!$H$9*1000,"") -> 3265.256348 | I29: 6849.383398 | K29: Unit (lbs) | L29: Mean | M29: Std. Dev. | N29: C.V. (%)
B30: 1.159563136 | C30: 1.194865411 | D30: =IF($L$30<>"",IF(INPUT!$H$10=1,(_xlfn.NORM.DIST(C30,$L$30,$M$30,TRUE)-_xlfn.NORM.DIST(B30,$L$30,$M$30,TRUE))*BRLRWT!$H$10/100,(_xlfn.NORM.DIST(C30,$L$30,$M$30,TRUE)-_xlfn.NORM.DIST(B30,$L$30,$M$30,TRUE))),"") -> 0.04768662046 | E30: =IF($L$31<>"",IF(INPUT!$H$10=1,(_xlfn.NORM.DIST(C30,$L$31,$M$31,TRUE)-_xlfn.NORM.DIST(B30,$L$31,$M$31,TRUE))*(1-BRLRWT!$H$10/100),(_xlfn.NORM.DIST(C30,$L$31,$M$31,TRUE)-_xlfn.NORM.DIST(B30,$L$31,$M$31,TRUE))),"") -> 0.0178915412 | F30: 0.06557816166 | G30: =IF(D30<>"",D30*BRLRWT!$H$9*1000,"") -> 4768.662046 | H30: =IF(E30<>"",E30*BRLRWT!$H$9*1000,"") -> 1789.15412 | I30: 6557.816166 | K30: Male | L30: 1.2606296 | M30: 0.1113125545 | N30: =IF(L30<>"",M30/L30*100,"") -> 8.829917572
B31: 1.194865411 | C31: 1.230167685 | D31: =IF($L$30<>"",IF(INPUT!$H$10=1,(_xlfn.NORM.DIST(C31,$L$30,$M$30,TRUE)-_xlfn.NORM.DIST(B31,$L$30,$M$30,TRUE))*BRLRWT!$H$10/100,(_xlfn.NORM.DIST(C31,$L$30,$M$30,TRUE)-_xlfn.NORM.DIST(B31,$L$30,$M$30,TRUE))),"") -> 0.05742376455 | E31: =IF($L$31<>"",IF(INPUT!$H$10=1,(_xlfn.NORM.DIST(C31,$L$31,$M$31,TRUE)-_xlfn.NORM.DIST(B31,$L$31,$M$31,TRUE))*(1-BRLRWT!$H$10/100),(_xlfn.NORM.DIST(C31,$L$31,$M$31,TRUE)-_xlfn.NORM.DIST(B31,$L$31,$M$31,TRUE))),"") -> 0.008388823075 | F31: 0.06581258762 | G31: =IF(D31<>"",D31*BRLRWT!$H$9*1000,"") -> 5742.376455 | H31: =IF(E31<>"",E31*BRLRWT!$H$9*1000,"") -> 838.8823075 | I31: 6581.258762 | K31: Female | L31: 1.023247003 | M31: 0.08885469716 | N31: =IF(L31<>"",M31/L31*100,"") -> 8.683601994
B32: 1.230167685 | C32: 1.26546996 | D32: =IF($L$30<>"",IF(INPUT!$H$10=1,(_xlfn.NORM.DIST(C32,$L$30,$M$30,TRUE)-_xlfn.NORM.DIST(B32,$L$30,$M$30,TRUE))*BRLRWT!$H$10/100,(_xlfn.NORM.DIST(C32,$L$30,$M$30,TRUE)-_xlfn.NORM.DIST(B32,$L$30,$M$30,TRUE))),"") -> 0.06258487982 | E32: =IF($L$31<>"",IF(INPUT!$H$10=1,(_xlfn.NORM.DIST(C32,$L$31,$M$31,TRUE)-_xlfn.NORM.DIST(B32,$L$31,$M$31,TRUE))*(1-BRLRWT!$H$10/100),(_xlfn.NORM.DIST(C32,$L$31,$M$31,TRUE)-_xlfn.NORM.DIST(B32,$L$31,$M$31,TRUE))),"") -> 0.003365633848 | F32: 0.06595051367 | G32: =IF(D32<>"",D32*BRLRWT!$H$9*1000,"") -> 6258.487982 | H32: =IF(E32<>"",E32*BRLRWT!$H$9*1000,"") -> 336.5633848 | I32: 6595.051367 | K32: S/Run | L32: 1.141938301 | M32: 0.155661316 | N32: =IF(L32<>"",M32/L32*100,"") -> 13.63132455
B33: 1.26546996 | C33: 1.300772235 | D33: =IF($L$30<>"",IF(INPUT!$H$10=1,(_xlfn.NORM.DIST(C33,$L$30,$M$30,TRUE)-_xlfn.NORM.DIST(B33,$L$30,$M$30,TRUE))*BRLRWT!$H$10/100,(_xlfn.NORM.DIST(C33,$L$30,$M$30,TRUE)-_xlfn.NORM.DIST(B33,$L$30,$M$30,TRUE))),"") -> 0.06173481463 | E33: =IF($L$31<>"",IF(INPUT!$H$10=1,(_xlfn.NORM.DIST(C33,$L$31,$M$31,TRUE)-_xlfn.NORM.DIST(B33,$L$31,$M$31,TRUE))*(1-BRLRWT!$H$10/100),(_xlfn.NORM.DIST(C33,$L$31,$M$31,TRUE)-_xlfn.NORM.DIST(B33,$L$31,$M$31,TRUE))),"") -> 0.001155402034 | F33: 0.06289021667 | G33: =IF(D33<>"",D33*BRLRWT!$H$9*1000,"") -> 6173.481463 | H33: =IF(E33<>"",E33*BRLRWT!$H$9*1000,"") -> 115.5402034 | I33: 6289.021667
B34: 1.300772235 | C34: 1.33607451 | D34: =IF($L$30<>"",IF(INPUT!$H$10=1,(_xlfn.NORM.DIST(C34,$L$30,$M$30,TRUE)-_xlfn.NORM.DIST(B34,$L$30,$M$30,TRUE))*BRLRWT!$H$10/100,(_xlfn.NORM.DIST(C34,$L$30,$M$30,TRUE)-_xlfn.NORM.DIST(B34,$L$30,$M$30,TRUE))),"") -> 0.05511550455 | E34: =IF($L$31<>"",IF(INPUT!$H$10=1,(_xlfn.NORM.DIST(C34,$L$31,$M$31,TRUE)-_xlfn.NORM.DIST(B34,$L$31,$M$31,TRUE))*(1-BRLRWT!$H$10/100),(_xlfn.NORM.DIST(C34,$L$31,$M$31,TRUE)-_xlfn.NORM.DIST(B34,$L$31,$M$31,TRUE))),"") -> 0.0003393797849 | F34: 0.05545488434 | G34: =IF(D34<>"",D34*BRLRWT!$H$9*1000,"") -> 5511.550455 | H34: =IF(E34<>"",E34*BRLRWT!$H$9*1000,"") -> 33.93797849 | I34: 5545.488434
B35: 1.33607451 | C35: 1.371376785 | D35: =IF($L$30<>"",IF(INPUT!$H$10=1,(_xlfn.NORM.DIST(C35,$L$30,$M$30,TRUE)-_xlfn.NORM.DIST(B35,$L$30,$M$30,TRUE))*BRLRWT!$H$10/100,(_xlfn.NORM.DIST(C35,$L$30,$M$30,TRUE)-_xlfn.NORM.DIST(B35,$L$30,$M$30,TRUE))),"") -> 0.04453484275 | E35: =IF($L$31<>"",IF(INPUT!$H$10=1,(_xlfn.NORM.DIST(C35,$L$31,$M$31,TRUE)-_xlfn.NORM.DIST(B35,$L$31,$M$31,TRUE))*(1-BRLRWT!$H$10/100),(_xlfn.NORM.DIST(C35,$L$31,$M$31,TRUE)-_xlfn.NORM.DIST(B35,$L$31,$M$31,TRUE))),"") -> 8.529232695e-05 | F35: 0.04462013508 | G35: =IF(D35<>"",D35*BRLRWT!$H$9*1000,"") -> 4453.484275 | H35: =IF(E35<>"",E35*BRLRWT!$H$9*1000,"") -> 8.529232695 | I35: 4462.013508
B36: 1.371376785 | C36: 1.40667906 | D36: =IF($L$30<>"",IF(INPUT!$H$10=1,(_xlfn.NORM.DIST(C36,$L$30,$M$30,TRUE)-_xlfn.NORM.DIST(B36,$L$30,$M$30,TRUE))*BRLRWT!$H$10/100,(_xlfn.NORM.DIST(C36,$L$30,$M$30,TRUE)-_xlfn.NORM.DIST(B36,$L$30,$M$30,TRUE))),"") -> 0.03256925128 | E36: =IF($L$31<>"",IF(INPUT!$H$10=1,(_xlfn.NORM.DIST(C36,$L$31,$M$31,TRUE)-_xlfn.NORM.DIST(B36,$L$31,$M$31,TRUE))*(1-BRLRWT!$H$10/100),(_xlfn.NORM.DIST(C36,$L$31,$M$31,TRUE)-_xlfn.NORM.DIST(B36,$L$31,$M$31,TRUE))),"") -> 1.833953205e-05 | F36: 0.03258759081 | G36: =IF(D36<>"",D36*BRLRWT!$H$9*1000,"") -> 3256.925128 | H36: =IF(E36<>"",E36*BRLRWT!$H$9*1000,"") -> 1.833953205 | I36: 3258.759081
B37: 1.40667906 | C37: 1.441981334 | D37: =IF($L$30<>"",IF(INPUT!$H$10=1,(_xlfn.NORM.DIST(C37,$L$30,$M$30,TRUE)-_xlfn.NORM.DIST(B37,$L$30,$M$30,TRUE))*BRLRWT!$H$10/100,(_xlfn.NORM.DIST(C37,$L$30,$M$30,TRUE)-_xlfn.NORM.DIST(B37,$L$30,$M$30,TRUE))),"") -> 0.02155739112 | E37: =IF($L$31<>"",IF(INPUT!$H$10=1,(_xlfn.NORM.DIST(C37,$L$31,$M$31,TRUE)-_xlfn.NORM.DIST(B37,$L$31,$M$31,TRUE))*(1-BRLRWT!$H$10/100),(_xlfn.NORM.DIST(C37,$L$31,$M$31,TRUE)-_xlfn.NORM.DIST(B37,$L$31,$M$31,TRUE))),"") -> 3.373670875e-06 | F37: 0.02156076479 | G37: =IF(D37<>"",D37*BRLRWT!$H$9*1000,"") -> 2155.739112 | H37: =IF(E37<>"",E37*BRLRWT!$H$9*1000,"") -> 0.3373670875 | I37: 2156.076479
B38: 1.441981334 | C38: 1.477283609 | D38: =IF($L$30<>"",IF(INPUT!$H$10=1,(_xlfn.NORM.DIST(C38,$L$30,$M$30,TRUE)-_xlfn.NORM.DIST(B38,$L$30,$M$30,TRUE))*BRLRWT!$H$10/100,(_xlfn.NORM.DIST(C38,$L$30,$M$30,TRUE)-_xlfn.NORM.DIST(B38,$L$30,$M$30,TRUE))),"") -> 0.01291408695 | E38: =IF($L$31<>"",IF(INPUT!$H$10=1,(_xlfn.NORM.DIST(C38,$L$31,$M$31,TRUE)-_xlfn.NORM.DIST(B38,$L$31,$M$31,TRUE))*(1-BRLRWT!$H$10/100),(_xlfn.NORM.DIST(C38,$L$31,$M$31,TRUE)-_xlfn.NORM.DIST(B38,$L$31,$M$31,TRUE))),"") -> 5.309261734e-07 | F38: 0.01291461788 | G38: =IF(D38<>"",D38*BRLRWT!$H$9*1000,"") -> 1291.408695 | H38: =IF(E38<>"",E38*BRLRWT!$H$9*1000,"") -> 0.05309261734 | I38: 1291.461788
B39: 1.477283609 | C39: 1.512585884 | D39: =IF($L$30<>"",IF(INPUT!$H$10=1,(_xlfn.NORM.DIST(C39,$L$30,$M$30,TRUE)-_xlfn.NORM.DIST(B39,$L$30,$M$30,TRUE))*BRLRWT!$H$10/100,(_xlfn.NORM.DIST(C39,$L$30,$M$30,TRUE)-_xlfn.NORM.DIST(B39,$L$30,$M$30,TRUE))),"") -> 0.007001779747 | E39: =IF($L$31<>"",IF(INPUT!$H$10=1,(_xlfn.NORM.DIST(C39,$L$31,$M$31,TRUE)-_xlfn.NORM.DIST(B39,$L$31,$M$31,TRUE))*(1-BRLRWT!$H$10/100),(_xlfn.NORM.DIST(C39,$L$31,$M$31,TRUE)-_xlfn.NORM.DIST(B39,$L$31,$M$31,TRUE))),"") -> 7.147635278e-08 | F39: 0.007001851223 | G39: =IF(D39<>"",D39*BRLRWT!$H$9*1000,"") -> 700.1779747 | H39: =IF(E39<>"",E39*BRLRWT!$H$9*1000,"") -> 0.007147635278 | I39: 700.1851223
B40: 1.512585884 | C40: 1.547888159 | D40: =IF($L$30<>"",IF(INPUT!$H$10=1,(_xlfn.NORM.DIST(C40,$L$30,$M$30,TRUE)-_xlfn.NORM.DIST(B40,$L$30,$M$30,TRUE))*BRLRWT!$H$10/100,(_xlfn.NORM.DIST(C40,$L$30,$M$30,TRUE)-_xlfn.NORM.DIST(B40,$L$30,$M$30,TRUE))),"") -> 0.00343580284 | E40: =IF($L$31<>"",IF(INPUT!$H$10=1,(_xlfn.NORM.DIST(C40,$L$31,$M$31,TRUE)-_xlfn.NORM.DIST(B40,$L$31,$M$31,TRUE))*(1-BRLRWT!$H$10/100),(_xlfn.NORM.DIST(C40,$L$31,$M$31,TRUE)-_xlfn.NORM.DIST(B40,$L$31,$M$31,TRUE))),"") -> 8.231264614e-09 | F40: 0.003435811071 | G40: =IF(D40<>"",D40*BRLRWT!$H$9*1000,"") -> 343.580284 | H40: =IF(E40<>"",E40*BRLRWT!$H$9*1000,"") -> 0.0008231264614 | I40: 343.5811071
B41: 1.547888159 | C41: 1.583190434 | D41: =IF($L$30<>"",IF(INPUT!$H$10=1,(_xlfn.NORM.DIST(C41,$L$30,$M$30,TRUE)-_xlfn.NORM.DIST(B41,$L$30,$M$30,TRUE))*BRLRWT!$H$10/100,(_xlfn.NORM.DIST(C41,$L$30,$M$30,TRUE)-_xlfn.NORM.DIST(B41,$L$30,$M$30,TRUE))),"") -> 0.001525880631 | E41: =IF($L$31<>"",IF(INPUT!$H$10=1,(_xlfn.NORM.DIST(C41,$L$31,$M$31,TRUE)-_xlfn.NORM.DIST(B41,$L$31,$M$31,TRUE))*(1-BRLRWT!$H$10/100),(_xlfn.NORM.DIST(C41,$L$31,$M$31,TRUE)-_xlfn.NORM.DIST(B41,$L$31,$M$31,TRUE))),"") -> 8.108213545e-10 | F41: 0.001525881442 | G41: =IF(D41<>"",D41*BRLRWT!$H$9*1000,"") -> 152.5880631 | H41: =IF(E41<>"",E41*BRLRWT!$H$9*1000,"") -> 8.108213545e-05 | I41: 152.5881442
B42: 1.583190434 | C42: 1.618492708 | D42: =IF($L$30<>"",IF(INPUT!$H$10=1,(_xlfn.NORM.DIST(C42,$L$30,$M$30,TRUE)-_xlfn.NORM.DIST(B42,$L$30,$M$30,TRUE))*BRLRWT!$H$10/100,(_xlfn.NORM.DIST(C42,$L$30,$M$30,TRUE)-_xlfn.NORM.DIST(B42,$L$30,$M$30,TRUE))),"") -> 0.0006133135959 | E42: =IF($L$31<>"",IF(INPUT!$H$10=1,(_xlfn.NORM.DIST(C42,$L$31,$M$31,TRUE)-_xlfn.NORM.DIST(B42,$L$31,$M$31,TRUE))*(1-BRLRWT!$H$10/100),(_xlfn.NORM.DIST(C42,$L$31,$M$31,TRUE)-_xlfn.NORM.DIST(B42,$L$31,$M$31,TRUE))),"") -> 6.831507582e-11 | F42: 0.0006133136643 | G42: =IF(D42<>"",D42*BRLRWT!$H$9*1000,"") -> 61.33135959 | H42: =IF(E42<>"",E42*BRLRWT!$H$9*1000,"") -> 6.831507582e-06 | I42: 61.33136643
B43: 1.618492708 | C43: 1.653794983 | D43: =IF($L$30<>"",IF(INPUT!$H$10=1,(_xlfn.NORM.DIST(C43,$L$30,$M$30,TRUE)-_xlfn.NORM.DIST(B43,$L$30,$M$30,TRUE))*BRLRWT!$H$10/100,(_xlfn.NORM.DIST(C43,$L$30,$M$30,TRUE)-_xlfn.NORM.DIST(B43,$L$30,$M$30,TRUE))),"") -> 0.000223105971 | E43: =IF($L$31<>"",IF(INPUT!$H$10=1,(_xlfn.NORM.DIST(C43,$L$31,$M$31,TRUE)-_xlfn.NORM.DIST(B43,$L$31,$M$31,TRUE))*(1-BRLRWT!$H$10/100),(_xlfn.NORM.DIST(C43,$L$31,$M$31,TRUE)-_xlfn.NORM.DIST(B43,$L$31,$M$31,TRUE))),"") -> 4.922839913e-12 | F43: 0.0002231059759 | G43: =IF(D43<>"",D43*BRLRWT!$H$9*1000,"") -> 22.3105971 | H43: =IF(E43<>"",E43*BRLRWT!$H$9*1000,"") -> 4.922839913e-07 | I43: 22.31059759
B44: 1.653794983 | C44: 1.689097258 | D44: =IF($L$30<>"",IF(INPUT!$H$10=1,(_xlfn.NORM.DIST(C44,$L$30,$M$30,TRUE)-_xlfn.NORM.DIST(B44,$L$30,$M$30,TRUE))*BRLRWT!$H$10/100,(_xlfn.NORM.DIST(C44,$L$30,$M$30,TRUE)-_xlfn.NORM.DIST(B44,$L$30,$M$30,TRUE))),"") -> 7.345188344e-05 | E44: =IF($L$31<>"",IF(INPUT!$H$10=1,(_xlfn.NORM.DIST(C44,$L$31,$M$31,TRUE)-_xlfn.NORM.DIST(B44,$L$31,$M$31,TRUE))*(1-BRLRWT!$H$10/100),(_xlfn.NORM.DIST(C44,$L$31,$M$31,TRUE)-_xlfn.NORM.DIST(B44,$L$31,$M$31,TRUE))),"") -> 3.033684415e-13 | F44: 7.345188374e-05 | G44: =IF(D44<>"",D44*BRLRWT!$H$9*1000,"") -> 7.345188344 | H44: =IF(E44<>"",E44*BRLRWT!$H$9*1000,"") -> 3.033684415e-08 | I44: 7.345188374
B45: 1.689097258 | C45: ="inf." -> inf. | D45: =IF($L$30<>"",IF(INPUT!$H$10=1,(1-_xlfn.NORM.DIST(B45,$L$30,$M$30,TRUE))*BRLRWT!$H$10/100,(1-_xlfn.NORM.DIST(B45,$L$30,$M$30,TRUE))),"") -> 2.962239078e-05 | E45: =IF($L$31<>"",IF(INPUT!$H$10=1,(1-_xlfn.NORM.DIST(B44,$L$31,$M$31,TRUE))*(1-BRLRWT!$H$10/100),(1-_xlfn.NORM.DIST(B44,$L$31,$M$31,TRUE))),"") -> 3.201328092e-13 | F45: 2.96223911e-05 | G45: =IF(D45<>"",D45*BRLRWT!$H$9*1000,"") -> 2.962239078 | H45: =IF(E45<>"",E45*BRLRWT!$H$9*1000,"") -> 3.201328092e-08 | I45: 2.96223911
B46: Total | D46: =SUM(D12:D45) -> 0.5 | E46: 0.5 | F46: 1 | G46: 50000 | H46: 50000 | I46: 100000

Sheet DrumWT
A8: 3-4. Results - Drum Weight Distribution | K8: Breed
B10: Weight (lbs) | D10: Percentage | G10: Numbers
B11: Min. (>) | C11: Max. (≤) | D11: Male | E11: Female | F11: S/Run | G11: Male | H11: Female | I11: S/Run
B12: ="-inf." -> -inf. | C12: =$M$13 -> 0.4189276728 | D12: =IF($L$30<>"",IF(INPUT!$H$10=1,_xlfn.NORM.DIST(C12,$L$30,$M$30,TRUE)*BRLRWT!$H$10/100,_xlfn.NORM.DIST(C12,$L$30,$M$30,TRUE)),"") -> 7.46877502e-11 | E12: =IF($L$31<>"",IF(INPUT!$H$10=1,_xlfn.NORM.DIST(C12,$L$31,$M$31,TRUE)*(1-BRLRWT!$H$10/100),_xlfn.NORM.DIST(C12,$L$31,$M$31,TRUE)),"") -> 3.804948679e-07 | F12: =IF(D12<>"",IF(E12<>"",D12+E12,""),"") -> 3.805695557e-07 | G12: =IF(D12<>"",D12*BRLRWT!$H$9*1000,"") -> 7.46877502e-06 | H12: =IF(E12<>"",E12*BRLRWT!$H$9*1000,"") -> 0.03804948679 | I12: =IF(G12<>"",IF(H12<>"",G12+H12,""),"") -> 0.03805695557 | L12: Range
B13: =C12 -> 0.4189276728 | C13: =C12+$M$14 -> 0.4396812744 | D13: =IF($L$30<>"",IF(INPUT!$H$10=1,(_xlfn.NORM.DIST(C13,$L$30,$M$30,TRUE)-_xlfn.NORM.DIST(B13,$L$30,$M$30,TRUE))*BRLRWT!$H$10/100,(_xlfn.NORM.DIST(C13,$L$30,$M$30,TRUE)-_xlfn.NORM.DIST(B13,$L$30,$M$30,TRUE))),"") -> 4.05988714e-10 | E13: =IF($L$31<>"",IF(INPUT!$H$10=1,(_xlfn.NORM.DIST(C13,$L$31,$M$31,TRUE)-_xlfn.NORM.DIST(B13,$L$31,$M$31,TRUE))*(1-BRLRWT!$H$10/100),(_xlfn.NORM.DIST(C13,$L$31,$M$31,TRUE)-_xlfn.NORM.DIST(B13,$L$31,$M$31,TRUE))),"") -> 2.042994074e-06 | F13: =IF(D13<>"",IF(E13<>"",D13+E13,""),"") -> 2.043400063e-06 | G13: =IF(D13<>"",D13*BRLRWT!$H$9*1000,"") -> 4.05988714e-05 | H13: =IF(E13<>"",E13*BRLRWT!$H$9*1000,"") -> 0.2042994074 | I13: =IF(G13<>"",IF(H13<>"",G13+H13,""),"") -> 0.2043400063 | L13: min | M13: 0.4189276728
B14: =C13 -> 0.4396812744 | C14: =C13+$M$14 -> 0.460434876 | D14: =IF($L$30<>"",IF(INPUT!$H$10=1,(_xlfn.NORM.DIST(C14,$L$30,$M$30,TRUE)-_xlfn.NORM.DIST(B14,$L$30,$M$30,TRUE))*BRLRWT!$H$10/100,(_xlfn.NORM.DIST(C14,$L$30,$M$30,TRUE)-_xlfn.NORM.DIST(B14,$L$30,$M$30,TRUE))),"") -> 2.360598278e-09 | E14: =IF($L$31<>"",IF(INPUT!$H$10=1,(_xlfn.NORM.DIST(C14,$L$31,$M$31,TRUE)-_xlfn.NORM.DIST(B14,$L$31,$M$31,TRUE))*(1-BRLRWT!$H$10/100),(_xlfn.NORM.DIST(C14,$L$31,$M$31,TRUE)-_xlfn.NORM.DIST(B14,$L$31,$M$31,TRUE))),"") -> 1.097060729e-05 | F14: =IF(D14<>"",IF(E14<>"",D14+E14,""),"") -> 1.097296789e-05 | G14: =IF(D14<>"",D14*BRLRWT!$H$9*1000,"") -> 0.0002360598278 | H14: =IF(E14<>"",E14*BRLRWT!$H$9*1000,"") -> 1.097060729 | I14: =IF(G14<>"",IF(H14<>"",G14+H14,""),"") -> 1.097296789 | L14: step size | M14: 0.0207536016
B15: =C14 -> 0.460434876 | C15: =C14+$M$14 -> 0.4811884776 | D15: =IF($L$30<>"",IF(INPUT!$H$10=1,(_xlfn.NORM.DIST(C15,$L$30,$M$30,TRUE)-_xlfn.NORM.DIST(B15,$L$30,$M$30,TRUE))*BRLRWT!$H$10/100,(_xlfn.NORM.DIST(C15,$L$30,$M$30,TRUE)-_xlfn.NORM.DIST(B15,$L$30,$M$30,TRUE))),"") -> 1.258685321e-08 | E15: =IF($L$31<>"",IF(INPUT!$H$10=1,(_xlfn.NORM.DIST(C15,$L$31,$M$31,TRUE)-_xlfn.NORM.DIST(B15,$L$31,$M$31,TRUE))*(1-BRLRWT!$H$10/100),(_xlfn.NORM.DIST(C15,$L$31,$M$31,TRUE)-_xlfn.NORM.DIST(B15,$L$31,$M$31,TRUE))),"") -> 5.089813597e-05 | F15: 5.091072282e-05 | G15: =IF(D15<>"",D15*BRLRWT!$H$9*1000,"") -> 0.001258685321 | H15: =IF(E15<>"",E15*BRLRWT!$H$9*1000,"") -> 5.089813597 | I15: 5.091072282
B16: 0.4811884776 | C16: 0.5019420792 | D16: =IF($L$30<>"",IF(INPUT!$H$10=1,(_xlfn.NORM.DIST(C16,$L$30,$M$30,TRUE)-_xlfn.NORM.DIST(B16,$L$30,$M$30,TRUE))*BRLRWT!$H$10/100,(_xlfn.NORM.DIST(C16,$L$30,$M$30,TRUE)-_xlfn.NORM.DIST(B16,$L$30,$M$30,TRUE))),"") -> 6.154636802e-08 | E16: =IF($L$31<>"",IF(INPUT!$H$10=1,(_xlfn.NORM.DIST(C16,$L$31,$M$31,TRUE)-_xlfn.NORM.DIST(B16,$L$31,$M$31,TRUE))*(1-BRLRWT!$H$10/100),(_xlfn.NORM.DIST(C16,$L$31,$M$31,TRUE)-_xlfn.NORM.DIST(B16,$L$31,$M$31,TRUE))),"") -> 0.0002040307362 | F16: 0.0002040922826 | G16: =IF(D16<>"",D16*BRLRWT!$H$9*1000,"") -> 0.006154636802 | H16: =IF(E16<>"",E16*BRLRWT!$H$9*1000,"") -> 20.40307362 | I16: 20.40922826
B17: 0.5019420792 | C17: 0.5226956808 | D17: =IF($L$30<>"",IF(INPUT!$H$10=1,(_xlfn.NORM.DIST(C17,$L$30,$M$30,TRUE)-_xlfn.NORM.DIST(B17,$L$30,$M$30,TRUE))*BRLRWT!$H$10/100,(_xlfn.NORM.DIST(C17,$L$30,$M$30,TRUE)-_xlfn.NORM.DIST(B17,$L$30,$M$30,TRUE))),"") -> 2.759821502e-07 | E17: =IF($L$31<>"",IF(INPUT!$H$10=1,(_xlfn.NORM.DIST(C17,$L$31,$M$31,TRUE)-_xlfn.NORM.DIST(B17,$L$31,$M$31,TRUE))*(1-BRLRWT!$H$10/100),(_xlfn.NORM.DIST(C17,$L$31,$M$31,TRUE)-_xlfn.NORM.DIST(B17,$L$31,$M$31,TRUE))),"") -> 0.0007066847515 | F17: 0.0007069607336 | G17: =IF(D17<>"",D17*BRLRWT!$H$9*1000,"") -> 0.02759821502 | H17: =IF(E17<>"",E17*BRLRWT!$H$9*1000,"") -> 70.66847515 | I17: 70.69607336
B18: 0.5226956808 | C18: 0.5434492824 | D18: =IF($L$30<>"",IF(INPUT!$H$10=1,(_xlfn.NORM.DIST(C18,$L$30,$M$30,TRUE)-_xlfn.NORM.DIST(B18,$L$30,$M$30,TRUE))*BRLRWT!$H$10/100,(_xlfn.NORM.DIST(C18,$L$30,$M$30,TRUE)-_xlfn.NORM.DIST(B18,$L$30,$M$30,TRUE))),"") -> 1.134895498e-06 | E18: =IF($L$31<>"",IF(INPUT!$H$10=1,(_xlfn.NORM.DIST(C18,$L$31,$M$31,TRUE)-_xlfn.NORM.DIST(B18,$L$31,$M$31,TRUE))*(1-BRLRWT!$H$10/100),(_xlfn.NORM.DIST(C18,$L$31,$M$31,TRUE)-_xlfn.NORM.DIST(B18,$L$31,$M$31,TRUE))),"") -> 0.002114974109 | F18: 0.002116109005 | G18: =IF(D18<>"",D18*BRLRWT!$H$9*1000,"") -> 0.1134895498 | H18: =IF(E18<>"",E18*BRLRWT!$H$9*1000,"") -> 211.4974109 | I18: 211.6109005
B19: 0.5434492824 | C19: 0.564202884 | D19: =IF($L$30<>"",IF(INPUT!$H$10=1,(_xlfn.NORM.DIST(C19,$L$30,$M$30,TRUE)-_xlfn.NORM.DIST(B19,$L$30,$M$30,TRUE))*BRLRWT!$H$10/100,(_xlfn.NORM.DIST(C19,$L$30,$M$30,TRUE)-_xlfn.NORM.DIST(B19,$L$30,$M$30,TRUE))),"") -> 4.27986392e-06 | E19: =IF($L$31<>"",IF(INPUT!$H$10=1,(_xlfn.NORM.DIST(C19,$L$31,$M$31,TRUE)-_xlfn.NORM.DIST(B19,$L$31,$M$31,TRUE))*(1-BRLRWT!$H$10/100),(_xlfn.NORM.DIST(C19,$L$31,$M$31,TRUE)-_xlfn.NORM.DIST(B19,$L$31,$M$31,TRUE))),"") -> 0.005469469516 | F19: 0.005473749379 | G19: =IF(D19<>"",D19*BRLRWT!$H$9*1000,"") -> 0.427986392 | H19: =IF(E19<>"",E19*BRLRWT!$H$9*1000,"") -> 546.9469516 | I19: 547.3749379
B20: 0.564202884 | C20: 0.5849564856 | D20: =IF($L$30<>"",IF(INPUT!$H$10=1,(_xlfn.NORM.DIST(C20,$L$30,$M$30,TRUE)-_xlfn.NORM.DIST(B20,$L$30,$M$30,TRUE))*BRLRWT!$H$10/100,(_xlfn.NORM.DIST(C20,$L$30,$M$30,TRUE)-_xlfn.NORM.DIST(B20,$L$30,$M$30,TRUE))),"") -> 1.480150997e-05 | E20: =IF($L$31<>"",IF(INPUT!$H$10=1,(_xlfn.NORM.DIST(C20,$L$31,$M$31,TRUE)-_xlfn.NORM.DIST(B20,$L$31,$M$31,TRUE))*(1-BRLRWT!$H$10/100),(_xlfn.NORM.DIST(C20,$L$31,$M$31,TRUE)-_xlfn.NORM.DIST(B20,$L$31,$M$31,TRUE))),"") -> 0.01222239938 | F20: 0.01223720089 | G20: =IF(D20<>"",D20*BRLRWT!$H$9*1000,"") -> 1.480150997 | H20: =IF(E20<>"",E20*BRLRWT!$H$9*1000,"") -> 1222.239938 | I20: 1223.720089
B21: 0.5849564856 | C21: 0.6057100872 | D21: =IF($L$30<>"",IF(INPUT!$H$10=1,(_xlfn.NORM.DIST(C21,$L$30,$M$30,TRUE)-_xlfn.NORM.DIST(B21,$L$30,$M$30,TRUE))*BRLRWT!$H$10/100,(_xlfn.NORM.DIST(C21,$L$30,$M$30,TRUE)-_xlfn.NORM.DIST(B21,$L$30,$M$30,TRUE))),"") -> 4.694471287e-05 | E21: =IF($L$31<>"",IF(INPUT!$H$10=1,(_xlfn.NORM.DIST(C21,$L$31,$M$31,TRUE)-_xlfn.NORM.DIST(B21,$L$31,$M$31,TRUE))*(1-BRLRWT!$H$10/100),(_xlfn.NORM.DIST(C21,$L$31,$M$31,TRUE)-_xlfn.NORM.DIST(B21,$L$31,$M$31,TRUE))),"") -> 0.02360194215 | F21: 0.02364888686 | G21: =IF(D21<>"",D21*BRLRWT!$H$9*1000,"") -> 4.694471287 | H21: =IF(E21<>"",E21*BRLRWT!$H$9*1000,"") -> 2360.194215 | I21: 2364.888686
B22: 0.6057100872 | C22: 0.6264636888 | D22: =IF($L$30<>"",IF(INPUT!$H$10=1,(_xlfn.NORM.DIST(C22,$L$30,$M$30,TRUE)-_xlfn.NORM.DIST(B22,$L$30,$M$30,TRUE))*BRLRWT!$H$10/100,(_xlfn.NORM.DIST(C22,$L$30,$M$30,TRUE)-_xlfn.NORM.DIST(B22,$L$30,$M$30,TRUE))),"") -> 0.0001365445725 | E22: =IF($L$31<>"",IF(INPUT!$H$10=1,(_xlfn.NORM.DIST(C22,$L$31,$M$31,TRUE)-_xlfn.NORM.DIST(B22,$L$31,$M$31,TRUE))*(1-BRLRWT!$H$10/100),(_xlfn.NORM.DIST(C22,$L$31,$M$31,TRUE)-_xlfn.NORM.DIST(B22,$L$31,$M$31,TRUE))),"") -> 0.03938459846 | F22: 0.03952114304 | G22: =IF(D22<>"",D22*BRLRWT!$H$9*1000,"") -> 13.65445725 | H22: =IF(E22<>"",E22*BRLRWT!$H$9*1000,"") -> 3938.459846 | I22: 3952.114304
B23: 0.6264636888 | C23: 0.6472172904 | D23: =IF($L$30<>"",IF(INPUT!$H$10=1,(_xlfn.NORM.DIST(C23,$L$30,$M$30,TRUE)-_xlfn.NORM.DIST(B23,$L$30,$M$30,TRUE))*BRLRWT!$H$10/100,(_xlfn.NORM.DIST(C23,$L$30,$M$30,TRUE)-_xlfn.NORM.DIST(B23,$L$30,$M$30,TRUE))),"") -> 0.0003642265675 | E23: =IF($L$31<>"",IF(INPUT!$H$10=1,(_xlfn.NORM.DIST(C23,$L$31,$M$31,TRUE)-_xlfn.NORM.DIST(B23,$L$31,$M$31,TRUE))*(1-BRLRWT!$H$10/100),(_xlfn.NORM.DIST(C23,$L$31,$M$31,TRUE)-_xlfn.NORM.DIST(B23,$L$31,$M$31,TRUE))),"") -> 0.05679346312 | F23: 0.05715768969 | G23: =IF(D23<>"",D23*BRLRWT!$H$9*1000,"") -> 36.42265675 | H23: =IF(E23<>"",E23*BRLRWT!$H$9*1000,"") -> 5679.346312 | I23: 5715.768969
B24: 0.6472172904 | C24: 0.667970892 | D24: =IF($L$30<>"",IF(INPUT!$H$10=1,(_xlfn.NORM.DIST(C24,$L$30,$M$30,TRUE)-_xlfn.NORM.DIST(B24,$L$30,$M$30,TRUE))*BRLRWT!$H$10/100,(_xlfn.NORM.DIST(C24,$L$30,$M$30,TRUE)-_xlfn.NORM.DIST(B24,$L$30,$M$30,TRUE))),"") -> 0.0008910055291 | E24: =IF($L$31<>"",IF(INPUT!$H$10=1,(_xlfn.NORM.DIST(C24,$L$31,$M$31,TRUE)-_xlfn.NORM.DIST(B24,$L$31,$M$31,TRUE))*(1-BRLRWT!$H$10/100),(_xlfn.NORM.DIST(C24,$L$31,$M$31,TRUE)-_xlfn.NORM.DIST(B24,$L$31,$M$31,TRUE))),"") -> 0.07077302326 | F24: 0.07166402879 | G24: =IF(D24<>"",D24*BRLRWT!$H$9*1000,"") -> 89.10055291 | H24: =IF(E24<>"",E24*BRLRWT!$H$9*1000,"") -> 7077.302326 | I24: 7166.402879
B25: 0.667970892 | C25: 0.6887244936 | D25: =IF($L$30<>"",IF(INPUT!$H$10=1,(_xlfn.NORM.DIST(C25,$L$30,$M$30,TRUE)-_xlfn.NORM.DIST(B25,$L$30,$M$30,TRUE))*BRLRWT!$H$10/100,(_xlfn.NORM.DIST(C25,$L$30,$M$30,TRUE)-_xlfn.NORM.DIST(B25,$L$30,$M$30,TRUE))),"") -> 0.001998953927 | E25: =IF($L$31<>"",IF(INPUT!$H$10=1,(_xlfn.NORM.DIST(C25,$L$31,$M$31,TRUE)-_xlfn.NORM.DIST(B25,$L$31,$M$31,TRUE))*(1-BRLRWT!$H$10/100),(_xlfn.NORM.DIST(C25,$L$31,$M$31,TRUE)-_xlfn.NORM.DIST(B25,$L$31,$M$31,TRUE))),"") -> 0.0762144227 | F25: 0.07821337662 | G25: =IF(D25<>"",D25*BRLRWT!$H$9*1000,"") -> 199.8953927 | H25: =IF(E25<>"",E25*BRLRWT!$H$9*1000,"") -> 7621.44227 | I25: 7821.337662
B26: 0.6887244936 | C26: 0.7094780952 | D26: =IF($L$30<>"",IF(INPUT!$H$10=1,(_xlfn.NORM.DIST(C26,$L$30,$M$30,TRUE)-_xlfn.NORM.DIST(B26,$L$30,$M$30,TRUE))*BRLRWT!$H$10/100,(_xlfn.NORM.DIST(C26,$L$30,$M$30,TRUE)-_xlfn.NORM.DIST(B26,$L$30,$M$30,TRUE))),"") -> 0.004112828614 | E26: =IF($L$31<>"",IF(INPUT!$H$10=1,(_xlfn.NORM.DIST(C26,$L$31,$M$31,TRUE)-_xlfn.NORM.DIST(B26,$L$31,$M$31,TRUE))*(1-BRLRWT!$H$10/100),(_xlfn.NORM.DIST(C26,$L$31,$M$31,TRUE)-_xlfn.NORM.DIST(B26,$L$31,$M$31,TRUE))),"") -> 0.07092632584 | F26: 0.07503915445 | G26: =IF(D26<>"",D26*BRLRWT!$H$9*1000,"") -> 411.2828614 | H26: =IF(E26<>"",E26*BRLRWT!$H$9*1000,"") -> 7092.632584 | I26: 7503.915445
B27: 0.7094780952 | C27: 0.7302316968 | D27: =IF($L$30<>"",IF(INPUT!$H$10=1,(_xlfn.NORM.DIST(C27,$L$30,$M$30,TRUE)-_xlfn.NORM.DIST(B27,$L$30,$M$30,TRUE))*BRLRWT!$H$10/100,(_xlfn.NORM.DIST(C27,$L$30,$M$30,TRUE)-_xlfn.NORM.DIST(B27,$L$30,$M$30,TRUE))),"") -> 0.007760604278 | E27: =IF($L$31<>"",IF(INPUT!$H$10=1,(_xlfn.NORM.DIST(C27,$L$31,$M$31,TRUE)-_xlfn.NORM.DIST(B27,$L$31,$M$31,TRUE))*(1-BRLRWT!$H$10/100),(_xlfn.NORM.DIST(C27,$L$31,$M$31,TRUE)-_xlfn.NORM.DIST(B27,$L$31,$M$31,TRUE))),"") -> 0.05703977537 | F27: 0.06480037965 | G27: =IF(D27<>"",D27*BRLRWT!$H$9*1000,"") -> 776.0604278 | H27: =IF(E27<>"",E27*BRLRWT!$H$9*1000,"") -> 5703.977537 | I27: 6480.037965
B28: 0.7302316968 | C28: 0.7509852984 | D28: =IF($L$30<>"",IF(INPUT!$H$10=1,(_xlfn.NORM.DIST(C28,$L$30,$M$30,TRUE)-_xlfn.NORM.DIST(B28,$L$30,$M$30,TRUE))*BRLRWT!$H$10/100,(_xlfn.NORM.DIST(C28,$L$30,$M$30,TRUE)-_xlfn.NORM.DIST(B28,$L$30,$M$30,TRUE))),"") -> 0.01342978422 | E28: =IF($L$31<>"",IF(INPUT!$H$10=1,(_xlfn.NORM.DIST(C28,$L$31,$M$31,TRUE)-_xlfn.NORM.DIST(B28,$L$31,$M$31,TRUE))*(1-BRLRWT!$H$10/100),(_xlfn.NORM.DIST(C28,$L$31,$M$31,TRUE)-_xlfn.NORM.DIST(B28,$L$31,$M$31,TRUE))),"") -> 0.03964109725 | F28: 0.05307088147 | G28: =IF(D28<>"",D28*BRLRWT!$H$9*1000,"") -> 1342.978422 | H28: =IF(E28<>"",E28*BRLRWT!$H$9*1000,"") -> 3964.109725 | I28: 5307.088147 | K28: - Summary
B29: 0.7509852984 | C29: 0.7717389 | D29: =IF($L$30<>"",IF(INPUT!$H$10=1,(_xlfn.NORM.DIST(C29,$L$30,$M$30,TRUE)-_xlfn.NORM.DIST(B29,$L$30,$M$30,TRUE))*BRLRWT!$H$10/100,(_xlfn.NORM.DIST(C29,$L$30,$M$30,TRUE)-_xlfn.NORM.DIST(B29,$L$30,$M$30,TRUE))),"") -> 0.02131387337 | E29: =IF($L$31<>"",IF(INPUT!$H$10=1,(_xlfn.NORM.DIST(C29,$L$31,$M$31,TRUE)-_xlfn.NORM.DIST(B29,$L$31,$M$31,TRUE))*(1-BRLRWT!$H$10/100),(_xlfn.NORM.DIST(C29,$L$31,$M$31,TRUE)-_xlfn.NORM.DIST(B29,$L$31,$M$31,TRUE))),"") -> 0.02380711946 | F29: 0.04512099283 | G29: =IF(D29<>"",D29*BRLRWT!$H$9*1000,"") -> 2131.387337 | H29: =IF(E29<>"",E29*BRLRWT!$H$9*1000,"") -> 2380.711946 | I29: 4512.099283 | K29: Unit (lbs) | L29: Mean | M29: Std. Dev. | N29: C.V. (%)
B30: 0.7717389 | C30: 0.7924925016 | D30: =IF($L$30<>"",IF(INPUT!$H$10=1,(_xlfn.NORM.DIST(C30,$L$30,$M$30,TRUE)-_xlfn.NORM.DIST(B30,$L$30,$M$30,TRUE))*BRLRWT!$H$10/100,(_xlfn.NORM.DIST(C30,$L$30,$M$30,TRUE)-_xlfn.NORM.DIST(B30,$L$30,$M$30,TRUE))),"") -> 0.03102249078 | E30: =IF($L$31<>"",IF(INPUT!$H$10=1,(_xlfn.NORM.DIST(C30,$L$31,$M$31,TRUE)-_xlfn.NORM.DIST(B30,$L$31,$M$31,TRUE))*(1-BRLRWT!$H$10/100),(_xlfn.NORM.DIST(C30,$L$31,$M$31,TRUE)-_xlfn.NORM.DIST(B30,$L$31,$M$31,TRUE))),"") -> 0.01235536395 | F30: 0.04337785473 | G30: =IF(D30<>"",D30*BRLRWT!$H$9*1000,"") -> 3102.249078 | H30: =IF(E30<>"",E30*BRLRWT!$H$9*1000,"") -> 1235.536395 | I30: 4337.785473 | K30: Male | L30: 0.8617702181 | M30: 0.07029887898 | N30: =IF(L30<>"",M30/L30*100,"") -> 8.157496918
B31: 0.7924925016 | C31: 0.8132461032 | D31: =IF($L$30<>"",IF(INPUT!$H$10=1,(_xlfn.NORM.DIST(C31,$L$30,$M$30,TRUE)-_xlfn.NORM.DIST(B31,$L$30,$M$30,TRUE))*BRLRWT!$H$10/100,(_xlfn.NORM.DIST(C31,$L$30,$M$30,TRUE)-_xlfn.NORM.DIST(B31,$L$30,$M$30,TRUE))),"") -> 0.04141071906 | E31: =IF($L$31<>"",IF(INPUT!$H$10=1,(_xlfn.NORM.DIST(C31,$L$31,$M$31,TRUE)-_xlfn.NORM.DIST(B31,$L$31,$M$31,TRUE))*(1-BRLRWT!$H$10/100),(_xlfn.NORM.DIST(C31,$L$31,$M$31,TRUE)-_xlfn.NORM.DIST(B31,$L$31,$M$31,TRUE))),"") -> 0.005540951668 | F31: 0.04695167073 | G31: =IF(D31<>"",D31*BRLRWT!$H$9*1000,"") -> 4141.071906 | H31: =IF(E31<>"",E31*BRLRWT!$H$9*1000,"") -> 554.0951668 | I31: 4695.167073 | K31: Female | L31: 0.6785014995 | M31: 0.05398421866 | N31: =IF(L31<>"",M31/L31*100,"") -> 7.956388998
B32: 0.8132461032 | C32: 0.8339997048 | D32: =IF($L$30<>"",IF(INPUT!$H$10=1,(_xlfn.NORM.DIST(C32,$L$30,$M$30,TRUE)-_xlfn.NORM.DIST(B32,$L$30,$M$30,TRUE))*BRLRWT!$H$10/100,(_xlfn.NORM.DIST(C32,$L$30,$M$30,TRUE)-_xlfn.NORM.DIST(B32,$L$30,$M$30,TRUE))),"") -> 0.05069573105 | E32: =IF($L$31<>"",IF(INPUT!$H$10=1,(_xlfn.NORM.DIST(C32,$L$31,$M$31,TRUE)-_xlfn.NORM.DIST(B32,$L$31,$M$31,TRUE))*(1-BRLRWT!$H$10/100),(_xlfn.NORM.DIST(C32,$L$31,$M$31,TRUE)-_xlfn.NORM.DIST(B32,$L$31,$M$31,TRUE))),"") -> 0.002147259026 | F32: 0.05284299007 | G32: =IF(D32<>"",D32*BRLRWT!$H$9*1000,"") -> 5069.573105 | H32: =IF(E32<>"",E32*BRLRWT!$H$9*1000,"") -> 214.7259026 | I32: 5284.299007 | K32: S/Run | L32: 0.7701358588 | M32: 0.1110178811 | N32: =IF(L32<>"",M32/L32*100,"") -> 14.41536319
B33: 0.8339997048 | C33: 0.8547533064 | D33: =IF($L$30<>"",IF(INPUT!$H$10=1,(_xlfn.NORM.DIST(C33,$L$30,$M$30,TRUE)-_xlfn.NORM.DIST(B33,$L$30,$M$30,TRUE))*BRLRWT!$H$10/100,(_xlfn.NORM.DIST(C33,$L$30,$M$30,TRUE)-_xlfn.NORM.DIST(B33,$L$30,$M$30,TRUE))),"") -> 0.05691844174 | E33: =IF($L$31<>"",IF(INPUT!$H$10=1,(_xlfn.NORM.DIST(C33,$L$31,$M$31,TRUE)-_xlfn.NORM.DIST(B33,$L$31,$M$31,TRUE))*(1-BRLRWT!$H$10/100),(_xlfn.NORM.DIST(C33,$L$31,$M$31,TRUE)-_xlfn.NORM.DIST(B33,$L$31,$M$31,TRUE))),"") -> 0.0007190274828 | F33: 0.05763746922 | G33: =IF(D33<>"",D33*BRLRWT!$H$9*1000,"") -> 5691.844174 | H33: =IF(E33<>"",E33*BRLRWT!$H$9*1000,"") -> 71.90274828 | I33: 5763.746922
B34: 0.8547533064 | C34: 0.875506908 | D34: =IF($L$30<>"",IF(INPUT!$H$10=1,(_xlfn.NORM.DIST(C34,$L$30,$M$30,TRUE)-_xlfn.NORM.DIST(B34,$L$30,$M$30,TRUE))*BRLRWT!$H$10/100,(_xlfn.NORM.DIST(C34,$L$30,$M$30,TRUE)-_xlfn.NORM.DIST(B34,$L$30,$M$30,TRUE))),"") -> 0.05860813255 | E34: =IF($L$31<>"",IF(INPUT!$H$10=1,(_xlfn.NORM.DIST(C34,$L$31,$M$31,TRUE)-_xlfn.NORM.DIST(B34,$L$31,$M$31,TRUE))*(1-BRLRWT!$H$10/100),(_xlfn.NORM.DIST(C34,$L$31,$M$31,TRUE)-_xlfn.NORM.DIST(B34,$L$31,$M$31,TRUE))),"") -> 0.0002080443548 | F34: 0.05881617691 | G34: =IF(D34<>"",D34*BRLRWT!$H$9*1000,"") -> 5860.813255 | H34: =IF(E34<>"",E34*BRLRWT!$H$9*1000,"") -> 20.80443548 | I34: 5881.617691
B35: 0.875506908 | C35: 0.8962605096 | D35: =IF($L$30<>"",IF(INPUT!$H$10=1,(_xlfn.NORM.DIST(C35,$L$30,$M$30,TRUE)-_xlfn.NORM.DIST(B35,$L$30,$M$30,TRUE))*BRLRWT!$H$10/100,(_xlfn.NORM.DIST(C35,$L$30,$M$30,TRUE)-_xlfn.NORM.DIST(B35,$L$30,$M$30,TRUE))),"") -> 0.05534598299 | E35: =IF($L$31<>"",IF(INPUT!$H$10=1,(_xlfn.NORM.DIST(C35,$L$31,$M$31,TRUE)-_xlfn.NORM.DIST(B35,$L$31,$M$31,TRUE))*(1-BRLRWT!$H$10/100),(_xlfn.NORM.DIST(C35,$L$31,$M$31,TRUE)-_xlfn.NORM.DIST(B35,$L$31,$M$31,TRUE))),"") -> 5.201193178e-05 | F35: 0.05539799492 | G35: =IF(D35<>"",D35*BRLRWT!$H$9*1000,"") -> 5534.598299 | H35: =IF(E35<>"",E35*BRLRWT!$H$9*1000,"") -> 5.201193178 | I35: 5539.799492
B36: 0.8962605096 | C36: 0.9170141112 | D36: =IF($L$30<>"",IF(INPUT!$H$10=1,(_xlfn.NORM.DIST(C36,$L$30,$M$30,TRUE)-_xlfn.NORM.DIST(B36,$L$30,$M$30,TRUE))*BRLRWT!$H$10/100,(_xlfn.NORM.DIST(C36,$L$30,$M$30,TRUE)-_xlfn.NORM.DIST(B36,$L$30,$M$30,TRUE))),"") -> 0.04793332215 | E36: =IF($L$31<>"",IF(INPUT!$H$10=1,(_xlfn.NORM.DIST(C36,$L$31,$M$31,TRUE)-_xlfn.NORM.DIST(B36,$L$31,$M$31,TRUE))*(1-BRLRWT!$H$10/100),(_xlfn.NORM.DIST(C36,$L$31,$M$31,TRUE)-_xlfn.NORM.DIST(B36,$L$31,$M$31,TRUE))),"") -> 1.123499171e-05 | F36: 0.04794455714 | G36: =IF(D36<>"",D36*BRLRWT!$H$9*1000,"") -> 4793.332215 | H36: =IF(E36<>"",E36*BRLRWT!$H$9*1000,"") -> 1.123499171 | I36: 4794.455714
B37: 0.9170141112 | C37: 0.9377677128 | D37: =IF($L$30<>"",IF(INPUT!$H$10=1,(_xlfn.NORM.DIST(C37,$L$30,$M$30,TRUE)-_xlfn.NORM.DIST(B37,$L$30,$M$30,TRUE))*BRLRWT!$H$10/100,(_xlfn.NORM.DIST(C37,$L$30,$M$30,TRUE)-_xlfn.NORM.DIST(B37,$L$30,$M$30,TRUE))),"") -> 0.03807253672 | E37: =IF($L$31<>"",IF(INPUT!$H$10=1,(_xlfn.NORM.DIST(C37,$L$31,$M$31,TRUE)-_xlfn.NORM.DIST(B37,$L$31,$M$31,TRUE))*(1-BRLRWT!$H$10/100),(_xlfn.NORM.DIST(C37,$L$31,$M$31,TRUE)-_xlfn.NORM.DIST(B37,$L$31,$M$31,TRUE))),"") -> 2.096768105e-06 | F37: 0.03807463349 | G37: =IF(D37<>"",D37*BRLRWT!$H$9*1000,"") -> 3807.253672 | H37: =IF(E37<>"",E37*BRLRWT!$H$9*1000,"") -> 0.2096768105 | I37: 3807.463349
B38: 0.9377677128 | C38: 0.9585213144 | D38: =IF($L$30<>"",IF(INPUT!$H$10=1,(_xlfn.NORM.DIST(C38,$L$30,$M$30,TRUE)-_xlfn.NORM.DIST(B38,$L$30,$M$30,TRUE))*BRLRWT!$H$10/100,(_xlfn.NORM.DIST(C38,$L$30,$M$30,TRUE)-_xlfn.NORM.DIST(B38,$L$30,$M$30,TRUE))),"") -> 0.02773373806 | E38: =IF($L$31<>"",IF(INPUT!$H$10=1,(_xlfn.NORM.DIST(C38,$L$31,$M$31,TRUE)-_xlfn.NORM.DIST(B38,$L$31,$M$31,TRUE))*(1-BRLRWT!$H$10/100),(_xlfn.NORM.DIST(C38,$L$31,$M$31,TRUE)-_xlfn.NORM.DIST(B38,$L$31,$M$31,TRUE))),"") -> 3.380805762e-07 | F38: 0.02773407614 | G38: =IF(D38<>"",D38*BRLRWT!$H$9*1000,"") -> 2773.373806 | H38: =IF(E38<>"",E38*BRLRWT!$H$9*1000,"") -> 0.03380805762 | I38: 2773.407614
B39: 0.9585213144 | C39: 0.979274916 | D39: =IF($L$30<>"",IF(INPUT!$H$10=1,(_xlfn.NORM.DIST(C39,$L$30,$M$30,TRUE)-_xlfn.NORM.DIST(B39,$L$30,$M$30,TRUE))*BRLRWT!$H$10/100,(_xlfn.NORM.DIST(C39,$L$30,$M$30,TRUE)-_xlfn.NORM.DIST(B39,$L$30,$M$30,TRUE))),"") -> 0.0185279156 | E39: =IF($L$31<>"",IF(INPUT!$H$10=1,(_xlfn.NORM.DIST(C39,$L$31,$M$31,TRUE)-_xlfn.NORM.DIST(B39,$L$31,$M$31,TRUE))*(1-BRLRWT!$H$10/100),(_xlfn.NORM.DIST(C39,$L$31,$M$31,TRUE)-_xlfn.NORM.DIST(B39,$L$31,$M$31,TRUE))),"") -> 4.709402196e-08 | F39: 0.01852796269 | G39: =IF(D39<>"",D39*BRLRWT!$H$9*1000,"") -> 1852.79156 | H39: =IF(E39<>"",E39*BRLRWT!$H$9*1000,"") -> 0.004709402196 | I39: 1852.796269
B40: 0.979274916 | C40: 1.000028518 | D40: =IF($L$30<>"",IF(INPUT!$H$10=1,(_xlfn.NORM.DIST(C40,$L$30,$M$30,TRUE)-_xlfn.NORM.DIST(B40,$L$30,$M$30,TRUE))*BRLRWT!$H$10/100,(_xlfn.NORM.DIST(C40,$L$30,$M$30,TRUE)-_xlfn.NORM.DIST(B40,$L$30,$M$30,TRUE))),"") -> 0.01135181551 | E40: =IF($L$31<>"",IF(INPUT!$H$10=1,(_xlfn.NORM.DIST(C40,$L$31,$M$31,TRUE)-_xlfn.NORM.DIST(B40,$L$31,$M$31,TRUE))*(1-BRLRWT!$H$10/100),(_xlfn.NORM.DIST(C40,$L$31,$M$31,TRUE)-_xlfn.NORM.DIST(B40,$L$31,$M$31,TRUE))),"") -> 5.667219749e-09 | F40: 0.01135182117 | G40: =IF(D40<>"",D40*BRLRWT!$H$9*1000,"") -> 1135.181551 | H40: =IF(E40<>"",E40*BRLRWT!$H$9*1000,"") -> 0.0005667219749 | I40: 1135.182117
B41: 1.000028518 | C41: 1.020782119 | D41: =IF($L$30<>"",IF(INPUT!$H$10=1,(_xlfn.NORM.DIST(C41,$L$30,$M$30,TRUE)-_xlfn.NORM.DIST(B41,$L$30,$M$30,TRUE))*BRLRWT!$H$10/100,(_xlfn.NORM.DIST(C41,$L$30,$M$30,TRUE)-_xlfn.NORM.DIST(B41,$L$30,$M$30,TRUE))),"") -> 0.006378573166 | E41: =IF($L$31<>"",IF(INPUT!$H$10=1,(_xlfn.NORM.DIST(C41,$L$31,$M$31,TRUE)-_xlfn.NORM.DIST(B41,$L$31,$M$31,TRUE))*(1-BRLRWT!$H$10/100),(_xlfn.NORM.DIST(C41,$L$31,$M$31,TRUE)-_xlfn.NORM.DIST(B41,$L$31,$M$31,TRUE))),"") -> 5.891359622e-10 | F41: 0.006378573755 | G41: =IF(D41<>"",D41*BRLRWT!$H$9*1000,"") -> 637.8573166 | H41: =IF(E41<>"",E41*BRLRWT!$H$9*1000,"") -> 5.891359622e-05 | I41: 637.8573755
B42: 1.020782119 | C42: 1.041535721 | D42: =IF($L$30<>"",IF(INPUT!$H$10=1,(_xlfn.NORM.DIST(C42,$L$30,$M$30,TRUE)-_xlfn.NORM.DIST(B42,$L$30,$M$30,TRUE))*BRLRWT!$H$10/100,(_xlfn.NORM.DIST(C42,$L$30,$M$30,TRUE)-_xlfn.NORM.DIST(B42,$L$30,$M$30,TRUE))),"") -> 0.003287001276 | E42: =IF($L$31<>"",IF(INPUT!$H$10=1,(_xlfn.NORM.DIST(C42,$L$31,$M$31,TRUE)-_xlfn.NORM.DIST(B42,$L$31,$M$31,TRUE))*(1-BRLRWT!$H$10/100),(_xlfn.NORM.DIST(C42,$L$31,$M$31,TRUE)-_xlfn.NORM.DIST(B42,$L$31,$M$31,TRUE))),"") -> 5.290345939e-11 | F42: 0.003287001329 | G42: =IF(D42<>"",D42*BRLRWT!$H$9*1000,"") -> 328.7001276 | H42: =IF(E42<>"",E42*BRLRWT!$H$9*1000,"") -> 5.290345939e-06 | I42: 328.7001329
B43: 1.041535721 | C43: 1.062289322 | D43: =IF($L$30<>"",IF(INPUT!$H$10=1,(_xlfn.NORM.DIST(C43,$L$30,$M$30,TRUE)-_xlfn.NORM.DIST(B43,$L$30,$M$30,TRUE))*BRLRWT!$H$10/100,(_xlfn.NORM.DIST(C43,$L$30,$M$30,TRUE)-_xlfn.NORM.DIST(B43,$L$30,$M$30,TRUE))),"") -> 0.001553433928 | E43: =IF($L$31<>"",IF(INPUT!$H$10=1,(_xlfn.NORM.DIST(C43,$L$31,$M$31,TRUE)-_xlfn.NORM.DIST(B43,$L$31,$M$31,TRUE))*(1-BRLRWT!$H$10/100),(_xlfn.NORM.DIST(C43,$L$31,$M$31,TRUE)-_xlfn.NORM.DIST(B43,$L$31,$M$31,TRUE))),"") -> 4.103550832e-12 | F43: 0.001553433932 | G43: =IF(D43<>"",D43*BRLRWT!$H$9*1000,"") -> 155.3433928 | H43: =IF(E43<>"",E43*BRLRWT!$H$9*1000,"") -> 4.103550832e-07 | I43: 155.3433932
B44: 1.062289322 | C44: 1.083042924 | D44: =IF($L$30<>"",IF(INPUT!$H$10=1,(_xlfn.NORM.DIST(C44,$L$30,$M$30,TRUE)-_xlfn.NORM.DIST(B44,$L$30,$M$30,TRUE))*BRLRWT!$H$10/100,(_xlfn.NORM.DIST(C44,$L$30,$M$30,TRUE)-_xlfn.NORM.DIST(B44,$L$30,$M$30,TRUE))),"") -> 0.0006732875244 | E44: =IF($L$31<>"",IF(INPUT!$H$10=1,(_xlfn.NORM.DIST(C44,$L$31,$M$31,TRUE)-_xlfn.NORM.DIST(B44,$L$31,$M$31,TRUE))*(1-BRLRWT!$H$10/100),(_xlfn.NORM.DIST(C44,$L$31,$M$31,TRUE)-_xlfn.NORM.DIST(B44,$L$31,$M$31,TRUE))),"") -> 2.748912209e-13 | F44: 0.0006732875247 | G44: =IF(D44<>"",D44*BRLRWT!$H$9*1000,"") -> 67.32875244 | H44: =IF(E44<>"",E44*BRLRWT!$H$9*1000,"") -> 2.748912209e-08 | I44: 67.32875247
B45: 1.083042924 | C45: ="inf." -> inf. | D45: =IF($L$30<>"",IF(INPUT!$H$10=1,(1-_xlfn.NORM.DIST(B45,$L$30,$M$30,TRUE))*BRLRWT!$H$10/100,(1-_xlfn.NORM.DIST(B45,$L$30,$M$30,TRUE))),"") -> 0.0004115428831 | E45: =IF($L$31<>"",IF(INPUT!$H$10=1,(1-_xlfn.NORM.DIST(B44,$L$31,$M$31,TRUE))*(1-BRLRWT!$H$10/100),(1-_xlfn.NORM.DIST(B44,$L$31,$M$31,TRUE))),"") -> 2.916555886e-13 | F45: 0.0004115428834 | G45: =IF(D45<>"",D45*BRLRWT!$H$9*1000,"") -> 41.15428831 | H45: =IF(E45<>"",E45*BRLRWT!$H$9*1000,"") -> 2.916555886e-08 | I45: 41.15428834
B46: Total | D46: =SUM(D12:D45) -> 0.5 | E46: 0.5 | F46: 1 | G46: 50000 | H46: 50000 | I46: 100000

Sheet WingWT
A8: 3-5. Results - Wing Weight Distribution | K8: Breed
B10: Weight (lbs) | D10: Percentage | G10: Numbers
B11: Min. (>) | C11: Max. (≤) | D11: Male | E11: Female | F11: S/Run | G11: Male | H11: Female | I11: S/Run
B12: ="-inf." -> -inf. | C12: =$M$13 -> 0.3214211982 | D12: =IF($L$30<>"",IF(INPUT!$H$10=1,_xlfn.NORM.DIST(C12,$L$30,$M$30,TRUE)*BRLRWT!$H$10/100,_xlfn.NORM.DIST(C12,$L$30,$M$30,TRUE)),"") -> 7.46877502e-11 | E12: =IF($L$31<>"",IF(INPUT!$H$10=1,_xlfn.NORM.DIST(C12,$L$31,$M$31,TRUE)*(1-BRLRWT!$H$10/100),_xlfn.NORM.DIST(C12,$L$31,$M$31,TRUE)),"") -> 5.775837016e-08 | F12: =IF(D12<>"",IF(E12<>"",D12+E12,""),"") -> 5.783305791e-08 | G12: =IF(D12<>"",D12*BRLRWT!$H$9*1000,"") -> 7.46877502e-06 | H12: =IF(E12<>"",E12*BRLRWT!$H$9*1000,"") -> 0.005775837016 | I12: =IF(G12<>"",IF(H12<>"",G12+H12,""),"") -> 0.005783305791 | L12: Range
B13: =C12 -> 0.3214211982 | C13: =C12+$M$14 -> 0.3389656148 | D13: =IF($L$30<>"",IF(INPUT!$H$10=1,(_xlfn.NORM.DIST(C13,$L$30,$M$30,TRUE)-_xlfn.NORM.DIST(B13,$L$30,$M$30,TRUE))*BRLRWT!$H$10/100,(_xlfn.NORM.DIST(C13,$L$30,$M$30,TRUE)-_xlfn.NORM.DIST(B13,$L$30,$M$30,TRUE))),"") -> 5.191979983e-10 | E13: =IF($L$31<>"",IF(INPUT!$H$10=1,(_xlfn.NORM.DIST(C13,$L$31,$M$31,TRUE)-_xlfn.NORM.DIST(B13,$L$31,$M$31,TRUE))*(1-BRLRWT!$H$10/100),(_xlfn.NORM.DIST(C13,$L$31,$M$31,TRUE)-_xlfn.NORM.DIST(B13,$L$31,$M$31,TRUE))),"") -> 3.878597412e-07 | F13: =IF(D13<>"",IF(E13<>"",D13+E13,""),"") -> 3.883789392e-07 | G13: =IF(D13<>"",D13*BRLRWT!$H$9*1000,"") -> 5.191979983e-05 | H13: =IF(E13<>"",E13*BRLRWT!$H$9*1000,"") -> 0.03878597412 | I13: =IF(G13<>"",IF(H13<>"",G13+H13,""),"") -> 0.03883789392 | L13: min | M13: 0.3214211982
B14: =C13 -> 0.3389656148 | C14: =C13+$M$14 -> 0.3565100315 | D14: =IF($L$30<>"",IF(INPUT!$H$10=1,(_xlfn.NORM.DIST(C14,$L$30,$M$30,TRUE)-_xlfn.NORM.DIST(B14,$L$30,$M$30,TRUE))*BRLRWT!$H$10/100,(_xlfn.NORM.DIST(C14,$L$30,$M$30,TRUE)-_xlfn.NORM.DIST(B14,$L$30,$M$30,TRUE))),"") -> 3.653388975e-09 | E14: =IF($L$31<>"",IF(INPUT!$H$10=1,(_xlfn.NORM.DIST(C14,$L$31,$M$31,TRUE)-_xlfn.NORM.DIST(B14,$L$31,$M$31,TRUE))*(1-BRLRWT!$H$10/100),(_xlfn.NORM.DIST(C14,$L$31,$M$31,TRUE)-_xlfn.NORM.DIST(B14,$L$31,$M$31,TRUE))),"") -> 2.510165671e-06 | F14: =IF(D14<>"",IF(E14<>"",D14+E14,""),"") -> 2.51381906e-06 | G14: =IF(D14<>"",D14*BRLRWT!$H$9*1000,"") -> 0.0003653388975 | H14: =IF(E14<>"",E14*BRLRWT!$H$9*1000,"") -> 0.2510165671 | I14: =IF(G14<>"",IF(H14<>"",G14+H14,""),"") -> 0.251381906 | L14: step size | M14: 0.01754441664
B15: =C14 -> 0.3565100315 | C15: =C14+$M$14 -> 0.3740544481 | D15: =IF($L$30<>"",IF(INPUT!$H$10=1,(_xlfn.NORM.DIST(C15,$L$30,$M$30,TRUE)-_xlfn.NORM.DIST(B15,$L$30,$M$30,TRUE))*BRLRWT!$H$10/100,(_xlfn.NORM.DIST(C15,$L$30,$M$30,TRUE)-_xlfn.NORM.DIST(B15,$L$30,$M$30,TRUE))),"") -> 2.30795727e-08 | E15: =IF($L$31<>"",IF(INPUT!$H$10=1,(_xlfn.NORM.DIST(C15,$L$31,$M$31,TRUE)-_xlfn.NORM.DIST(B15,$L$31,$M$31,TRUE))*(1-BRLRWT!$H$10/100),(_xlfn.NORM.DIST(C15,$L$31,$M$31,TRUE)-_xlfn.NORM.DIST(B15,$L$31,$M$31,TRUE))),"") -> 1.391377939e-05 | F15: 1.393685896e-05 | G15: =IF(D15<>"",D15*BRLRWT!$H$9*1000,"") -> 0.00230795727 | H15: =IF(E15<>"",E15*BRLRWT!$H$9*1000,"") -> 1.391377939 | I15: 1.393685896
B16: 0.3740544481 | C16: 0.3915988648 | D16: =IF($L$30<>"",IF(INPUT!$H$10=1,(_xlfn.NORM.DIST(C16,$L$30,$M$30,TRUE)-_xlfn.NORM.DIST(B16,$L$30,$M$30,TRUE))*BRLRWT!$H$10/100,(_xlfn.NORM.DIST(C16,$L$30,$M$30,TRUE)-_xlfn.NORM.DIST(B16,$L$30,$M$30,TRUE))),"") -> 1.308986401e-07 | E16: =IF($L$31<>"",IF(INPUT!$H$10=1,(_xlfn.NORM.DIST(C16,$L$31,$M$31,TRUE)-_xlfn.NORM.DIST(B16,$L$31,$M$31,TRUE))*(1-BRLRWT!$H$10/100),(_xlfn.NORM.DIST(C16,$L$31,$M$31,TRUE)-_xlfn.NORM.DIST(B16,$L$31,$M$31,TRUE))),"") -> 6.605744837e-05 | F16: 6.618834701e-05 | G16: =IF(D16<>"",D16*BRLRWT!$H$9*1000,"") -> 0.01308986401 | H16: =IF(E16<>"",E16*BRLRWT!$H$9*1000,"") -> 6.605744837 | I16: 6.618834701
B17: 0.3915988648 | C17: 0.4091432814 | D17: =IF($L$30<>"",IF(INPUT!$H$10=1,(_xlfn.NORM.DIST(C17,$L$30,$M$30,TRUE)-_xlfn.NORM.DIST(B17,$L$30,$M$30,TRUE))*BRLRWT!$H$10/100,(_xlfn.NORM.DIST(C17,$L$30,$M$30,TRUE)-_xlfn.NORM.DIST(B17,$L$30,$M$30,TRUE))),"") -> 6.665372057e-07 | E17: =IF($L$31<>"",IF(INPUT!$H$10=1,(_xlfn.NORM.DIST(C17,$L$31,$M$31,TRUE)-_xlfn.NORM.DIST(B17,$L$31,$M$31,TRUE))*(1-BRLRWT!$H$10/100),(_xlfn.NORM.DIST(C17,$L$31,$M$31,TRUE)-_xlfn.NORM.DIST(B17,$L$31,$M$31,TRUE))),"") -> 0.0002686273926 | F17: 0.0002692939298 | G17: =IF(D17<>"",D17*BRLRWT!$H$9*1000,"") -> 0.06665372057 | H17: =IF(E17<>"",E17*BRLRWT!$H$9*1000,"") -> 26.86273926 | I17: 26.92939298
B18: 0.4091432814 | C18: 0.4266876981 | D18: =IF($L$30<>"",IF(INPUT!$H$10=1,(_xlfn.NORM.DIST(C18,$L$30,$M$30,TRUE)-_xlfn.NORM.DIST(B18,$L$30,$M$30,TRUE))*BRLRWT!$H$10/100,(_xlfn.NORM.DIST(C18,$L$30,$M$30,TRUE)-_xlfn.NORM.DIST(B18,$L$30,$M$30,TRUE))),"") -> 3.047205108e-06 | E18: =IF($L$31<>"",IF(INPUT!$H$10=1,(_xlfn.NORM.DIST(C18,$L$31,$M$31,TRUE)-_xlfn.NORM.DIST(B18,$L$31,$M$31,TRUE))*(1-BRLRWT!$H$10/100),(_xlfn.NORM.DIST(C18,$L$31,$M$31,TRUE)-_xlfn.NORM.DIST(B18,$L$31,$M$31,TRUE))),"") -> 0.0009357229601 | F18: 0.0009387701652 | G18: =IF(D18<>"",D18*BRLRWT!$H$9*1000,"") -> 0.3047205108 | H18: =IF(E18<>"",E18*BRLRWT!$H$9*1000,"") -> 93.57229601 | I18: 93.87701652
B19: 0.4266876981 | C19: 0.4442321147 | D19: =IF($L$30<>"",IF(INPUT!$H$10=1,(_xlfn.NORM.DIST(C19,$L$30,$M$30,TRUE)-_xlfn.NORM.DIST(B19,$L$30,$M$30,TRUE))*BRLRWT!$H$10/100,(_xlfn.NORM.DIST(C19,$L$30,$M$30,TRUE)-_xlfn.NORM.DIST(B19,$L$30,$M$30,TRUE))),"") -> 1.250756847e-05 | E19: =IF($L$31<>"",IF(INPUT!$H$10=1,(_xlfn.NORM.DIST(C19,$L$31,$M$31,TRUE)-_xlfn.NORM.DIST(B19,$L$31,$M$31,TRUE))*(1-BRLRWT!$H$10/100),(_xlfn.NORM.DIST(C19,$L$31,$M$31,TRUE)-_xlfn.NORM.DIST(B19,$L$31,$M$31,TRUE))),"") -> 0.002792081332 | F19: 0.0028045889 | G19: =IF(D19<>"",D19*BRLRWT!$H$9*1000,"") -> 1.250756847 | H19: =IF(E19<>"",E19*BRLRWT!$H$9*1000,"") -> 279.2081332 | I19: 280.45889
B20: 0.4442321147 | C20: 0.4617765314 | D20: =IF($L$30<>"",IF(INPUT!$H$10=1,(_xlfn.NORM.DIST(C20,$L$30,$M$30,TRUE)-_xlfn.NORM.DIST(B20,$L$30,$M$30,TRUE))*BRLRWT!$H$10/100,(_xlfn.NORM.DIST(C20,$L$30,$M$30,TRUE)-_xlfn.NORM.DIST(B20,$L$30,$M$30,TRUE))),"") -> 4.609391504e-05 | E20: =IF($L$31<>"",IF(INPUT!$H$10=1,(_xlfn.NORM.DIST(C20,$L$31,$M$31,TRUE)-_xlfn.NORM.DIST(B20,$L$31,$M$31,TRUE))*(1-BRLRWT!$H$10/100),(_xlfn.NORM.DIST(C20,$L$31,$M$31,TRUE)-_xlfn.NORM.DIST(B20,$L$31,$M$31,TRUE))),"") -> 0.007136847592 | F20: 0.007182941507 | G20: =IF(D20<>"",D20*BRLRWT!$H$9*1000,"") -> 4.609391504 | H20: =IF(E20<>"",E20*BRLRWT!$H$9*1000,"") -> 713.6847592 | I20: 718.2941507
B21: 0.4617765314 | C21: 0.479320948 | D21: =IF($L$30<>"",IF(INPUT!$H$10=1,(_xlfn.NORM.DIST(C21,$L$30,$M$30,TRUE)-_xlfn.NORM.DIST(B21,$L$30,$M$30,TRUE))*BRLRWT!$H$10/100,(_xlfn.NORM.DIST(C21,$L$30,$M$30,TRUE)-_xlfn.NORM.DIST(B21,$L$30,$M$30,TRUE))),"") -> 0.0001525172965 | E21: =IF($L$31<>"",IF(INPUT!$H$10=1,(_xlfn.NORM.DIST(C21,$L$31,$M$31,TRUE)-_xlfn.NORM.DIST(B21,$L$31,$M$31,TRUE))*(1-BRLRWT!$H$10/100),(_xlfn.NORM.DIST(C21,$L$31,$M$31,TRUE)-_xlfn.NORM.DIST(B21,$L$31,$M$31,TRUE))),"") -> 0.01562767937 | F21: 0.01578019667 | G21: =IF(D21<>"",D21*BRLRWT!$H$9*1000,"") -> 15.25172965 | H21: =IF(E21<>"",E21*BRLRWT!$H$9*1000,"") -> 1562.767937 | I21: 1578.019667
B22: 0.479320948 | C22: 0.4968653646 | D22: =IF($L$30<>"",IF(INPUT!$H$10=1,(_xlfn.NORM.DIST(C22,$L$30,$M$30,TRUE)-_xlfn.NORM.DIST(B22,$L$30,$M$30,TRUE))*BRLRWT!$H$10/100,(_xlfn.NORM.DIST(C22,$L$30,$M$30,TRUE)-_xlfn.NORM.DIST(B22,$L$30,$M$30,TRUE))),"") -> 0.0004531107284 | E22: =IF($L$31<>"",IF(INPUT!$H$10=1,(_xlfn.NORM.DIST(C22,$L$31,$M$31,TRUE)-_xlfn.NORM.DIST(B22,$L$31,$M$31,TRUE))*(1-BRLRWT!$H$10/100),(_xlfn.NORM.DIST(C22,$L$31,$M$31,TRUE)-_xlfn.NORM.DIST(B22,$L$31,$M$31,TRUE))),"") -> 0.02931585901 | F22: 0.02976896974 | G22: =IF(D22<>"",D22*BRLRWT!$H$9*1000,"") -> 45.31107284 | H22: =IF(E22<>"",E22*BRLRWT!$H$9*1000,"") -> 2931.585901 | I22: 2976.896974
B23: 0.4968653646 | C23: 0.5144097813 | D23: =IF($L$30<>"",IF(INPUT!$H$10=1,(_xlfn.NORM.DIST(C23,$L$30,$M$30,TRUE)-_xlfn.NORM.DIST(B23,$L$30,$M$30,TRUE))*BRLRWT!$H$10/100,(_xlfn.NORM.DIST(C23,$L$30,$M$30,TRUE)-_xlfn.NORM.DIST(B23,$L$30,$M$30,TRUE))),"") -> 0.001208659391 | E23: =IF($L$31<>"",IF(INPUT!$H$10=1,(_xlfn.NORM.DIST(C23,$L$31,$M$31,TRUE)-_xlfn.NORM.DIST(B23,$L$31,$M$31,TRUE))*(1-BRLRWT!$H$10/100),(_xlfn.NORM.DIST(C23,$L$31,$M$31,TRUE)-_xlfn.NORM.DIST(B23,$L$31,$M$31,TRUE))),"") -> 0.04711283857 | F23: 0.04832149796 | G23: =IF(D23<>"",D23*BRLRWT!$H$9*1000,"") -> 120.8659391 | H23: =IF(E23<>"",E23*BRLRWT!$H$9*1000,"") -> 4711.283857 | I23: 4832.149796
B24: 0.5144097813 | C24: 0.5319541979 | D24: =IF($L$30<>"",IF(INPUT!$H$10=1,(_xlfn.NORM.DIST(C24,$L$30,$M$30,TRUE)-_xlfn.NORM.DIST(B24,$L$30,$M$30,TRUE))*BRLRWT!$H$10/100,(_xlfn.NORM.DIST(C24,$L$30,$M$30,TRUE)-_xlfn.NORM.DIST(B24,$L$30,$M$30,TRUE))),"") -> 0.002894823345 | E24: =IF($L$31<>"",IF(INPUT!$H$10=1,(_xlfn.NORM.DIST(C24,$L$31,$M$31,TRUE)-_xlfn.NORM.DIST(B24,$L$31,$M$31,TRUE))*(1-BRLRWT!$H$10/100),(_xlfn.NORM.DIST(C24,$L$31,$M$31,TRUE)-_xlfn.NORM.DIST(B24,$L$31,$M$31,TRUE))),"") -> 0.06486507078 | F24: 0.06775989413 | G24: =IF(D24<>"",D24*BRLRWT!$H$9*1000,"") -> 289.4823345 | H24: =IF(E24<>"",E24*BRLRWT!$H$9*1000,"") -> 6486.507078 | I24: 6775.989413
B25: 0.5319541979 | C25: 0.5494986146 | D25: =IF($L$30<>"",IF(INPUT!$H$10=1,(_xlfn.NORM.DIST(C25,$L$30,$M$30,TRUE)-_xlfn.NORM.DIST(B25,$L$30,$M$30,TRUE))*BRLRWT!$H$10/100,(_xlfn.NORM.DIST(C25,$L$30,$M$30,TRUE)-_xlfn.NORM.DIST(B25,$L$30,$M$30,TRUE))),"") -> 0.006225332617 | E25: =IF($L$31<>"",IF(INPUT!$H$10=1,(_xlfn.NORM.DIST(C25,$L$31,$M$31,TRUE)-_xlfn.NORM.DIST(B25,$L$31,$M$31,TRUE))*(1-BRLRWT!$H$10/100),(_xlfn.NORM.DIST(C25,$L$31,$M$31,TRUE)-_xlfn.NORM.DIST(B25,$L$31,$M$31,TRUE))),"") -> 0.07651065118 | F25: 0.0827359838 | G25: =IF(D25<>"",D25*BRLRWT!$H$9*1000,"") -> 622.5332617 | H25: =IF(E25<>"",E25*BRLRWT!$H$9*1000,"") -> 7651.065118 | I25: 8273.59838
B26: 0.5494986146 | C26: 0.5670430312 | D26: =IF($L$30<>"",IF(INPUT!$H$10=1,(_xlfn.NORM.DIST(C26,$L$30,$M$30,TRUE)-_xlfn.NORM.DIST(B26,$L$30,$M$30,TRUE))*BRLRWT!$H$10/100,(_xlfn.NORM.DIST(C26,$L$30,$M$30,TRUE)-_xlfn.NORM.DIST(B26,$L$30,$M$30,TRUE))),"") -> 0.01202067345 | E26: =IF($L$31<>"",IF(INPUT!$H$10=1,(_xlfn.NORM.DIST(C26,$L$31,$M$31,TRUE)-_xlfn.NORM.DIST(B26,$L$31,$M$31,TRUE))*(1-BRLRWT!$H$10/100),(_xlfn.NORM.DIST(C26,$L$31,$M$31,TRUE)-_xlfn.NORM.DIST(B26,$L$31,$M$31,TRUE))),"") -> 0.07731692312 | F26: 0.08933759656 | G26: =IF(D26<>"",D26*BRLRWT!$H$9*1000,"") -> 1202.067345 | H26: =IF(E26<>"",E26*BRLRWT!$H$9*1000,"") -> 7731.692312 | I26: 8933.759656
B27: 0.5670430312 | C27: 0.5845874479 | D27: =IF($L$30<>"",IF(INPUT!$H$10=1,(_xlfn.NORM.DIST(C27,$L$30,$M$30,TRUE)-_xlfn.NORM.DIST(B27,$L$30,$M$30,TRUE))*BRLRWT!$H$10/100,(_xlfn.NORM.DIST(C27,$L$30,$M$30,TRUE)-_xlfn.NORM.DIST(B27,$L$30,$M$30,TRUE))),"") -> 0.02084124829 | E27: =IF($L$31<>"",IF(INPUT!$H$10=1,(_xlfn.NORM.DIST(C27,$L$31,$M$31,TRUE)-_xlfn.NORM.DIST(B27,$L$31,$M$31,TRUE))*(1-BRLRWT!$H$10/100),(_xlfn.NORM.DIST(C27,$L$31,$M$31,TRUE)-_xlfn.NORM.DIST(B27,$L$31,$M$31,TRUE))),"") -> 0.06693743014 | F27: 0.08777867843 | G27: =IF(D27<>"",D27*BRLRWT!$H$9*1000,"") -> 2084.124829 | H27: =IF(E27<>"",E27*BRLRWT!$H$9*1000,"") -> 6693.743014 | I27: 8777.867843
B28: 0.5845874479 | C28: 0.6021318645 | D28: =IF($L$30<>"",IF(INPUT!$H$10=1,(_xlfn.NORM.DIST(C28,$L$30,$M$30,TRUE)-_xlfn.NORM.DIST(B28,$L$30,$M$30,TRUE))*BRLRWT!$H$10/100,(_xlfn.NORM.DIST(C28,$L$30,$M$30,TRUE)-_xlfn.NORM.DIST(B28,$L$30,$M$30,TRUE))),"") -> 0.03244515357 | E28: =IF($L$31<>"",IF(INPUT!$H$10=1,(_xlfn.NORM.DIST(C28,$L$31,$M$31,TRUE)-_xlfn.NORM.DIST(B28,$L$31,$M$31,TRUE))*(1-BRLRWT!$H$10/100),(_xlfn.NORM.DIST(C28,$L$31,$M$31,TRUE)-_xlfn.NORM.DIST(B28,$L$31,$M$31,TRUE))),"") -> 0.0496481784 | F28: 0.08209333197 | G28: =IF(D28<>"",D28*BRLRWT!$H$9*1000,"") -> 3244.515357 | H28: =IF(E28<>"",E28*BRLRWT!$H$9*1000,"") -> 4964.81784 | I28: 8209.333197 | K28: - Summary
B29: 0.6021318645 | C29: 0.6196762811 | D29: =IF($L$30<>"",IF(INPUT!$H$10=1,(_xlfn.NORM.DIST(C29,$L$30,$M$30,TRUE)-_xlfn.NORM.DIST(B29,$L$30,$M$30,TRUE))*BRLRWT!$H$10/100,(_xlfn.NORM.DIST(C29,$L$30,$M$30,TRUE)-_xlfn.NORM.DIST(B29,$L$30,$M$30,TRUE))),"") -> 0.04535332562 | E29: =IF($L$31<>"",IF(INPUT!$H$10=1,(_xlfn.NORM.DIST(C29,$L$31,$M$31,TRUE)-_xlfn.NORM.DIST(B29,$L$31,$M$31,TRUE))*(1-BRLRWT!$H$10/100),(_xlfn.NORM.DIST(C29,$L$31,$M$31,TRUE)-_xlfn.NORM.DIST(B29,$L$31,$M$31,TRUE))),"") -> 0.03154810657 | F29: 0.07690143218 | G29: =IF(D29<>"",D29*BRLRWT!$H$9*1000,"") -> 4535.332562 | H29: =IF(E29<>"",E29*BRLRWT!$H$9*1000,"") -> 3154.810657 | I29: 7690.143218 | K29: Unit (lbs) | L29: Mean | M29: Std. Dev. | N29: C.V. (%)
B30: 0.6196762811 | C30: 0.6372206978 | D30: =IF($L$30<>"",IF(INPUT!$H$10=1,(_xlfn.NORM.DIST(C30,$L$30,$M$30,TRUE)-_xlfn.NORM.DIST(B30,$L$30,$M$30,TRUE))*BRLRWT!$H$10/100,(_xlfn.NORM.DIST(C30,$L$30,$M$30,TRUE)-_xlfn.NORM.DIST(B30,$L$30,$M$30,TRUE))),"") -> 0.05692501806 | E30: =IF($L$31<>"",IF(INPUT!$H$10=1,(_xlfn.NORM.DIST(C30,$L$31,$M$31,TRUE)-_xlfn.NORM.DIST(B30,$L$31,$M$31,TRUE))*(1-BRLRWT!$H$10/100),(_xlfn.NORM.DIST(C30,$L$31,$M$31,TRUE)-_xlfn.NORM.DIST(B30,$L$31,$M$31,TRUE))),"") -> 0.01717405263 | F30: 0.07409907068 | G30: =IF(D30<>"",D30*BRLRWT!$H$9*1000,"") -> 5692.501806 | H30: =IF(E30<>"",E30*BRLRWT!$H$9*1000,"") -> 1717.405263 | I30: 7409.907068 | K30: Male | L30: 0.6567033177 | M30: 0.05322423826 | N30: =IF(L30<>"",M30/L30*100,"") -> 8.104761591
B31: 0.6372206978 | C31: 0.6547651144 | D31: =IF($L$30<>"",IF(INPUT!$H$10=1,(_xlfn.NORM.DIST(C31,$L$30,$M$30,TRUE)-_xlfn.NORM.DIST(B31,$L$30,$M$30,TRUE))*BRLRWT!$H$10/100,(_xlfn.NORM.DIST(C31,$L$30,$M$30,TRUE)-_xlfn.NORM.DIST(B31,$L$30,$M$30,TRUE))),"") -> 0.06415536792 | E31: =IF($L$31<>"",IF(INPUT!$H$10=1,(_xlfn.NORM.DIST(C31,$L$31,$M$31,TRUE)-_xlfn.NORM.DIST(B31,$L$31,$M$31,TRUE))*(1-BRLRWT!$H$10/100),(_xlfn.NORM.DIST(C31,$L$31,$M$31,TRUE)-_xlfn.NORM.DIST(B31,$L$31,$M$31,TRUE))),"") -> 0.008009282297 | F31: 0.07216465022 | G31: =IF(D31<>"",D31*BRLRWT!$H$9*1000,"") -> 6415.536792 | H31: =IF(E31<>"",E31*BRLRWT!$H$9*1000,"") -> 800.9282297 | I31: 7216.465022 | K31: Female | L31: 0.5506879584 | M31: 0.0443245215 | N31: =IF(L31<>"",M31/L31*100,"") -> 8.048936029
B32: 0.6547651144 | C32: 0.6723095311 | D32: =IF($L$30<>"",IF(INPUT!$H$10=1,(_xlfn.NORM.DIST(C32,$L$30,$M$30,TRUE)-_xlfn.NORM.DIST(B32,$L$30,$M$30,TRUE))*BRLRWT!$H$10/100,(_xlfn.NORM.DIST(C32,$L$30,$M$30,TRUE)-_xlfn.NORM.DIST(B32,$L$30,$M$30,TRUE))),"") -> 0.06492308676 | E32: =IF($L$31<>"",IF(INPUT!$H$10=1,(_xlfn.NORM.DIST(C32,$L$31,$M$31,TRUE)-_xlfn.NORM.DIST(B32,$L$31,$M$31,TRUE))*(1-BRLRWT!$H$10/100),(_xlfn.NORM.DIST(C32,$L$31,$M$31,TRUE)-_xlfn.NORM.DIST(B32,$L$31,$M$31,TRUE))),"") -> 0.003199820642 | F32: 0.0681229074 | G32: =IF(D32<>"",D32*BRLRWT!$H$9*1000,"") -> 6492.308676 | H32: =IF(E32<>"",E32*BRLRWT!$H$9*1000,"") -> 319.9820642 | I32: 6812.29074 | K32: S/Run | L32: 0.6036956381 | M32: 0.07217032266 | N32: =IF(L32<>"",M32/L32*100,"") -> 11.95475304
B33: 0.6723095311 | C33: 0.6898539477 | D33: =IF($L$30<>"",IF(INPUT!$H$10=1,(_xlfn.NORM.DIST(C33,$L$30,$M$30,TRUE)-_xlfn.NORM.DIST(B33,$L$30,$M$30,TRUE))*BRLRWT!$H$10/100,(_xlfn.NORM.DIST(C33,$L$30,$M$30,TRUE)-_xlfn.NORM.DIST(B33,$L$30,$M$30,TRUE))),"") -> 0.05899316715 | E33: =IF($L$31<>"",IF(INPUT!$H$10=1,(_xlfn.NORM.DIST(C33,$L$31,$M$31,TRUE)-_xlfn.NORM.DIST(B33,$L$31,$M$31,TRUE))*(1-BRLRWT!$H$10/100),(_xlfn.NORM.DIST(C33,$L$31,$M$31,TRUE)-_xlfn.NORM.DIST(B33,$L$31,$M$31,TRUE))),"") -> 0.001095108107 | F33: 0.06008827525 | G33: =IF(D33<>"",D33*BRLRWT!$H$9*1000,"") -> 5899.316715 | H33: =IF(E33<>"",E33*BRLRWT!$H$9*1000,"") -> 109.5108107 | I33: 6008.827525
B34: 0.6898539477 | C34: 0.7073983644 | D34: =IF($L$30<>"",IF(INPUT!$H$10=1,(_xlfn.NORM.DIST(C34,$L$30,$M$30,TRUE)-_xlfn.NORM.DIST(B34,$L$30,$M$30,TRUE))*BRLRWT!$H$10/100,(_xlfn.NORM.DIST(C34,$L$30,$M$30,TRUE)-_xlfn.NORM.DIST(B34,$L$30,$M$30,TRUE))),"") -> 0.04813269889 | E34: =IF($L$31<>"",IF(INPUT!$H$10=1,(_xlfn.NORM.DIST(C34,$L$31,$M$31,TRUE)-_xlfn.NORM.DIST(B34,$L$31,$M$31,TRUE))*(1-BRLRWT!$H$10/100),(_xlfn.NORM.DIST(C34,$L$31,$M$31,TRUE)-_xlfn.NORM.DIST(B34,$L$31,$M$31,TRUE))),"") -> 0.0003210510565 | F34: 0.04845374994 | G34: =IF(D34<>"",D34*BRLRWT!$H$9*1000,"") -> 4813.269889 | H34: =IF(E34<>"",E34*BRLRWT!$H$9*1000,"") -> 32.10510565 | I34: 4845.374994
B35: 0.7073983644 | C35: 0.724942781 | D35: =IF($L$30<>"",IF(INPUT!$H$10=1,(_xlfn.NORM.DIST(C35,$L$30,$M$30,TRUE)-_xlfn.NORM.DIST(B35,$L$30,$M$30,TRUE))*BRLRWT!$H$10/100,(_xlfn.NORM.DIST(C35,$L$30,$M$30,TRUE)-_xlfn.NORM.DIST(B35,$L$30,$M$30,TRUE))),"") -> 0.03526255079 | E35: =IF($L$31<>"",IF(INPUT!$H$10=1,(_xlfn.NORM.DIST(C35,$L$31,$M$31,TRUE)-_xlfn.NORM.DIST(B35,$L$31,$M$31,TRUE))*(1-BRLRWT!$H$10/100),(_xlfn.NORM.DIST(C35,$L$31,$M$31,TRUE)-_xlfn.NORM.DIST(B35,$L$31,$M$31,TRUE))),"") -> 8.062353895e-05 | F35: 0.03534317433 | G35: =IF(D35<>"",D35*BRLRWT!$H$9*1000,"") -> 3526.255079 | H35: =IF(E35<>"",E35*BRLRWT!$H$9*1000,"") -> 8.062353895 | I35: 3534.317433
B36: 0.724942781 | C36: 0.7424871977 | D36: =IF($L$30<>"",IF(INPUT!$H$10=1,(_xlfn.NORM.DIST(C36,$L$30,$M$30,TRUE)-_xlfn.NORM.DIST(B36,$L$30,$M$30,TRUE))*BRLRWT!$H$10/100,(_xlfn.NORM.DIST(C36,$L$30,$M$30,TRUE)-_xlfn.NORM.DIST(B36,$L$30,$M$30,TRUE))),"") -> 0.02319641202 | E36: =IF($L$31<>"",IF(INPUT!$H$10=1,(_xlfn.NORM.DIST(C36,$L$31,$M$31,TRUE)-_xlfn.NORM.DIST(B36,$L$31,$M$31,TRUE))*(1-BRLRWT!$H$10/100),(_xlfn.NORM.DIST(C36,$L$31,$M$31,TRUE)-_xlfn.NORM.DIST(B36,$L$31,$M$31,TRUE))),"") -> 1.734218309e-05 | F36: 0.0232137542 | G36: =IF(D36<>"",D36*BRLRWT!$H$9*1000,"") -> 2319.641202 | H36: =IF(E36<>"",E36*BRLRWT!$H$9*1000,"") -> 1.734218309 | I36: 2321.37542
B37: 0.7424871977 | C37: 0.7600316143 | D37: =IF($L$30<>"",IF(INPUT!$H$10=1,(_xlfn.NORM.DIST(C37,$L$30,$M$30,TRUE)-_xlfn.NORM.DIST(B37,$L$30,$M$30,TRUE))*BRLRWT!$H$10/100,(_xlfn.NORM.DIST(C37,$L$30,$M$30,TRUE)-_xlfn.NORM.DIST(B37,$L$30,$M$30,TRUE))),"") -> 0.01370123038 | E37: =IF($L$31<>"",IF(INPUT!$H$10=1,(_xlfn.NORM.DIST(C37,$L$31,$M$31,TRUE)-_xlfn.NORM.DIST(B37,$L$31,$M$31,TRUE))*(1-BRLRWT!$H$10/100),(_xlfn.NORM.DIST(C37,$L$31,$M$31,TRUE)-_xlfn.NORM.DIST(B37,$L$31,$M$31,TRUE))),"") -> 3.195082799e-06 | F37: 0.01370442546 | G37: =IF(D37<>"",D37*BRLRWT!$H$9*1000,"") -> 1370.123038 | H37: =IF(E37<>"",E37*BRLRWT!$H$9*1000,"") -> 0.3195082799 | I37: 1370.442546
B38: 0.7600316143 | C38: 0.7775760309 | D38: =IF($L$30<>"",IF(INPUT!$H$10=1,(_xlfn.NORM.DIST(C38,$L$30,$M$30,TRUE)-_xlfn.NORM.DIST(B38,$L$30,$M$30,TRUE))*BRLRWT!$H$10/100,(_xlfn.NORM.DIST(C38,$L$30,$M$30,TRUE)-_xlfn.NORM.DIST(B38,$L$30,$M$30,TRUE))),"") -> 0.007266538901 | E38: =IF($L$31<>"",IF(INPUT!$H$10=1,(_xlfn.NORM.DIST(C38,$L$31,$M$31,TRUE)-_xlfn.NORM.DIST(B38,$L$31,$M$31,TRUE))*(1-BRLRWT!$H$10/100),(_xlfn.NORM.DIST(C38,$L$31,$M$31,TRUE)-_xlfn.NORM.DIST(B38,$L$31,$M$31,TRUE))),"") -> 5.041713129e-07 | F38: 0.007267043072 | G38: =IF(D38<>"",D38*BRLRWT!$H$9*1000,"") -> 726.6538901 | H38: =IF(E38<>"",E38*BRLRWT!$H$9*1000,"") -> 0.05041713129 | I38: 726.7043072
B39: 0.7775760309 | C39: 0.7951204476 | D39: =IF($L$30<>"",IF(INPUT!$H$10=1,(_xlfn.NORM.DIST(C39,$L$30,$M$30,TRUE)-_xlfn.NORM.DIST(B39,$L$30,$M$30,TRUE))*BRLRWT!$H$10/100,(_xlfn.NORM.DIST(C39,$L$30,$M$30,TRUE)-_xlfn.NORM.DIST(B39,$L$30,$M$30,TRUE))),"") -> 0.003460366273 | E39: =IF($L$31<>"",IF(INPUT!$H$10=1,(_xlfn.NORM.DIST(C39,$L$31,$M$31,TRUE)-_xlfn.NORM.DIST(B39,$L$31,$M$31,TRUE))*(1-BRLRWT!$H$10/100),(_xlfn.NORM.DIST(C39,$L$31,$M$31,TRUE)-_xlfn.NORM.DIST(B39,$L$31,$M$31,TRUE))),"") -> 6.813529352e-08 | F39: 0.003460434408 | G39: =IF(D39<>"",D39*BRLRWT!$H$9*1000,"") -> 346.0366273 | H39: =IF(E39<>"",E39*BRLRWT!$H$9*1000,"") -> 0.006813529352 | I39: 346.0434408
B40: 0.7951204476 | C40: 0.8126648642 | D40: =IF($L$30<>"",IF(INPUT!$H$10=1,(_xlfn.NORM.DIST(C40,$L$30,$M$30,TRUE)-_xlfn.NORM.DIST(B40,$L$30,$M$30,TRUE))*BRLRWT!$H$10/100,(_xlfn.NORM.DIST(C40,$L$30,$M$30,TRUE)-_xlfn.NORM.DIST(B40,$L$30,$M$30,TRUE))),"") -> 0.001479584189 | E40: =IF($L$31<>"",IF(INPUT!$H$10=1,(_xlfn.NORM.DIST(C40,$L$31,$M$31,TRUE)-_xlfn.NORM.DIST(B40,$L$31,$M$31,TRUE))*(1-BRLRWT!$H$10/100),(_xlfn.NORM.DIST(C40,$L$31,$M$31,TRUE)-_xlfn.NORM.DIST(B40,$L$31,$M$31,TRUE))),"") -> 7.885762709e-09 | F40: 0.001479592075 | G40: =IF(D40<>"",D40*BRLRWT!$H$9*1000,"") -> 147.9584189 | H40: =IF(E40<>"",E40*BRLRWT!$H$9*1000,"") -> 0.0007885762709 | I40: 147.9592075
B41: 0.8126648642 | C41: 0.8302092809 | D41: =IF($L$30<>"",IF(INPUT!$H$10=1,(_xlfn.NORM.DIST(C41,$L$30,$M$30,TRUE)-_xlfn.NORM.DIST(B41,$L$30,$M$30,TRUE))*BRLRWT!$H$10/100,(_xlfn.NORM.DIST(C41,$L$30,$M$30,TRUE)-_xlfn.NORM.DIST(B41,$L$30,$M$30,TRUE))),"") -> 0.0005680371246 | E41: =IF($L$31<>"",IF(INPUT!$H$10=1,(_xlfn.NORM.DIST(C41,$L$31,$M$31,TRUE)-_xlfn.NORM.DIST(B41,$L$31,$M$31,TRUE))*(1-BRLRWT!$H$10/100),(_xlfn.NORM.DIST(C41,$L$31,$M$31,TRUE)-_xlfn.NORM.DIST(B41,$L$31,$M$31,TRUE))),"") -> 7.815771363e-10 | F41: 0.0005680379061 | G41: =IF(D41<>"",D41*BRLRWT!$H$9*1000,"") -> 56.80371246 | H41: =IF(E41<>"",E41*BRLRWT!$H$9*1000,"") -> 7.815771363e-05 | I41: 56.80379061
B42: 0.8302092809 | C42: 0.8477536975 | D42: =IF($L$30<>"",IF(INPUT!$H$10=1,(_xlfn.NORM.DIST(C42,$L$30,$M$30,TRUE)-_xlfn.NORM.DIST(B42,$L$30,$M$30,TRUE))*BRLRWT!$H$10/100,(_xlfn.NORM.DIST(C42,$L$30,$M$30,TRUE)-_xlfn.NORM.DIST(B42,$L$30,$M$30,TRUE))),"") -> 0.0001958073823 | E42: =IF($L$31<>"",IF(INPUT!$H$10=1,(_xlfn.NORM.DIST(C42,$L$31,$M$31,TRUE)-_xlfn.NORM.DIST(B42,$L$31,$M$31,TRUE))*(1-BRLRWT!$H$10/100),(_xlfn.NORM.DIST(C42,$L$31,$M$31,TRUE)-_xlfn.NORM.DIST(B42,$L$31,$M$31,TRUE))),"") -> 6.633382732e-11 | F42: 0.0001958074487 | G42: =IF(D42<>"",D42*BRLRWT!$H$9*1000,"") -> 19.58073823 | H42: =IF(E42<>"",E42*BRLRWT!$H$9*1000,"") -> 6.633382732e-06 | I42: 19.58074487
B43: 0.8477536975 | C43: 0.8652981142 | D43: =IF($L$30<>"",IF(INPUT!$H$10=1,(_xlfn.NORM.DIST(C43,$L$30,$M$30,TRUE)-_xlfn.NORM.DIST(B43,$L$30,$M$30,TRUE))*BRLRWT!$H$10/100,(_xlfn.NORM.DIST(C43,$L$30,$M$30,TRUE)-_xlfn.NORM.DIST(B43,$L$30,$M$30,TRUE))),"") -> 6.060273088e-05 | E43: =IF($L$31<>"",IF(INPUT!$H$10=1,(_xlfn.NORM.DIST(C43,$L$31,$M$31,TRUE)-_xlfn.NORM.DIST(B43,$L$31,$M$31,TRUE))*(1-BRLRWT!$H$10/100),(_xlfn.NORM.DIST(C43,$L$31,$M$31,TRUE)-_xlfn.NORM.DIST(B43,$L$31,$M$31,TRUE))),"") -> 4.820754906e-12 | F43: 6.06027357e-05 | G43: =IF(D43<>"",D43*BRLRWT!$H$9*1000,"") -> 6.060273088 | H43: =IF(E43<>"",E43*BRLRWT!$H$9*1000,"") -> 4.820754906e-07 | I43: 6.06027357
B44: 0.8652981142 | C44: 0.8828425308 | D44: =IF($L$30<>"",IF(INPUT!$H$10=1,(_xlfn.NORM.DIST(C44,$L$30,$M$30,TRUE)-_xlfn.NORM.DIST(B44,$L$30,$M$30,TRUE))*BRLRWT!$H$10/100,(_xlfn.NORM.DIST(C44,$L$30,$M$30,TRUE)-_xlfn.NORM.DIST(B44,$L$30,$M$30,TRUE))),"") -> 1.684074288e-05 | E44: =IF($L$31<>"",IF(INPUT!$H$10=1,(_xlfn.NORM.DIST(C44,$L$31,$M$31,TRUE)-_xlfn.NORM.DIST(B44,$L$31,$M$31,TRUE))*(1-BRLRWT!$H$10/100),(_xlfn.NORM.DIST(C44,$L$31,$M$31,TRUE)-_xlfn.NORM.DIST(B44,$L$31,$M$31,TRUE))),"") -> 2.999267501e-13 | F44: 1.684074318e-05 | G44: =IF(D44<>"",D44*BRLRWT!$H$9*1000,"") -> 1.684074288 | H44: =IF(E44<>"",E44*BRLRWT!$H$9*1000,"") -> 2.999267501e-08 | I44: 1.684074318
B45: 0.8828425308 | C45: ="inf." -> inf. | D45: =IF($L$30<>"",IF(INPUT!$H$10=1,(1-_xlfn.NORM.DIST(B45,$L$30,$M$30,TRUE))*BRLRWT!$H$10/100,(1-_xlfn.NORM.DIST(B45,$L$30,$M$30,TRUE))),"") -> 5.37293586e-06 | E45: =IF($L$31<>"",IF(INPUT!$H$10=1,(1-_xlfn.NORM.DIST(B44,$L$31,$M$31,TRUE))*(1-BRLRWT!$H$10/100),(1-_xlfn.NORM.DIST(B44,$L$31,$M$31,TRUE))),"") -> 3.166911178e-13 | F45: 5.372936176e-06 | G45: =IF(D45<>"",D45*BRLRWT!$H$9*1000,"") -> 0.537293586 | H45: =IF(E45<>"",E45*BRLRWT!$H$9*1000,"") -> 3.166911178e-08 | I45: 0.5372936176
B46: Total | D46: =SUM(D12:D45) -> 0.5 | E46: 0.5 | F46: 1 | G46: 50000 | H46: 50000 | I46: 100000

Sheet Breed (hidden)
A1: 1
A2: Efficiency Pro x Ross 308
A3: Efficiency Pro x Ross 308AP
A4: Efficiency Pro x Ross 308FF
A5: Efficiency Pro x Ross 708
A6: Ross x Ross 308
A7: Ross x Ross 308AP
A8: Ross x Ross 308FF
A9: Ross x Ross 708
A10: Yield Plus x Ross 308
A11: Yield Plus x Ross 308AP
A12: Yield Plus x Ross 308FF
A13: Yield Plus x Ross 708

Sheet Historical_Data (hidden)
A1: 308
A2: Age | B2: AH Wt | C2: Male Ratio
A3: 0 | B3: 43 | C3: 1
A4: 1 | B4: 57.330275 | C4: 0.9998865346
A5: 2 | B5: 72.92043 | C5: 0.9994872493
A6: 3 | B6: 90.712415 | C6: 0.9994506265
A7: 4 | B7: 110.986485 | C7: 0.9997571326
A8: 5 | B8: 133.94364 | C8: 1.000375158
A9: 6 | B9: 159.74865 | C9: 1.001272687
A10: 7 | B10: 188.539965 | C10: 1.002419726
A11: 8 | B11: 220.432395 | C11: 1.003788531
A12: 9 | B12: 255.51777 | C12: 1.005353561
A13: 10 | B13: 293.865075 | C13: 1.007091503
A14: 11 | B14: 335.5205 | C14: 1.008980793
A15: 12 | B15: 380.507735 | C15: 1.011001603
A16: 13 | B16: 428.82841 | C16: 1.013135627
A17: 14 | B17: 480.46292 | C17: 1.015365952
A18: 15 | B18: 535.371365 | C18: 1.017676861
A19: 16 | B19: 593.49483 | C19: 1.020053823
A20: 17 | B20: 654.75675 | C20: 1.022483327
A21: 18 | B21: 719.064485 | C21: 1.024952846
A22: 19 | B22: 786.31097 | C22: 1.027450755
A23: 20 | B23: 856.376445 | C23: 1.029966255
A24: 21 | B24: 929.1302 | C24: 1.032489343
A25: 22 | B25: 1004.43233 | C25: 1.035010751
A26: 23 | B26: 1082.135475 | C26: 1.037521915
A27: 24 | B27: 1162.08643 | C27: 1.040014958
A28: 25 | B28: 1244.12779 | C28: 1.042482621
A29: 26 | B29: 1328.09938 | C29: 1.044918273
A30: 27 | B30: 1413.839655 | C30: 1.047315864
A31: 28 | B31: 1501.186955 | C31: 1.049669913
A32: 29 | B32: 1589.98062 | C32: 1.051975501
A33: 30 | B33: 1680.062 | C33: 1.054228231
A34: 31 | B34: 1771.27531 | C34: 1.056424227
A35: 32 | B35: 1863.46835 | C35: 1.058560131
A36: 33 | B36: 1956.493165 | C36: 1.060633069
A37: 34 | B37: 2050.20648 | C37: 1.062640661
A38: 35 | B38: 2144.470075 | C38: 1.064581001
A39: 36 | B39: 2239.15109 | C39: 1.066452648
A40: 37 | B40: 2334.122155 | C40: 1.068254626
A41: 38 | B41: 2429.261465 | C41: 1.069986417
A42: 39 | B42: 2524.45277 | C42: 1.071647936
A43: 40 | B43: 2619.585305 | C43: 1.073239556
A44: 41 | B44: 2714.553625 | C44: 1.074762073
A45: 42 | B45: 2809.257415 | C45: 1.076216713
A46: 43 | B46: 2903.601235 | C46: 1.077605121
A47: 44 | B47: 2997.494235 | C47: 1.078929351
A48: 45 | B48: 3090.849835 | C48: 1.080191863
A49: 46 | B49: 3183.58543 | C49: 1.081395504
A50: 47 | B50: 3275.621995 | C50: 1.082543494
A51: 48 | B51: 3366.88379 | C51: 1.083639427
A52: 49 | B52: 3457.297975 | C52: 1.084687229
A53: 50 | B53: 3546.794345 | C53: 1.085691161
A54: 51 | B54: 3635.30496 | C54: 1.086655781
A55: 52 | B55: 3722.76392 | C55: 1.08758593
A56: 53 | B56: 3809.10709 | C56: 1.08848669
A57: 54 | B57: 3894.27192 | C57: 1.089363364
A58: 55 | B58: 3978.197275 | C58: 1.090221427
A59: 56 | B59: 4060.82331 | C59: 1.091066499
A60: 57 | B60: 4142.09143 | C60: 1.091904285
A61: 58 | B61: 4221.944295 | C61: 1.092740543
A62: 59 | B62: 4300.325855 | C62: 1.093581024
A63: 60 | B63: 4377.181465 | C63: 1.094431421
A64: 61 | B64: 4452.458055 | C64: 1.095297308
A65: 62 | B65: 4526.10435 | C65: 1.09618409
A66: 63 | B66: 4598.071145 | C66: 1.097096935
A67: 64 | B67: 4668.311575 | C67: 1.098040717
A68: 65 | B68: 4736.781545 | C68: 1.099019957
A69: 66 | B69: 4803.44001 | C69: 1.100038762
A70: 67 | B70: 4868.24945 | C70: 1.101100775
A71: 68 | B71: 4931.176225 | C71: 1.102209116
A72: 69 | B72: 4992.19099 | C72: 1.103366344
A73: 70 | B73: 5051.269085 | C73: 1.104574406
